Body_Code,Body_Name,Service,Posting Date,GL Code,GL Code Desc,Doc Number,Doc Net Amount,Supplier Name
http://statistics.data.gov.uk/id/local-authority/38,Oxfordshire County Council,ELECTRICAL ENERGY,26/07/2023,3951,Non System - Electricity,2201136547,"-106,431.82",EDF Energy Customers Ltd
http://statistics.data.gov.uk/id/local-authority/38,Oxfordshire County Council,Care Homes - Under 65 Memory & Cognition,12/07/2023,5686,,3111473162,"-78,092.89",MARIA MALLABAND CARE GROUP
http://statistics.data.gov.uk/id/local-authority/38,Oxfordshire County Council,Care Homes - Over 65 Memory & Cognition,12/07/2023,5687,,3111470562,"-63,499.04",Acacia Lodge Care Home
http://statistics.data.gov.uk/id/local-authority/38,Oxfordshire County Council,DEFECT REPAIRS,18/07/2023,5526,Payments to Private Contractors,2201132885,"-50,422.01",Milestone Infrastructure Limited
http://statistics.data.gov.uk/id/local-authority/38,Oxfordshire County Council,NURSERY ED FUND,13/07/2023,5537,Payments to Other Establishments,3111474982,"-48,145.97",Banbury School Day Nurse
http://statistics.data.gov.uk/id/local-authority/38,Oxfordshire County Council,NURSERY ED FUND,06/07/2023,5537,Payments to Other Establishments,3111468068,"-46,010.26",St Marys Day Nursery
http://statistics.data.gov.uk/id/local-authority/38,Oxfordshire County Council,Support at Home U65 Physical Support,12/07/2023,5688,,3111474039,"-43,906.33",H F TRUST LTD
http://statistics.data.gov.uk/id/local-authority/38,Oxfordshire County Council,Care Homes - Over 65 Physical Sypport,12/07/2023,5687,,3111471420,"-36,306.61",Freeland House
http://statistics.data.gov.uk/id/local-authority/38,Oxfordshire County Council,Continuing Care - Care Homes - 65+,12/07/2023,5687,,3111472900,"-35,882.16",The Langston
http://statistics.data.gov.uk/id/local-authority/38,Oxfordshire County Council,COMM DRAWDOWN FUNDNG,18/07/2023,8004,Design Consultant,2201132871,"-32,282.24",Milestone Infrastructure Limited
http://statistics.data.gov.uk/id/local-authority/38,Oxfordshire County Council,NURSERY ED FUND,06/07/2023,5537,Payments to Other Establishments,3111468069,"-27,381.24",Marcham Little Angels
http://statistics.data.gov.uk/id/local-authority/38,Oxfordshire County Council,COMM DRAWDOWN FUNDNG,21/07/2023,8004,Design Consultant,2201135321,"-21,801.91",Milestone Infrastructure Limited
http://statistics.data.gov.uk/id/local-authority/38,Oxfordshire County Council,NURSERY ED FUND,06/07/2023,5537,Payments to Other Establishments,3111468064,"-20,753.06",Peachcroft Pre-School
http://statistics.data.gov.uk/id/local-authority/38,Oxfordshire County Council,COMM DRAWDOWN FUNDNG,18/07/2023,8102,Payments to main contractor,2201132881,"-19,347.38",Milestone Infrastructure Limited
http://statistics.data.gov.uk/id/local-authority/38,Oxfordshire County Council,TRAFF SIGNALS MTCE,03/07/2023,4531,Materials,2201127359,"-18,650.00",Yunex Limited
http://statistics.data.gov.uk/id/local-authority/38,Oxfordshire County Council,TRAFF SIGNALS MTCE,03/07/2023,4531,Materials,2201127361,"-18,650.00",Yunex Limited
http://statistics.data.gov.uk/id/local-authority/38,Oxfordshire County Council,LANDLORD & TENANT,13/07/2023,4000,Council Tax,3111474647,"-17,181.97",Cherwell District Council
http://statistics.data.gov.uk/id/local-authority/38,Oxfordshire County Council,Funded Nursing Care  - Over 65,12/07/2023,5692,,3111473124,"-15,666.77",MARIA MALLABAND CARE GROUP
http://statistics.data.gov.uk/id/local-authority/38,Oxfordshire County Council,Funded Nursing Care  - Over 65,12/07/2023,5692,,3111473129,"-15,452.37",MARIA MALLABAND CARE GROUP
http://statistics.data.gov.uk/id/local-authority/38,Oxfordshire County Council,ICT Operations & Maintenance,17/07/2023,5072,Telephone - Equipment,2201132235,"-15,069.80",Vodafone
http://statistics.data.gov.uk/id/local-authority/38,Oxfordshire County Council,NURSERY ED FUND,06/07/2023,5537,Payments to Other Establishments,3111468072,"-14,289.05",Kidsunlimited Oxford Business Park
http://statistics.data.gov.uk/id/local-authority/38,Oxfordshire County Council,Care Homes - Over 65 Memory & Cognition,12/07/2023,5685,B*Cycle tracks,3111471221,"-14,063.08",Coxwell Hall & Mews Nursing Home
http://statistics.data.gov.uk/id/local-authority/38,Oxfordshire County Council,CHC Fast Track - Care Homes - Over 65,12/07/2023,5687,,3111474211,"-13,692.85",Orders of St John
http://statistics.data.gov.uk/id/local-authority/38,Oxfordshire County Council,Funded Nursing Care  - Over 65,12/07/2023,5692,,3111470508,"-12,449.06",ACER HEALTHCARE LTD
http://statistics.data.gov.uk/id/local-authority/38,Oxfordshire County Council,Care Homes - Over 65 Physical Sypport,12/07/2023,5687,,3111472776,"-12,318.49",The Grange Care Centre
http://statistics.data.gov.uk/id/local-authority/38,Oxfordshire County Council,Support at Home U65 Learning Disability,12/07/2023,5688,,3111473963,"-11,842.58",Autism at Kingwood Limited
http://statistics.data.gov.uk/id/local-authority/38,Oxfordshire County Council,High Cost INMSS Placements,07/07/2023,5537,Payments to Other Establishments,3111468328,"-11,097.38",Acorn Care & Education
http://statistics.data.gov.uk/id/local-authority/38,Oxfordshire County Council,Funded Nursing Care  - Over 65,12/07/2023,5692,,3111472431,"-11,044.50",SANCTUARY CARE PROPERTY (2) LTD
http://statistics.data.gov.uk/id/local-authority/38,Oxfordshire County Council,Support at Home U65 Learning Disability,18/07/2023,5688,,3111477451,"-10,979.93",The Brandon Trust
http://statistics.data.gov.uk/id/local-authority/38,Oxfordshire County Council,Funded Nursing Care  - Over 65,12/07/2023,5692,,3111471887,"-10,387.05",Huntercombe Hall Ltd
http://statistics.data.gov.uk/id/local-authority/38,Oxfordshire County Council,NURSERY ED FUND,06/07/2023,5537,Payments to Other Establishments,3111468067,"-10,196.28",Leafield Pre-School
http://statistics.data.gov.uk/id/local-authority/38,Oxfordshire County Council,NURSERY ED FUND,06/07/2023,5537,Payments to Other Establishments,3111468102,"-10,196.28",Leafield Pre-School
http://statistics.data.gov.uk/id/local-authority/38,Oxfordshire County Council,High Cost INMSS Placements,07/07/2023,5537,Payments to Other Establishments,3111468325,"-9,999.99",St Elizabeth�s Centre
http://statistics.data.gov.uk/id/local-authority/38,Oxfordshire County Council,High Cost INMSS Placements,07/07/2023,5537,Payments to Other Establishments,3111468326,"-9,999.99",St Elizabeth�s Centre
http://statistics.data.gov.uk/id/local-authority/38,Oxfordshire County Council,Support at Home 65+ Physical Support,12/07/2023,5686,,3111474205,"-9,827.46",Orders of St John
http://statistics.data.gov.uk/id/local-authority/38,Oxfordshire County Council,Funded Nursing Care  - Over 65,12/07/2023,5692,,3111472771,"-9,580.18",The Grange Care Centre
http://statistics.data.gov.uk/id/local-authority/38,Oxfordshire County Council,COMM DRAWDOWN FUNDNG,20/07/2023,8102,Payments to main contractor,2201134607,"-9,295.18",Milestone Infrastructure Limited
http://statistics.data.gov.uk/id/local-authority/38,Oxfordshire County Council,Support at Home 65+ Physical Support,18/07/2023,5693,,3111478250,"-8,611.85",Direct Link Care Ltd
http://statistics.data.gov.uk/id/local-authority/38,Oxfordshire County Council,Funded Nursing Care  - Over 65,12/07/2023,5692,,3111473262,"-8,414.69",Orders of St John
http://statistics.data.gov.uk/id/local-authority/38,Oxfordshire County Council,Funded Nursing Care  - Over 65,12/07/2023,5692,,3111470582,"-7,966.43",Acacia Lodge Care Home
http://statistics.data.gov.uk/id/local-authority/38,Oxfordshire County Council,Funded Nursing Care  - Over 65,12/07/2023,5692,,3111470596,"-7,577.93",Acacia Lodge Care Home
http://statistics.data.gov.uk/id/local-authority/38,Oxfordshire County Council,Funded Nursing Care  - Over 65,12/07/2023,5692,,3111472551,"-7,577.93",Stowford House
http://statistics.data.gov.uk/id/local-authority/38,Oxfordshire County Council,Funded Nursing Care  - Over 65,12/07/2023,5692,,3111470490,"-7,488.28",ACER HEALTHCARE LTD
http://statistics.data.gov.uk/id/local-authority/38,Oxfordshire County Council,Continuing Care - Care Homes - 65+,12/07/2023,5687,,3111473219,"-7,436.57",SANCTUARY CARE LTD
http://statistics.data.gov.uk/id/local-authority/38,Oxfordshire County Council,Care Homes - Over 65 Memory & Cognition,12/07/2023,5686,,3111474321,"-7,352.45",Orders of St John
http://statistics.data.gov.uk/id/local-authority/38,Oxfordshire County Council,Support at Home 65+ Physical Support,18/07/2023,5699,,3111477892,"-7,343.61",YOD Ltd
http://statistics.data.gov.uk/id/local-authority/38,Oxfordshire County Council,Funded Nursing Care  - Over 65,12/07/2023,5692,,3111470792,"-7,279.09",Bondcare (Henley) Ltd
http://statistics.data.gov.uk/id/local-authority/38,Oxfordshire County Council,CHC Fast Track - Care Homes - Over 65,12/07/2023,5687,,3111472185,"-7,057.14",Mill House Nursing Home
http://statistics.data.gov.uk/id/local-authority/38,Oxfordshire County Council,Support at Home 65+ Physical Support,12/07/2023,5685,B*Cycle tracks,3111471466,"-6,933.00",Freeland House
http://statistics.data.gov.uk/id/local-authority/38,Oxfordshire County Council,Care Homes - Under 65 Leaning Disability,12/07/2023,5686,,3111471288,"-6,749.45",DOLPHIN HOMES LTD
http://statistics.data.gov.uk/id/local-authority/38,Oxfordshire County Council,Care Homes - Over 65 Physical Sypport,12/07/2023,5686,,3111473676,"-6,692.29",Orders of St John
http://statistics.data.gov.uk/id/local-authority/38,Oxfordshire County Council,Funded Nursing Care  - Over 65,12/07/2023,5692,,3111470669,"-6,233.14",Banbury Heights Nursing Home
http://statistics.data.gov.uk/id/local-authority/38,Oxfordshire County Council,CHC Fast Track - Care Homes - Over 65,12/07/2023,5687,,3111472485,"-6,214.29",Barchester Healthcare Homes Ltd
http://statistics.data.gov.uk/id/local-authority/38,Oxfordshire County Council,Funded Nursing Care  - Over 65,12/07/2023,5692,,3111472787,"-6,173.37",The Grange Care Centre
http://statistics.data.gov.uk/id/local-authority/38,Oxfordshire County Council,Funded Nursing Care  - Over 65,12/07/2023,5692,,3111472546,"-6,143.49",Stowford House
http://statistics.data.gov.uk/id/local-authority/38,Oxfordshire County Council,Funded Nursing Care  - Over 65,12/07/2023,5692,,3111472024,"-5,934.30",Lincroft Meadow
http://statistics.data.gov.uk/id/local-authority/38,Oxfordshire County Council,Funded Nursing Care  - Over 65,12/07/2023,5692,,3111471249,"-5,725.11",CUMNOR HILL HOUSE
http://statistics.data.gov.uk/id/local-authority/38,Oxfordshire County Council,Funded Nursing Care  - Over 65,12/07/2023,5692,,3111470497,"-5,665.34",ACER HEALTHCARE LTD
http://statistics.data.gov.uk/id/local-authority/38,Oxfordshire County Council,Funded Nursing Care  - Over 65,12/07/2023,5692,,3111472412,"-5,665.34",SANCTUARY CARE PROPERTY (2) LTD
http://statistics.data.gov.uk/id/local-authority/38,Oxfordshire County Council,Care Homes - Over 65 Mental Health,12/07/2023,5687,,3111472844,"-5,620.90",Four Seasons (Headington) Ltd
http://statistics.data.gov.uk/id/local-authority/38,Oxfordshire County Council,Support at Home 65+ Physical Support,18/07/2023,5699,,3111477716,"-5,494.00",PLL Care Services
http://statistics.data.gov.uk/id/local-authority/38,Oxfordshire County Council,Support at Home 65+ Physical Support,12/07/2023,5685,B*Cycle tracks,3111470643,"-5,457.96",Elysium Neurological Services (Badb
http://statistics.data.gov.uk/id/local-authority/38,Oxfordshire County Council,COMM DRAWDOWN FUNDNG,18/07/2023,8102,Payments to main contractor,2201132874,"-5,312.03",Milestone Infrastructure Limited
http://statistics.data.gov.uk/id/local-authority/38,Oxfordshire County Council,Continuing Care - Care Homes - 65+,12/07/2023,5687,,3111473140,"-5,092.86",MARIA MALLABAND CARE GROUP
http://statistics.data.gov.uk/id/local-authority/38,Oxfordshire County Council,COMM DRAWDOWN FUNDNG,20/07/2023,8004,Design Consultant,2201134606,"-5,019.87",Milestone Infrastructure Limited
http://statistics.data.gov.uk/id/local-authority/38,Oxfordshire County Council,Funded Nursing Care  - Over 65,12/07/2023,5692,,3111470695,"-4,798.70",Banbury Heights Nursing Home
http://statistics.data.gov.uk/id/local-authority/38,Oxfordshire County Council,Continuing Care - Care Homes - 65+,12/07/2023,5687,,3111471915,"-4,780.57",The Julie Richardson Nursing Home
http://statistics.data.gov.uk/id/local-authority/38,Oxfordshire County Council,Funded Nursing Care  - Over 65,12/07/2023,5692,,3111471307,"-4,738.93",Oakland Wantage Care Home Limited
http://statistics.data.gov.uk/id/local-authority/38,Oxfordshire County Council,Funded Nursing Care  - Over 65,12/07/2023,5692,,3111473091,"-4,649.27",SANCTUARY CARE LTD
http://statistics.data.gov.uk/id/local-authority/38,Oxfordshire County Council,Funded Nursing Care  - Over 65,12/07/2023,5692,,3111472319,"-4,589.51",Penhurst Gardens
http://statistics.data.gov.uk/id/local-authority/38,Oxfordshire County Council,Care Homes - Over 65 Physical Sypport,12/07/2023,5687,,3111472962,"-4,452.14",The Triangle Nursing Home
http://statistics.data.gov.uk/id/local-authority/38,Oxfordshire County Council,Funded Nursing Care  - Over 65,12/07/2023,5692,,3111471694,"-4,380.32",HAMBERLEY CARE 2 LIMITED
http://statistics.data.gov.uk/id/local-authority/38,Oxfordshire County Council,Funded Nursing Care  - Over 65,12/07/2023,5692,,3111471320,"-4,320.55",Oakland Wantage Care Home Limited
http://statistics.data.gov.uk/id/local-authority/38,Oxfordshire County Council,Support at Home 65+ Physical Support,12/07/2023,5685,B*Cycle tracks,3111470876,"-4,288.09",METHODIST HOMES
http://statistics.data.gov.uk/id/local-authority/38,Oxfordshire County Council,Care Homes - Under 65 MH - OBC Contract,12/07/2023,5686,,3111470839,"-4,262.14",Brook House Residential
http://statistics.data.gov.uk/id/local-authority/38,Oxfordshire County Council,Funded Nursing Care  - Over 65,12/07/2023,5692,,3111473156,"-4,260.78",MARIA MALLABAND CARE GROUP
http://statistics.data.gov.uk/id/local-authority/38,Oxfordshire County Council,Care Homes - Over 65 Physical Sypport,12/07/2023,5687,,3111471412,"-4,231.56",Freeland House
http://statistics.data.gov.uk/id/local-authority/38,Oxfordshire County Council,BRIDGES GENERAL,18/07/2023,5526,Payments to Private Contractors,2201132876,"-4,217.98",Milestone Infrastructure Limited
http://statistics.data.gov.uk/id/local-authority/38,Oxfordshire County Council,Support at Home 65+ Learning Disability,18/07/2023,5688,,3111477380,"-4,120.54",The Brandon Trust
http://statistics.data.gov.uk/id/local-authority/38,Oxfordshire County Council,CHC Fast Track - Care Homes - Over 65,12/07/2023,5687,,3111472159,"-4,085.71",Mill House Nursing Home
http://statistics.data.gov.uk/id/local-authority/38,Oxfordshire County Council,Continuing Care - Care Homes - 65+,12/07/2023,5687,,3111470682,"-4,071.43",Banbury Heights Nursing Home
http://statistics.data.gov.uk/id/local-authority/38,Oxfordshire County Council,Care Homes - Over 65 Mental Health,12/07/2023,5686,,3111472690,"-4,071.43",THE BOLTONS CARE HOME LTD
http://statistics.data.gov.uk/id/local-authority/38,Oxfordshire County Council,Support at Home 65+ Memory & Cognition,12/07/2023,5685,B*Cycle tracks,3111470604,"-3,878.10",Acacia Lodge Care Home
http://statistics.data.gov.uk/id/local-authority/38,Oxfordshire County Council,Funded Nursing Care  - Over 65,12/07/2023,5692,,3111470751,"-3,842.40",CH (Benson) Limited
http://statistics.data.gov.uk/id/local-authority/38,Oxfordshire County Council,SEN Additional Funding,17/07/2023,5500,Payments to Other Local Authorities,3111475308,"-3,797.32",Lighthorne Heath Primary School
http://statistics.data.gov.uk/id/local-authority/38,Oxfordshire County Council,Reactive Maintenance,31/07/2023,4111,Security Costs,2201137394,"-3,778.73",Oxford Security Services Ltd
http://statistics.data.gov.uk/id/local-authority/38,Oxfordshire County Council,Care Homes - Over 65 Memory & Cognition,12/07/2023,5686,,3111474225,"-3,769.25",Orders of St John
http://statistics.data.gov.uk/id/local-authority/38,Oxfordshire County Council,Support at Home 65+ Physical Support,18/07/2023,5699,,3111477866,"-3,670.21",We-Care-Recruitment Ltd
http://statistics.data.gov.uk/id/local-authority/38,Oxfordshire County Council,CHC Fast Track - Care Homes - Over 65,12/07/2023,5687,,3111472045,"-3,600.00",Lincroft Meadow
http://statistics.data.gov.uk/id/local-authority/38,Oxfordshire County Council,Care Homes - Over 65 Memory & Cognition,12/07/2023,5685,B*Cycle tracks,3111473328,"-3,545.46",Orders of St John
http://statistics.data.gov.uk/id/local-authority/38,Oxfordshire County Council,Funded Nursing Care  - Over 65,12/07/2023,5692,,3111472269,"-3,545.23",Oxford Beaumont
http://statistics.data.gov.uk/id/local-authority/38,Oxfordshire County Council,Funded Nursing Care  - Over 65,12/07/2023,5692,,3111471880,"-3,453.91",Huntercombe Hall Ltd
http://statistics.data.gov.uk/id/local-authority/38,Oxfordshire County Council,Funded Nursing Care  - Over 65,12/07/2023,5692,,3111471701,"-3,424.02",HAMBERLEY CARE 2 LIMITED
http://statistics.data.gov.uk/id/local-authority/38,Oxfordshire County Council,Funded Nursing Care  - Over 65,12/07/2023,5692,,3111471931,"-3,424.02",The Julie Richardson Nursing Home
http://statistics.data.gov.uk/id/local-authority/38,Oxfordshire County Council,Care Homes - Over 65 Physical Sypport,12/07/2023,5685,B*Cycle tracks,3111470721,"-3,182.61",Beech Court Nursing Home
http://statistics.data.gov.uk/id/local-authority/38,Oxfordshire County Council,Care Homes - Over 65 Memory & Cognition,12/07/2023,5686,,3111472299,"-3,098.71",Fairholme House
http://statistics.data.gov.uk/id/local-authority/38,Oxfordshire County Council,,14/07/2023,1433,U/C Misc Payments,3111475166,"-3,033.80",SCANIA (GREAT BRITIAN) LTD
http://statistics.data.gov.uk/id/local-authority/38,Oxfordshire County Council,Adoption Service Overheads,14/07/2023,3980,Service Charges - Premises,2201131908,"-3,033.80",Wokingham Borough Council
http://statistics.data.gov.uk/id/local-authority/38,Oxfordshire County Council,Support at Home 65+ Physical Support,18/07/2023,5699,,3111477942,"-2,994.23",YOD Ltd
http://statistics.data.gov.uk/id/local-authority/38,Oxfordshire County Council,CHC Fast Track - Care Homes - Over 65,12/07/2023,5687,,3111472174,"-2,971.43",Mill House Nursing Home
http://statistics.data.gov.uk/id/local-authority/38,Oxfordshire County Council,Care Homes - Over 65 Physical Sypport,12/07/2023,5687,,3111470898,"-2,970.72",METHODIST HOMES
http://statistics.data.gov.uk/id/local-authority/38,Oxfordshire County Council,COMM DRAWDOWN FUNDNG,18/07/2023,8102,Payments to main contractor,2201132873,"-2,907.26",Milestone Infrastructure Limited
http://statistics.data.gov.uk/id/local-authority/38,Oxfordshire County Council,Support at Home 65+ Physical Support,18/07/2023,5699,,3111477147,"-2,902.67",Greigcare Home Service
http://statistics.data.gov.uk/id/local-authority/38,Oxfordshire County Council,Support at Home 65+ Memory & Cognition,12/07/2023,5686,,3111471954,"-2,892.86",Kirlena House
http://statistics.data.gov.uk/id/local-authority/38,Oxfordshire County Council,Care Homes - Over 65 Memory & Cognition,12/07/2023,5686,,3111470986,"-2,868.00",CARE UK COMMUNITY PARTNERSHIPS LIMI
http://statistics.data.gov.uk/id/local-authority/38,Oxfordshire County Council,Support at Home 65+ Physical Support,12/07/2023,5686,,3111473990,"-2,754.05",OSJ Contract - Stirlings
http://statistics.data.gov.uk/id/local-authority/38,Oxfordshire County Council,Funded Nursing Care  - Over 65,12/07/2023,5692,,3111472424,"-2,602.23",SANCTUARY CARE PROPERTY (2) LTD
http://statistics.data.gov.uk/id/local-authority/38,Oxfordshire County Council,Care Homes - Over 65 Physical Sypport,12/07/2023,5687,,3111472491,"-2,578.05",Barchester Healthcare Homes Ltd
http://statistics.data.gov.uk/id/local-authority/38,Oxfordshire County Council,Reactive Maintenance,28/07/2023,4111,Security Costs,2201137132,"-2,558.22",Oxford Security Services Ltd
http://statistics.data.gov.uk/id/local-authority/38,Oxfordshire County Council,NURSERY ED FUND,18/07/2023,5537,Payments to Other Establishments,3111475872,"-2,520.90",Little Oak Pre-School
http://statistics.data.gov.uk/id/local-authority/38,Oxfordshire County Council,Funded Nursing Care  - Over 65,12/07/2023,5692,,3111472046,"-2,416.80",Lincroft Meadow
http://statistics.data.gov.uk/id/local-authority/38,Oxfordshire County Council,Care Homes - Over 65 Memory & Cognition,12/07/2023,5687,,3111470892,"-2,414.29",METHODIST HOMES
http://statistics.data.gov.uk/id/local-authority/38,Oxfordshire County Council,Care Homes - Over 65 Memory & Cognition,12/07/2023,5685,B*Cycle tracks,3111473212,"-2,409.56",SANCTUARY CARE LTD
http://statistics.data.gov.uk/id/local-authority/38,Oxfordshire County Council,COMM DRAWDOWN FUNDNG,18/07/2023,8004,Design Consultant,2201132884,"-2,403.87",Milestone Infrastructure Limited
http://statistics.data.gov.uk/id/local-authority/38,Oxfordshire County Council,Support at Home U65 Learning Disability,12/07/2023,5688,,3111474007,"-2,339.39",H F TRUST LTD
http://statistics.data.gov.uk/id/local-authority/38,Oxfordshire County Council,CHC Fast Track - Care Homes - Over 65,12/07/2023,5687,,3111472169,"-2,228.57",Mill House Nursing Home
http://statistics.data.gov.uk/id/local-authority/38,Oxfordshire County Council,SIGNING & LINING,18/07/2023,5526,Payments to Private Contractors,2201132888,"-2,219.76",Milestone Infrastructure Limited
http://statistics.data.gov.uk/id/local-authority/38,Oxfordshire County Council,CHC Fast Track - Care Homes - Over 65,12/07/2023,5687,,3111473138,"-2,214.29",MARIA MALLABAND CARE GROUP
http://statistics.data.gov.uk/id/local-authority/38,Oxfordshire County Council,2 YEAR OLD FUNDING,18/07/2023,5537,Payments to Other Establishments,3111475698,"-2,178.00",Rainbow Pre-School
http://statistics.data.gov.uk/id/local-authority/38,Oxfordshire County Council,Care Homes - Over 65 Memory & Cognition,12/07/2023,5687,,3111474111,"-2,118.66",Orders of St John
http://statistics.data.gov.uk/id/local-authority/38,Oxfordshire County Council,Continuing Care - Care Homes - 65+,12/07/2023,5687,,3111471810,"-2,089.29",Heathfield House Nursing Home
http://statistics.data.gov.uk/id/local-authority/38,Oxfordshire County Council,CHC Fast Track - Care Homes - Over 65,12/07/2023,5687,,3111472168,"-2,042.86",Mill House Nursing Home
http://statistics.data.gov.uk/id/local-authority/38,Oxfordshire County Council,POST18 UASC DCSF FND,28/07/2023,5785,Client Lodgings and Accommodation,3111482193,"-2,036.50",Response Organisation
http://statistics.data.gov.uk/id/local-authority/38,Oxfordshire County Council,Care Homes - Over 65 Physical Sypport,12/07/2023,5687,,3111472751,"-2,030.08",The Grange Care Centre
http://statistics.data.gov.uk/id/local-authority/38,Oxfordshire County Council,Support at Home 65+ Learning Disability,18/07/2023,5688,,3111477253,"-1,963.08",The Brandon Trust
http://statistics.data.gov.uk/id/local-authority/38,Oxfordshire County Council,Care Homes - Over 65 Memory & Cognition,12/07/2023,5687,,3111470937,"-1,955.99",Grace Care Service Ltd T/A Burford
http://statistics.data.gov.uk/id/local-authority/38,Oxfordshire County Council,Support at Home 65+ Physical Support,18/07/2023,5699,,3111476678,"-1,888.56",CaringPlus Healthcare Services Ltd
http://statistics.data.gov.uk/id/local-authority/38,Oxfordshire County Council,Support at Home 65+ Physical Support,18/07/2023,5699,,3111477005,"-1,852.20",Direct Link Care Ltd
http://statistics.data.gov.uk/id/local-authority/38,Oxfordshire County Council,Care Homes - Over 65 Memory & Cognition,12/07/2023,5686,,3111472871,"-1,828.57",METHODIST HOMES
http://statistics.data.gov.uk/id/local-authority/38,Oxfordshire County Council,NURSERY ED FUND,14/07/2023,5537,Payments to Other Establishments,3111475190,"-1,827.00",Abingdon Kindergarten (Loyd Close)
http://statistics.data.gov.uk/id/local-authority/38,Oxfordshire County Council,NURSERY ED FUND,14/07/2023,5537,Payments to Other Establishments,3111475193,"-1,827.00",Abingdon Kindergarten (Loyd Close)
http://statistics.data.gov.uk/id/local-authority/38,Oxfordshire County Council,NURSERY ED FUND,14/07/2023,5537,Payments to Other Establishments,3111475194,"-1,827.00",Abingdon Kindergarten (Loyd Close)
http://statistics.data.gov.uk/id/local-authority/38,Oxfordshire County Council,NURSERY ED FUND,14/07/2023,5537,Payments to Other Establishments,3111475196,"-1,827.00",Abingdon Kindergarten (Loyd Close)
http://statistics.data.gov.uk/id/local-authority/38,Oxfordshire County Council,NURSERY ED FUND,14/07/2023,5537,Payments to Other Establishments,3111475197,"-1,827.00",Abingdon Kindergarten (Loyd Close)
http://statistics.data.gov.uk/id/local-authority/38,Oxfordshire County Council,NURSERY ED FUND,14/07/2023,5537,Payments to Other Establishments,3111475201,"-1,827.00",Abingdon Kindergarten (Loyd Close)
http://statistics.data.gov.uk/id/local-authority/38,Oxfordshire County Council,NURSERY ED FUND,14/07/2023,5537,Payments to Other Establishments,3111475208,"-1,827.00",Abingdon Kindergarten (Loyd Close)
http://statistics.data.gov.uk/id/local-authority/38,Oxfordshire County Council,Support at Home 65+ Physical Support,18/07/2023,5699,,3111477438,"-1,744.35",NKM Ltd
http://statistics.data.gov.uk/id/local-authority/38,Oxfordshire County Council,Support at Home 65+ Physical Support,18/07/2023,5689,,3111478157,"-1,730.62",Day & Night Care Assistance
http://statistics.data.gov.uk/id/local-authority/38,Oxfordshire County Council,Care Homes - Over 65 Physical Sypport,12/07/2023,5686,,3111471960,"-1,728.57",Kirlena House
http://statistics.data.gov.uk/id/local-authority/38,Oxfordshire County Council,Support at Home U65 Physical Support,12/07/2023,5686,,3111472209,"-1,728.57",Mon Choisy
http://statistics.data.gov.uk/id/local-authority/38,Oxfordshire County Council,NURSERY ED FUND,14/07/2023,5537,Payments to Other Establishments,3111475191,"-1,648.80",Abingdon Kindergarten (Loyd Close)
http://statistics.data.gov.uk/id/local-authority/38,Oxfordshire County Council,NURSERY ED FUND,14/07/2023,5537,Payments to Other Establishments,3111475209,"-1,648.80",Abingdon Kindergarten (Loyd Close)
http://statistics.data.gov.uk/id/local-authority/38,Oxfordshire County Council,NURSERY ED FUND,14/07/2023,5537,Payments to Other Establishments,3111475210,"-1,648.80",Abingdon Kindergarten (Loyd Close)
http://statistics.data.gov.uk/id/local-authority/38,Oxfordshire County Council,NURSERY ED FUND,14/07/2023,5537,Payments to Other Establishments,3111475212,"-1,648.80",Abingdon Kindergarten (Loyd Close)
http://statistics.data.gov.uk/id/local-authority/38,Oxfordshire County Council,NURSERY ED FUND,14/07/2023,5537,Payments to Other Establishments,3111475213,"-1,648.80",Abingdon Kindergarten (Loyd Close)
http://statistics.data.gov.uk/id/local-authority/38,Oxfordshire County Council,NURSERY ED FUND,14/07/2023,5537,Payments to Other Establishments,3111475217,"-1,648.80",Abingdon Kindergarten (Loyd Close)
http://statistics.data.gov.uk/id/local-authority/38,Oxfordshire County Council,NURSERY ED FUND,14/07/2023,5537,Payments to Other Establishments,3111475218,"-1,648.80",Abingdon Kindergarten (Loyd Close)
http://statistics.data.gov.uk/id/local-authority/38,Oxfordshire County Council,NURSERY ED FUND,14/07/2023,5537,Payments to Other Establishments,3111475222,"-1,648.80",Abingdon Kindergarten (Loyd Close)
http://statistics.data.gov.uk/id/local-authority/38,Oxfordshire County Council,NURSERY ED FUND,14/07/2023,5537,Payments to Other Establishments,3111475224,"-1,648.80",Abingdon Kindergarten (Loyd Close)
http://statistics.data.gov.uk/id/local-authority/38,Oxfordshire County Council,NURSERY ED FUND,14/07/2023,5537,Payments to Other Establishments,3111475226,"-1,648.80",Abingdon Kindergarten (Loyd Close)
http://statistics.data.gov.uk/id/local-authority/38,Oxfordshire County Council,NURSERY ED FUND,14/07/2023,5537,Payments to Other Establishments,3111475228,"-1,648.80",Abingdon Kindergarten (Loyd Close)
http://statistics.data.gov.uk/id/local-authority/38,Oxfordshire County Council,NURSERY ED FUND,14/07/2023,5537,Payments to Other Establishments,3111475230,"-1,648.80",Abingdon Kindergarten (Loyd Close)
http://statistics.data.gov.uk/id/local-authority/38,Oxfordshire County Council,NURSERY ED FUND,14/07/2023,5537,Payments to Other Establishments,3111475232,"-1,648.80",Abingdon Kindergarten (Loyd Close)
http://statistics.data.gov.uk/id/local-authority/38,Oxfordshire County Council,NURSERY ED FUND,14/07/2023,5537,Payments to Other Establishments,3111475236,"-1,648.80",Abingdon Kindergarten (Loyd Close)
http://statistics.data.gov.uk/id/local-authority/38,Oxfordshire County Council,NURSERY ED FUND,14/07/2023,5537,Payments to Other Establishments,3111475238,"-1,648.80",Abingdon Kindergarten (Loyd Close)
http://statistics.data.gov.uk/id/local-authority/38,Oxfordshire County Council,NURSERY ED FUND,18/07/2023,5537,Payments to Other Establishments,3111475632,"-1,648.80",Early Days Nursery Schoo
http://statistics.data.gov.uk/id/local-authority/38,Oxfordshire County Council,NURSERY ED FUND,18/07/2023,5537,Payments to Other Establishments,3111475633,"-1,648.80",Early Days Nursery Schoo
http://statistics.data.gov.uk/id/local-authority/38,Oxfordshire County Council,NURSERY ED FUND,18/07/2023,5537,Payments to Other Establishments,3111475918,"-1,648.80",Hadden Hill Nursery and Pre-School
http://statistics.data.gov.uk/id/local-authority/38,Oxfordshire County Council,CHC Fast Track - Care Homes - Over 65,12/07/2023,5687,,3111472634,"-1,645.00",St Lukes Nursing Home (Oxford)
http://statistics.data.gov.uk/id/local-authority/38,Oxfordshire County Council,Support at Home 65+ Physical Support,12/07/2023,5686,,3111474157,"-1,643.58",Orders of St John
http://statistics.data.gov.uk/id/local-authority/38,Oxfordshire County Council,Funded Nursing Care  - Over 65,12/07/2023,5692,,3111470763,"-1,632.13",Bondcare (Henley) Ltd
http://statistics.data.gov.uk/id/local-authority/38,Oxfordshire County Council,Funded Nursing Care  - Over 65,12/07/2023,5692,,3111472279,"-1,632.13",Oxford Beaumont
http://statistics.data.gov.uk/id/local-authority/38,Oxfordshire County Council,Care Homes - Over 65 Physical Sypport,12/07/2023,5686,,3111471740,"-1,585.93",Cedar Court Care Home
http://statistics.data.gov.uk/id/local-authority/38,Oxfordshire County Council,NURSERY ED FUND,18/07/2023,5537,Payments to Other Establishments,3111475652,"-1,580.16",Early Days Nursery Schoo
http://statistics.data.gov.uk/id/local-authority/38,Oxfordshire County Council,HSF Welfare Support Grant & FSM support,19/07/2023,4939,,3111479432,"-1,575.00","King Alfred's School, Wantage"
http://statistics.data.gov.uk/id/local-authority/38,Oxfordshire County Council,Support at Home 65+ Physical Support,18/07/2023,5698,,3111478191,"-1,555.88",Day & Night Care Assistance
http://statistics.data.gov.uk/id/local-authority/38,Oxfordshire County Council,NURSERY ED FUND,14/07/2023,5537,Payments to Other Establishments,3111475211,"-1,538.88",Abingdon Kindergarten (Loyd Close)
http://statistics.data.gov.uk/id/local-authority/38,Oxfordshire County Council,OXFORD LOCALITY,18/07/2023,5526,Payments to Private Contractors,2201132890,"-1,521.50",Milestone Infrastructure Limited
http://statistics.data.gov.uk/id/local-authority/38,Oxfordshire County Council,Support at Home 65+ Physical Support,12/07/2023,5685,B*Cycle tracks,3111471568,"-1,517.52",GCH (St Katherines) Ltd
http://statistics.data.gov.uk/id/local-authority/38,Oxfordshire County Council,Care Homes - Over 65 Physical Sypport,12/07/2023,5685,B*Cycle tracks,3111473164,"-1,517.52",MARIA MALLABAND CARE GROUP
http://statistics.data.gov.uk/id/local-authority/38,Oxfordshire County Council,INCIDENT RESPONSE,20/07/2023,5526,Payments to Private Contractors,2201134609,"-1,511.84",Milestone Infrastructure Limited
http://statistics.data.gov.uk/id/local-authority/38,Oxfordshire County Council,PROCUREMENT,05/07/2023,4685,Clothing and Uniforms,2201128818,"-1,500.00",BRISTOL UNIFORMS LTD
http://statistics.data.gov.uk/id/local-authority/38,Oxfordshire County Council,NURSERY ED FUND,18/07/2023,5962,General Support Service and LMS Expenditure,3111476088,"-1,497.71",St Michael's CofE Primary School Ox
http://statistics.data.gov.uk/id/local-authority/38,Oxfordshire County Council,Care Homes - Over 65 Mental Health,12/07/2023,5687,,3111471424,"-1,489.31",Freeland House
http://statistics.data.gov.uk/id/local-authority/38,Oxfordshire County Council,CHC Fast Track - Care Homes - Over 65,12/07/2023,5687,,3111470624,"-1,485.71",Didcot Care Home Ltd
http://statistics.data.gov.uk/id/local-authority/38,Oxfordshire County Council,Care Homes - Over 65 Physical Sypport,12/07/2023,5686,,3111474035,"-1,476.86",OSJ Contract - Stirlings
http://statistics.data.gov.uk/id/local-authority/38,Oxfordshire County Council,NURSERY ED FUND,18/07/2023,5537,Payments to Other Establishments,3111475644,"-1,415.28",Early Days Nursery Schoo
http://statistics.data.gov.uk/id/local-authority/38,Oxfordshire County Council,BRIDGES GENERAL,05/07/2023,5526,Payments to Private Contractors,2201128816,"-1,409.26",Milestone Infrastructure Limited
http://statistics.data.gov.uk/id/local-authority/38,Oxfordshire County Council,Support at Home 65+ Memory & Cognition,12/07/2023,5690,,3111470097,"-1,383.36",Cholsey Day Centre Trust
http://statistics.data.gov.uk/id/local-authority/38,Oxfordshire County Council,NURSERY ED FUND,18/07/2023,5537,Payments to Other Establishments,3111475635,"-1,360.32",Early Days Nursery Schoo
http://statistics.data.gov.uk/id/local-authority/38,Oxfordshire County Council,Care Homes - Under 65 Mental Health,12/07/2023,5687,,3111472684,"-1,355.00",Tall Trees
http://statistics.data.gov.uk/id/local-authority/38,Oxfordshire County Council,Funded Nursing Care  - Over 65,12/07/2023,5692,,3111472823,"-1,349.64",Four Seasons (Headington) Ltd
http://statistics.data.gov.uk/id/local-authority/38,Oxfordshire County Council,NURSERY ED FUND,18/07/2023,5537,Payments to Other Establishments,3111475631,"-1,346.52",Early Days Nursery Schoo
http://statistics.data.gov.uk/id/local-authority/38,Oxfordshire County Council,Support at Home 65+ Physical Support,18/07/2023,5699,,3111477613,"-1,346.03",PLL Care Services
http://statistics.data.gov.uk/id/local-authority/38,Oxfordshire County Council,ICT Operations & Maintenance,20/07/2023,5072,Telephone - Equipment,2201134602,"-1,337.16",Vodafone
http://statistics.data.gov.uk/id/local-authority/38,Oxfordshire County Council,House Project,28/07/2023,5785,Client Lodgings and Accommodation,3111482240,"-1,330.00",Response Organisation
http://statistics.data.gov.uk/id/local-authority/38,Oxfordshire County Council,Care Homes - Over 65 Physical Sypport,12/07/2023,5686,,3111471974,"-1,323.57",Leafield Rest Home
http://statistics.data.gov.uk/id/local-authority/38,Oxfordshire County Council,Care Homes - Over 65 Physical Sypport,12/07/2023,5687,,3111472949,"-1,310.95",The Triangle Nursing Home
http://statistics.data.gov.uk/id/local-authority/38,Oxfordshire County Council,Support at Home 65+ Physical Support,18/07/2023,5699,,3111477979,"-1,300.76",All Care GB Ltd
http://statistics.data.gov.uk/id/local-authority/38,Oxfordshire County Council,NURSERY ED FUND,14/07/2023,5537,Payments to Other Establishments,3111475223,"-1,282.40",Abingdon Kindergarten (Loyd Close)
http://statistics.data.gov.uk/id/local-authority/38,Oxfordshire County Council,NURSERY ED FUND,18/07/2023,5537,Payments to Other Establishments,3111475898,"-1,264.08",Ascott-under-Wychwood Pre-School
http://statistics.data.gov.uk/id/local-authority/38,Oxfordshire County Council,2 YEAR OLD FUNDING,14/07/2023,5537,Payments to Other Establishments,3111475202,"-1,236.90",Abingdon Kindergarten (Loyd Close)
http://statistics.data.gov.uk/id/local-authority/38,Oxfordshire County Council,2 YEAR OLD FUNDING,14/07/2023,5537,Payments to Other Establishments,3111475203,"-1,236.90",Abingdon Kindergarten (Loyd Close)
http://statistics.data.gov.uk/id/local-authority/38,Oxfordshire County Council,2 YEAR OLD FUNDING,14/07/2023,5537,Payments to Other Establishments,3111475206,"-1,236.90",Abingdon Kindergarten (Loyd Close)
http://statistics.data.gov.uk/id/local-authority/38,Oxfordshire County Council,Support at Home 65+ Physical Support,18/07/2023,5699,,3111477685,"-1,236.15",PLL Care Services
http://statistics.data.gov.uk/id/local-authority/38,Oxfordshire County Council,NURSERY ED FUND,18/07/2023,5537,Payments to Other Establishments,3111475945,"-1,231.08",Positive Steps Day Nursery
http://statistics.data.gov.uk/id/local-authority/38,Oxfordshire County Council,NURSERY ED FUND,18/07/2023,5537,Payments to Other Establishments,3111475642,"-1,209.12",Early Days Nursery Schoo
http://statistics.data.gov.uk/id/local-authority/38,Oxfordshire County Council,NURSERY ED FUND,18/07/2023,5537,Payments to Other Establishments,3111475634,"-1,167.96",Early Days Nursery Schoo
http://statistics.data.gov.uk/id/local-authority/38,Oxfordshire County Council,Reactive Maintenance,07/07/2023,3787,Premises Repairs,2201129812,"-1,159.94",Aspect Contracts Limited
http://statistics.data.gov.uk/id/local-authority/38,Oxfordshire County Council,Care Homes - Over 65 Memory & Cognition,12/07/2023,5686,,3111471080,"-1,157.14",Cheney House Care Home
http://statistics.data.gov.uk/id/local-authority/38,Oxfordshire County Council,NURSERY ED FUND,18/07/2023,5962,General Support Service and LMS Expenditure,3111476084,"-1,154.16",St Michael's CofE Primary School Ox
http://statistics.data.gov.uk/id/local-authority/38,Oxfordshire County Council,NURSERY ED FUND,18/07/2023,5537,Payments to Other Establishments,3111475641,"-1,126.68",Early Days Nursery Schoo
http://statistics.data.gov.uk/id/local-authority/38,Oxfordshire County Council,2 YEAR OLD FUNDING,14/07/2023,5537,Payments to Other Establishments,3111475195,"-1,117.80",Abingdon Kindergarten (Loyd Close)
http://statistics.data.gov.uk/id/local-authority/38,Oxfordshire County Council,2 YEAR OLD FUNDING,14/07/2023,5537,Payments to Other Establishments,3111475248,"-1,117.80",Abingdon Kindergarten (Loyd Close)
http://statistics.data.gov.uk/id/local-authority/38,Oxfordshire County Council,2 YEAR OLD FUNDING,18/07/2023,5537,Payments to Other Establishments,3111476051,"-1,117.80",New Marston Primary School
http://statistics.data.gov.uk/id/local-authority/38,Oxfordshire County Council,Hospital Discharge and Reablement,18/07/2023,5699,,3111476893,"-1,109.18",Day and Nightcare Assistance
http://statistics.data.gov.uk/id/local-authority/38,Oxfordshire County Council,NURSERY ED FUND,18/07/2023,5537,Payments to Other Establishments,3111475638,"-1,099.20",Early Days Nursery Schoo
http://statistics.data.gov.uk/id/local-authority/38,Oxfordshire County Council,Support at Home 65+ Physical Support,12/07/2023,5686,,3111473592,"-1,088.92",Orders of St John
http://statistics.data.gov.uk/id/local-authority/38,Oxfordshire County Council,NURSERY ED FUND,18/07/2023,5537,Payments to Other Establishments,3111475640,"-1,058.04",Early Days Nursery Schoo
http://statistics.data.gov.uk/id/local-authority/38,Oxfordshire County Council,NURSERY ED FUND,18/07/2023,5537,Payments to Other Establishments,3111476016,"-1,057.98",St Nicholas CE Infants'School
http://statistics.data.gov.uk/id/local-authority/38,Oxfordshire County Council,NURSERY ED FUND,18/07/2023,5537,Payments to Other Establishments,3111475992,"-1,053.40",The Treehouse Thame Limited
http://statistics.data.gov.uk/id/local-authority/38,Oxfordshire County Council,COMM DRAWDOWN FUNDNG,17/07/2023,8003,B*Consulting Engineers,2201132260,"-1,046.98",Faithful & Gould
http://statistics.data.gov.uk/id/local-authority/38,Oxfordshire County Council,NURSERY ED FUND,12/07/2023,5537,Payments to Other Establishments,3111474540,"-1,044.00",Banbury School Day Nurse
http://statistics.data.gov.uk/id/local-authority/38,Oxfordshire County Council,NURSERY ED FUND,18/07/2023,5537,Payments to Other Establishments,3111475906,"-1,020.60",Lake Street Nursery
http://statistics.data.gov.uk/id/local-authority/38,Oxfordshire County Council,NURSERY ED FUND,18/07/2023,5537,Payments to Other Establishments,3111475980,"-1,020.60",Willowcroft Community School
http://statistics.data.gov.uk/id/local-authority/38,Oxfordshire County Council,Oxfordshire Adoption Support Fund,13/07/2023,4861,Hired and Contracted Services,2201131618,"-1,016.00",Music Therapy Wiltshire
http://statistics.data.gov.uk/id/local-authority/38,Oxfordshire County Council,Oxfordshire Adoption Support Fund,17/07/2023,4861,Hired and Contracted Services,2201132692,"-1,016.00",Music Therapy Wiltshire
http://statistics.data.gov.uk/id/local-authority/38,Oxfordshire County Council,PROCUREMENT,05/07/2023,4685,Clothing and Uniforms,2201128367,"-1,000.00",BRISTOL UNIFORMS LTD
http://statistics.data.gov.uk/id/local-authority/38,Oxfordshire County Council,ACADEMY CONVERTOR DEFICITS,12/07/2023,3950,Non System - Gas,3111474485,-980.03,Total Gas & Power Ltd
http://statistics.data.gov.uk/id/local-authority/38,Oxfordshire County Council,NURSERY ED FUND,14/07/2023,5537,Payments to Other Establishments,3111475221,-961.8,Abingdon Kindergarten (Loyd Close)
http://statistics.data.gov.uk/id/local-authority/38,Oxfordshire County Council,NURSERY ED FUND,14/07/2023,5537,Payments to Other Establishments,3111475246,-961.8,Abingdon Kindergarten (Loyd Close)
http://statistics.data.gov.uk/id/local-authority/38,Oxfordshire County Council,NURSERY ED FUND,18/07/2023,5537,Payments to Other Establishments,3111475899,-961.8,Culham Nursery and Pre-School
http://statistics.data.gov.uk/id/local-authority/38,Oxfordshire County Council,ICT Operations & Maintenance,05/07/2023,5039,ICT Services,2201128567,-927.4,8 * 8 UK Limited
http://statistics.data.gov.uk/id/local-authority/38,Oxfordshire County Council,Care Homes - Over 65 Physical Sypport,12/07/2023,5686,,3111473526,-925.59,Orders of St John
http://statistics.data.gov.uk/id/local-authority/38,Oxfordshire County Council,NURSERY ED FUND,14/07/2023,5537,Payments to Other Establishments,3111475189,-913.5,Abingdon Kindergarten (Loyd Close)
http://statistics.data.gov.uk/id/local-authority/38,Oxfordshire County Council,NURSERY ED FUND,14/07/2023,5537,Payments to Other Establishments,3111475199,-913.5,Abingdon Kindergarten (Loyd Close)
http://statistics.data.gov.uk/id/local-authority/38,Oxfordshire County Council,NURSERY ED FUND,14/07/2023,5537,Payments to Other Establishments,3111475200,-913.5,Abingdon Kindergarten (Loyd Close)
http://statistics.data.gov.uk/id/local-authority/38,Oxfordshire County Council,NURSERY ED FUND,14/07/2023,5537,Payments to Other Establishments,3111475204,-913.5,Abingdon Kindergarten (Loyd Close)
http://statistics.data.gov.uk/id/local-authority/38,Oxfordshire County Council,NURSERY ED FUND,14/07/2023,5537,Payments to Other Establishments,3111475207,-913.5,Abingdon Kindergarten (Loyd Close)
http://statistics.data.gov.uk/id/local-authority/38,Oxfordshire County Council,Support at Home 65+ Physical Support,18/07/2023,5699,,3111477954,-906.51,Agincare UK Ltd
http://statistics.data.gov.uk/id/local-authority/38,Oxfordshire County Council,ENV & RES EFF STAFF,24/07/2023,4861,Hired and Contracted Services,2201135939,-890.77,FAITHFUL & GOULD
http://statistics.data.gov.uk/id/local-authority/38,Oxfordshire County Council,Support at Home U65 Mental Health,18/07/2023,5699,,3111477425,-879.04,NKM Ltd
http://statistics.data.gov.uk/id/local-authority/38,Oxfordshire County Council,Support at Home 65+ Physical Support,18/07/2023,5699,,3111477693,-865.31,PLL Care Services
http://statistics.data.gov.uk/id/local-authority/38,Oxfordshire County Council,CHERWELL & WEST,20/07/2023,5526,Payments to Private Contractors,2201134605,-862.66,Milestone Infrastructure Limited
http://statistics.data.gov.uk/id/local-authority/38,Oxfordshire County Council,Care Homes - Under 65 Leaning Disability,12/07/2023,5687,,3111472982,-855.86,Valorum Care Limited
http://statistics.data.gov.uk/id/local-authority/38,Oxfordshire County Council,HSF Welfare Support Grant & FSM support,19/07/2023,4939,,3111479437,-840,Lord Williams's School
http://statistics.data.gov.uk/id/local-authority/38,Oxfordshire County Council,NURSERY ED FUND,14/07/2023,5537,Payments to Other Establishments,3111475215,-824.4,Abingdon Kindergarten (Loyd Close)
http://statistics.data.gov.uk/id/local-authority/38,Oxfordshire County Council,NURSERY ED FUND,14/07/2023,5537,Payments to Other Establishments,3111475216,-824.4,Abingdon Kindergarten (Loyd Close)
http://statistics.data.gov.uk/id/local-authority/38,Oxfordshire County Council,NURSERY ED FUND,14/07/2023,5537,Payments to Other Establishments,3111475219,-824.4,Abingdon Kindergarten (Loyd Close)
http://statistics.data.gov.uk/id/local-authority/38,Oxfordshire County Council,NURSERY ED FUND,14/07/2023,5537,Payments to Other Establishments,3111475225,-824.4,Abingdon Kindergarten (Loyd Close)
http://statistics.data.gov.uk/id/local-authority/38,Oxfordshire County Council,NURSERY ED FUND,14/07/2023,5537,Payments to Other Establishments,3111475227,-824.4,Abingdon Kindergarten (Loyd Close)
http://statistics.data.gov.uk/id/local-authority/38,Oxfordshire County Council,NURSERY ED FUND,14/07/2023,5537,Payments to Other Establishments,3111475234,-824.4,Abingdon Kindergarten (Loyd Close)
http://statistics.data.gov.uk/id/local-authority/38,Oxfordshire County Council,NURSERY ED FUND,18/07/2023,5537,Payments to Other Establishments,3111475884,-824.4,Ascott-under-Wychwood Pre-School
http://statistics.data.gov.uk/id/local-authority/38,Oxfordshire County Council,NURSERY ED FUND,18/07/2023,5537,Payments to Other Establishments,3111475629,-824.4,Balliol Day Nursery
http://statistics.data.gov.uk/id/local-authority/38,Oxfordshire County Council,NURSERY ED FUND,18/07/2023,5537,Payments to Other Establishments,3111475889,-824.4,Bubbles Pre School
http://statistics.data.gov.uk/id/local-authority/38,Oxfordshire County Council,NURSERY ED FUND,18/07/2023,5537,Payments to Other Establishments,3111476058,-824.4,Christopher Rawlins Primary School
http://statistics.data.gov.uk/id/local-authority/38,Oxfordshire County Council,NURSERY ED FUND,18/07/2023,5537,Payments to Other Establishments,3111475905,-824.4,Complete Childcare Ltd
http://statistics.data.gov.uk/id/local-authority/38,Oxfordshire County Council,NURSERY ED FUND,18/07/2023,5537,Payments to Other Establishments,3111475840,-824.4,Culham Nursery and Pre-School
http://statistics.data.gov.uk/id/local-authority/38,Oxfordshire County Council,NURSERY ED FUND,18/07/2023,5537,Payments to Other Establishments,3111475851,-824.4,Culham Nursery and Pre-School
http://statistics.data.gov.uk/id/local-authority/38,Oxfordshire County Council,NURSERY ED FUND,18/07/2023,5537,Payments to Other Establishments,3111475947,-824.4,Positive Steps Day Nursery
http://statistics.data.gov.uk/id/local-authority/38,Oxfordshire County Council,NURSERY ED FUND,18/07/2023,5537,Payments to Other Establishments,3111475722,-824.4,Sacred Heart Pre-School
http://statistics.data.gov.uk/id/local-authority/38,Oxfordshire County Council,NURSERY ED FUND,18/07/2023,5537,Payments to Other Establishments,3111475925,-824.4,Scamps of Benson Ltd
http://statistics.data.gov.uk/id/local-authority/38,Oxfordshire County Council,NURSERY ED FUND,18/07/2023,5537,Payments to Other Establishments,3111475927,-824.4,Scamps of Benson Ltd
http://statistics.data.gov.uk/id/local-authority/38,Oxfordshire County Council,NURSERY ED FUND,18/07/2023,5537,Payments to Other Establishments,3111475928,-824.4,Scamps of Benson Ltd
http://statistics.data.gov.uk/id/local-authority/38,Oxfordshire County Council,NURSERY ED FUND,18/07/2023,5962,General Support Service and LMS Expenditure,3111476082,-824.4,St Michael's CofE Primary School Ox
http://statistics.data.gov.uk/id/local-authority/38,Oxfordshire County Council,NURSERY ED FUND,18/07/2023,5962,General Support Service and LMS Expenditure,3111476092,-824.4,St Michael's CofE Primary School Ox
http://statistics.data.gov.uk/id/local-authority/38,Oxfordshire County Council,NURSERY ED FUND,18/07/2023,5537,Payments to Other Establishments,3111475950,-818.88,Positive Steps Day Nursery
http://statistics.data.gov.uk/id/local-authority/38,Oxfordshire County Council,COMM DRAWDOWN FUNDNG,20/07/2023,8004,Design Consultant,2201134618,-815.99,Milestone Infrastructure Limited
http://statistics.data.gov.uk/id/local-authority/38,Oxfordshire County Council,NURSERY ED FUND,18/07/2023,5537,Payments to Other Establishments,3111475673,-801.5,Little Acorns
http://statistics.data.gov.uk/id/local-authority/38,Oxfordshire County Council,Support at Home 65+ Physical Support,18/07/2023,5698,,3111478190,-795.23,Day & Night Care Assistance
http://statistics.data.gov.uk/id/local-authority/38,Oxfordshire County Council,Support at Home 65+ Memory & Cognition,12/07/2023,5686,,3111473847,-794,Orders of St John
http://statistics.data.gov.uk/id/local-authority/38,Oxfordshire County Council,Support at Home U65 Physical Support,18/07/2023,5699,,3111476533,-793.8,Calvary Care Ltd
http://statistics.data.gov.uk/id/local-authority/38,Oxfordshire County Council,Support at Home 65+ Physical Support,18/07/2023,5699,,3111476955,-793.8,Direct Link Care Ltd
http://statistics.data.gov.uk/id/local-authority/38,Oxfordshire County Council,Support at Home 65+ Physical Support,18/07/2023,5689,,3111478524,-769.1,Pechiv Ltd
http://statistics.data.gov.uk/id/local-authority/38,Oxfordshire County Council,NURSERY ED FUND,18/07/2023,5537,Payments to Other Establishments,3111475917,-755.7,Joscas Preparatory School
http://statistics.data.gov.uk/id/local-authority/38,Oxfordshire County Council,NURSERY ED FUND,18/07/2023,5537,Payments to Other Establishments,3111475724,-737.38,Cholsey Pre-School (PFSU)
http://statistics.data.gov.uk/id/local-authority/38,Oxfordshire County Council,HSF Welfare Support Grant & FSM support,19/07/2023,4939,,3111479417,-735,Fitzharrys School
http://statistics.data.gov.uk/id/local-authority/38,Oxfordshire County Council,MAINSTREAM-SECONDARY,12/07/2023,4330,Transport to School Activities,3111469534,-720,Charlton on Otmoor Services
http://statistics.data.gov.uk/id/local-authority/38,Oxfordshire County Council,NURSERY ED FUND,14/07/2023,5537,Payments to Other Establishments,3111475192,-717.75,Abingdon Kindergarten (Loyd Close)
http://statistics.data.gov.uk/id/local-authority/38,Oxfordshire County Council,Support at Home 65+ Physical Support,18/07/2023,5699,,3111476977,-705.6,Direct Link Care Ltd
http://statistics.data.gov.uk/id/local-authority/38,Oxfordshire County Council,Support at Home 65+ Physical Support,18/07/2023,5698,,3111478221,-691.5,Day & Night Care Assistance
http://statistics.data.gov.uk/id/local-authority/38,Oxfordshire County Council,L&D CORE PROGRAMME,20/07/2023,3100,Educational and Vocational Training,2201135199,-690,Premier Partnership
http://statistics.data.gov.uk/id/local-authority/38,Oxfordshire County Council,NURSERY ED FUND,18/07/2023,5537,Payments to Other Establishments,3111475649,-687,Early Days Nursery Schoo
http://statistics.data.gov.uk/id/local-authority/38,Oxfordshire County Council,NURSERY ED FUND,18/07/2023,5537,Payments to Other Establishments,3111476096,-687,RAFA Kidz Brize Norton
http://statistics.data.gov.uk/id/local-authority/38,Oxfordshire County Council,NURSERY ED FUND,18/07/2023,5962,General Support Service and LMS Expenditure,3111476086,-687,St Michael's CofE Primary School Ox
http://statistics.data.gov.uk/id/local-authority/38,Oxfordshire County Council,Support at Home 65+ Memory & Cognition,18/07/2023,5699,,3111477312,-685.85,KCARE NURSING AGENCY
http://statistics.data.gov.uk/id/local-authority/38,Oxfordshire County Council,Health Acquired Brain Injury C Homes 65+,06/07/2023,5691,,3111468046,-675,Orchard House (Harwell)
http://statistics.data.gov.uk/id/local-authority/38,Oxfordshire County Council,NURSERY ED FUND,14/07/2023,5537,Payments to Other Establishments,3111475220,-659.52,Abingdon Kindergarten (Loyd Close)
http://statistics.data.gov.uk/id/local-authority/38,Oxfordshire County Council,NURSERY ED FUND,18/07/2023,5537,Payments to Other Establishments,3111475888,-659.52,Ascott-under-Wychwood Pre-School
http://statistics.data.gov.uk/id/local-authority/38,Oxfordshire County Council,NURSERY ED FUND,18/07/2023,5537,Payments to Other Establishments,3111475943,-659.52,Positive Steps Day Nursery
http://statistics.data.gov.uk/id/local-authority/38,Oxfordshire County Council,NURSERY ED FUND,18/07/2023,5537,Payments to Other Establishments,3111475946,-659.52,Positive Steps Day Nursery
http://statistics.data.gov.uk/id/local-authority/38,Oxfordshire County Council,NURSERY ED FUND,18/07/2023,5537,Payments to Other Establishments,3111475926,-659.52,Scamps of Benson Ltd
http://statistics.data.gov.uk/id/local-authority/38,Oxfordshire County Council,Funded Nursing Care  - Over 65,12/07/2023,5692,,3111472376,-659.13,RICHMOND VILLAGE WITNEY
http://statistics.data.gov.uk/id/local-authority/38,Oxfordshire County Council,SEN Inclusion Fund,18/07/2023,5537,Payments to Other Establishments,3111475721,-654.5,Farmhouse Nursery School
http://statistics.data.gov.uk/id/local-authority/38,Oxfordshire County Council,ARAP Around Care,26/07/2023,4330,Transport to School Activities,3111481794,-650,007 Taxi Limited
http://statistics.data.gov.uk/id/local-authority/38,Oxfordshire County Council,Support at Home 65+ Physical Support,18/07/2023,5699,,3111476401,-631.81,Alina Homecare Ltd
http://statistics.data.gov.uk/id/local-authority/38,Oxfordshire County Council,NURSERY ED FUND,18/07/2023,5537,Payments to Other Establishments,3111475630,-629.52,Early Days Nursery Schoo
http://statistics.data.gov.uk/id/local-authority/38,Oxfordshire County Council,Health Acquired Brain Injury C Homes 65+,06/07/2023,5691,,3111468048,-620.1,Orchard House (Harwell)
http://statistics.data.gov.uk/id/local-authority/38,Oxfordshire County Council,NURSERY ED FUND,18/07/2023,5537,Payments to Other Establishments,3111475869,-601.16,Kirtlington Pre-School (PFSU)
http://statistics.data.gov.uk/id/local-authority/38,Oxfordshire County Council,POST18 UASC DCSF FND,11/07/2023,5365,Non-Staff Subsistence and Expenses,9300060590,-600.19,OCC SS Oxford City Div 1 Cash
http://statistics.data.gov.uk/id/local-authority/38,Oxfordshire County Council,Funded Nursing Care  - Over 65,12/07/2023,5692,,3111472374,-596.36,Richmond Letcombe Regis
http://statistics.data.gov.uk/id/local-authority/38,Oxfordshire County Council,Early Years Pupil Premium,18/07/2023,5537,Payments to Other Establishments,3111476045,-595.35,Tackley COFE Primary School
http://statistics.data.gov.uk/id/local-authority/38,Oxfordshire County Council,Community Support Service Central costs,03/07/2023,4270,HTM / Other Vehicle - Hire Charges,2201127371,-588.7,Fleet Hire Limited
http://statistics.data.gov.uk/id/local-authority/38,Oxfordshire County Council,Community Support Service Central costs,03/07/2023,4270,HTM / Other Vehicle - Hire Charges,2201127372,-588.7,Fleet Hire Limited
http://statistics.data.gov.uk/id/local-authority/38,Oxfordshire County Council,Support at Home 65+ Physical Support,18/07/2023,5699,,3111476649,-576.87,Care Outlook Ltd
http://statistics.data.gov.uk/id/local-authority/38,Oxfordshire County Council,Support at Home 65+ Physical Support,18/07/2023,5699,,3111477622,-576.87,PLL Care Services
http://statistics.data.gov.uk/id/local-authority/38,Oxfordshire County Council,Support at Home 65+ Physical Support,18/07/2023,5689,,3111478333,-555.8,Greigcare Home Service
http://statistics.data.gov.uk/id/local-authority/38,Oxfordshire County Council,Health Acquired Brain Injury C Homes 65+,06/07/2023,5691,,3111468050,-551.2,Orchard House (Harwell)
http://statistics.data.gov.uk/id/local-authority/38,Oxfordshire County Council,LEGAL BUDGET,04/07/2023,5251,Legal Costs,2201128182,-542.12,Willow Tree Psychology Ltd
http://statistics.data.gov.uk/id/local-authority/38,Oxfordshire County Council,NURSERY ED FUND,06/07/2023,5537,Payments to Other Establishments,3111468065,-527.62,Katie Rebecca Hoare Childminder
http://statistics.data.gov.uk/id/local-authority/38,Oxfordshire County Council,NURSERY ED FUND,18/07/2023,5537,Payments to Other Establishments,3111475876,-504.98,Ascott-under-Wychwood Pre-School
http://statistics.data.gov.uk/id/local-authority/38,Oxfordshire County Council,COMM DRAWDOWN FUNDNG,18/07/2023,8004,Design Consultant,2201132878,-503.27,Milestone Infrastructure Limited
http://statistics.data.gov.uk/id/local-authority/38,Oxfordshire County Council,Funded Nursing Care  - Over 65,12/07/2023,5692,,3111471800,-502.19,Heathfield House Nursing Home
http://statistics.data.gov.uk/id/local-authority/38,Oxfordshire County Council,Fire Protection,19/07/2023,5251,Legal Costs,2201133645,500,12CP Barristers
http://statistics.data.gov.uk/id/local-authority/38,Oxfordshire County Council,INCIDENT RESPONSE,18/07/2023,5526,Payments to Private Contractors,2201133269,500,AJB Tree Care
http://statistics.data.gov.uk/id/local-authority/38,Oxfordshire County Council,Councillors Priorities Fund,10/07/2023,4940,Other Services,3111468499,500,Burford Town Council
http://statistics.data.gov.uk/id/local-authority/38,Oxfordshire County Council,Councillors Priorities Fund,31/07/2023,4940,Other Services,3111482392,500,Cruse Bereavement Support
http://statistics.data.gov.uk/id/local-authority/38,Oxfordshire County Council,SEN TRANSPORT,10/07/2023,4330,Transport to School Activities,3111468391,500,Daci Chauffeurs
http://statistics.data.gov.uk/id/local-authority/38,Oxfordshire County Council,LAC PUPIL PREMIUM,17/07/2023,5537,Payments to Other Establishments,3111475433,500,Didcot Academy of Schools
http://statistics.data.gov.uk/id/local-authority/38,Oxfordshire County Council,LEGAL SERVICES,07/07/2023,5251,Legal Costs,2201129597,500,Emma Hughes
http://statistics.data.gov.uk/id/local-authority/38,Oxfordshire County Council,TRADING STANDARDS,17/07/2023,5190,Subscriptions,2201132217,500,Food and Farming Compliance
http://statistics.data.gov.uk/id/local-authority/38,Oxfordshire County Council,Support at Home U65 Learning Disability,13/07/2023,5227,Other Transport Arrangements,3111474637,500,Go Green Taxis
http://statistics.data.gov.uk/id/local-authority/38,Oxfordshire County Council,Councillors Priorities Fund,17/07/2023,4940,Other Services,3111475362,500,Gosford All Blacks RFC
http://statistics.data.gov.uk/id/local-authority/38,Oxfordshire County Council,Oxfordshire Adoption Support Fund,03/07/2023,4861,Hired and Contracted Services,2201127261,500,Graham Kennedy
http://statistics.data.gov.uk/id/local-authority/38,Oxfordshire County Council,Councillors Priorities Fund,24/07/2023,4940,Other Services,3111480350,500,Leafield football club
http://statistics.data.gov.uk/id/local-authority/38,Oxfordshire County Council,Support at Home U65 Learning Disability,11/07/2023,5227,Other Transport Arrangements,3111468639,500,Lightway Services Ltd
http://statistics.data.gov.uk/id/local-authority/38,Oxfordshire County Council,Children in Care Non-staffing - Centrl 2,11/07/2023,5394,Other Expenses,2201130283,500,Muddy Feet Training
http://statistics.data.gov.uk/id/local-authority/38,Oxfordshire County Council,TRADED CLERK SERVICE,03/07/2023,5380,"Author, Speaker and Lecturer Fees",2201127589,500,NATIONAL GOVERNORS ASSOCIATION
http://statistics.data.gov.uk/id/local-authority/38,Oxfordshire County Council,HIGHWAYS GENERAL,11/07/2023,5055,Insurance Costs,3111468608,500,OCC One Time Vendor
http://statistics.data.gov.uk/id/local-authority/38,Oxfordshire County Council,Support at Home 65+ Physical Support,14/07/2023,4070,Cleaning services,3111475060,500,OCC One Time Vendor
http://statistics.data.gov.uk/id/local-authority/38,Oxfordshire County Council,SEN Miscellaneous Expenditure,19/07/2023,5251,Legal Costs,3111479581,500,OCC One Time Vendor
http://statistics.data.gov.uk/id/local-authority/38,Oxfordshire County Council,HIGHWAYS GENERAL,20/07/2023,5055,Insurance Costs,3111479680,500,OCC One Time Vendor
http://statistics.data.gov.uk/id/local-authority/38,Oxfordshire County Council,HIGHWAYS GENERAL,20/07/2023,5055,Insurance Costs,3111479686,500,OCC One Time Vendor
http://statistics.data.gov.uk/id/local-authority/38,Oxfordshire County Council,Strategy Team,21/07/2023,4665,Catering,3111480061,500,OCC One Time Vendor
http://statistics.data.gov.uk/id/local-authority/38,Oxfordshire County Council,Voice of Customer,24/07/2023,5394,Other Expenses,3111480150,500,OCC One Time Vendor
http://statistics.data.gov.uk/id/local-authority/38,Oxfordshire County Council,HIGHWAYS GENERAL,27/07/2023,5055,Insurance Costs,3111481822,500,OCC One Time Vendor
http://statistics.data.gov.uk/id/local-authority/38,Oxfordshire County Council,Family Solutions Plus Non-staff - South,31/07/2023,5195,Grant Aid and Donations,3111482404,500,OCC One Time Vendor
http://statistics.data.gov.uk/id/local-authority/38,Oxfordshire County Council,LEGAL BUDGET,06/07/2023,5251,Legal Costs,2201129315,500,Oxford Law Group
http://statistics.data.gov.uk/id/local-authority/38,Oxfordshire County Council,Councillors Priorities Fund,17/07/2023,4940,Other Services,3111475365,500,Oxfordshire Play Association
http://statistics.data.gov.uk/id/local-authority/38,Oxfordshire County Council,Support at Home U65 Learning Disability,12/07/2023,5227,Other Transport Arrangements,3111469637,500,Oxon Transport Services Ltd
http://statistics.data.gov.uk/id/local-authority/38,Oxfordshire County Council,LDD AFTER SCHOOL,19/07/2023,4330,Transport to School Activities,3111479125,500,Oxon Transport Services Ltd
http://statistics.data.gov.uk/id/local-authority/38,Oxfordshire County Council,Councillors Priorities Fund,10/07/2023,4940,Other Services,3111468501,500,Stonesfield Playing Field Associati
http://statistics.data.gov.uk/id/local-authority/38,Oxfordshire County Council,SEN Alternative Provision,13/07/2023,4861,Hired and Contracted Services,3111474505,500,THE DARE2DREAM FOUNDATION
http://statistics.data.gov.uk/id/local-authority/38,Oxfordshire County Council,LAC PUPIL PREMIUM,17/07/2023,5537,Payments to Other Establishments,3111475424,500,The Propeller Academy Trust
http://statistics.data.gov.uk/id/local-authority/38,Oxfordshire County Council,LAC PUPIL PREMIUM,17/07/2023,5537,Payments to Other Establishments,3111475425,500,The Propeller Academy Trust
http://statistics.data.gov.uk/id/local-authority/38,Oxfordshire County Council,LEAVING CARE NORTH,27/07/2023,5785,Client Lodgings and Accommodation,3111481886,500,Personal Redacted Data
http://statistics.data.gov.uk/id/local-authority/38,Oxfordshire County Council,LAC PUPIL PREMIUM,17/07/2023,5537,Payments to Other Establishments,3111475462,500,Woodrush High School
http://statistics.data.gov.uk/id/local-authority/38,Oxfordshire County Council,Family Solutions Plus Non-staff - North,12/07/2023,5365,Non-Staff Subsistence and Expenses,3500097627,500,Personal Redacted Data
http://statistics.data.gov.uk/id/local-authority/38,Oxfordshire County Council,VOIDS/VACANCY COSTS,12/07/2023,3945,Rent,3111474043,500.25,Oxford Citizens Housing Association
http://statistics.data.gov.uk/id/local-authority/38,Oxfordshire County Council,SEN TRANSPORT,31/07/2023,4320,Pupil / Client Travel Reimbursement,3111482409,501.16,Personal Redacted Data
http://statistics.data.gov.uk/id/local-authority/38,Oxfordshire County Council,CONCESSIONARY FARES,18/07/2023,5781,Payments to Transport Operators,2201133182,501.76,Henley Town Council
http://statistics.data.gov.uk/id/local-authority/38,Oxfordshire County Council,LEAVING CARE NORTH,31/07/2023,5415,Residential Activities,9300060837,501.8,OCC SS Banbury Area Off Cash
http://statistics.data.gov.uk/id/local-authority/38,Oxfordshire County Council,LANDLORD & TENANT,31/07/2023,4001,Uniform Business Rates,3500098094,502,West Oxfordshire District Council
http://statistics.data.gov.uk/id/local-authority/38,Oxfordshire County Council,LANDLORD & TENANT,31/07/2023,4001,Uniform Business Rates,3500098098,502,West Oxfordshire District Council
http://statistics.data.gov.uk/id/local-authority/38,Oxfordshire County Council,EDWARD FIELD  KIDLIN,21/07/2023,3357,,3111479912,502.5,OCC One Time Vendor
http://statistics.data.gov.uk/id/local-authority/38,Oxfordshire County Council,Support at Home U65 Physical Support,04/07/2023,5899,Social Care - Direct Payments,3111465884,504,Personal Redacted Data
http://statistics.data.gov.uk/id/local-authority/38,Oxfordshire County Council,Support at Home U65 Learning Disability,05/07/2023,5697,,3111467774,504,Trinity Carers Services Ltd
http://statistics.data.gov.uk/id/local-authority/38,Oxfordshire County Council,LEGAL SERVICES,27/07/2023,5251,Legal Costs,2201136996,504,Whittakers Legal Costs
http://statistics.data.gov.uk/id/local-authority/38,Oxfordshire County Council,FOSTERING MAIN,11/07/2023,5532,B*Fostering - Loan Equipment,3111469353,505.13,Personal Redacted Data
http://statistics.data.gov.uk/id/local-authority/38,Oxfordshire County Council,OTHER,17/07/2023,4236,Vehicle Equipment and Running Expen,2201132708,505.5,CRELLING HARNESSES FOR
http://statistics.data.gov.uk/id/local-authority/38,Oxfordshire County Council,Property Cleaning,20/07/2023,4070,Cleaning services,2201134868,505.71,Parker Contract Cleaning
http://statistics.data.gov.uk/id/local-authority/38,Oxfordshire County Council,COMM DRAWDOWN FUNDNG,18/07/2023,8102,Payments to main contractor,2201132836,505.76,Milestone Infrastructure Limited
http://statistics.data.gov.uk/id/local-authority/38,Oxfordshire County Council,,03/07/2023,1325,Attachment of Earnings,3111465519,505.8,Oxford City Council
http://statistics.data.gov.uk/id/local-authority/38,Oxfordshire County Council,ADULT PROTECTION,03/07/2023,4706,Stationery and other office consumables,2201127683,506.76,Lyreco UK Ltd
http://statistics.data.gov.uk/id/local-authority/38,Oxfordshire County Council,Community Support Service Wantage,06/07/2023,4232,Vehicle Fuel,2201128936,507.06,Allstar Business Solutions Ltd
http://statistics.data.gov.uk/id/local-authority/38,Oxfordshire County Council,COMM DRAWDOWN FUNDNG,18/07/2023,8004,Design Consultant,2201132954,507.27,Milestone Infrastructure Limited
http://statistics.data.gov.uk/id/local-authority/38,Oxfordshire County Council,Support at Home U65 Learning Disability,18/07/2023,5682,,3111476109,507.42,The Brandon Trust
http://statistics.data.gov.uk/id/local-authority/38,Oxfordshire County Council,FOSTERING MAIN,04/07/2023,5549,B*Fostering Allowance - Regulation 38,3111467134,508,Personal Redacted Data
http://statistics.data.gov.uk/id/local-authority/38,Oxfordshire County Council,Support at Home 65+ Physical Support,18/07/2023,5699,,3111476616,508.2,Care Outlook Ltd
http://statistics.data.gov.uk/id/local-authority/38,Oxfordshire County Council,COMM DRAWDOWN FUNDNG,05/07/2023,8102,Payments to main contractor,2201128410,508.5,Robelec Ltd
http://statistics.data.gov.uk/id/local-authority/38,Oxfordshire County Council,Support at Home U65 Physical Support,12/07/2023,5690,,3111470401,508.84,The Camden Society
http://statistics.data.gov.uk/id/local-authority/38,Oxfordshire County Council,Support at Home U65 Learning Disability,12/07/2023,5690,,3111470407,508.84,The Camden Society
http://statistics.data.gov.uk/id/local-authority/38,Oxfordshire County Council,Support at Home U65 Learning Disability,12/07/2023,5690,,3111470419,508.84,The Camden Society
http://statistics.data.gov.uk/id/local-authority/38,Oxfordshire County Council,Support at Home U65 Physical Support,04/07/2023,5899,Social Care - Direct Payments,3111466881,509.12,Purple Conversation Com In Co (DP)
http://statistics.data.gov.uk/id/local-authority/38,Oxfordshire County Council,SM DISABILITIES,26/07/2023,5554,Childrens' Social Care - Direct Payments,3111481720,509.42,Purple Conversation Com In Co (DP)
http://statistics.data.gov.uk/id/local-authority/38,Oxfordshire County Council,SM DISABILITIES,27/07/2023,5554,Childrens' Social Care - Direct Payments,3111481818,509.97,Personal Redacted Data
http://statistics.data.gov.uk/id/local-authority/38,Oxfordshire County Council,Vulnerable Learners,21/07/2023,4940,Other Services,2201135715,510,Carol Lister
http://statistics.data.gov.uk/id/local-authority/38,Oxfordshire County Council,FOSTERING MAIN,18/07/2023,5549,B*Fostering Allowance - Regulation 38,3111476887,510,Personal Redacted Data
http://statistics.data.gov.uk/id/local-authority/38,Oxfordshire County Council,ON ST PARK OXFD P&D,03/07/2023,4861,Hired and Contracted Services,2201127288,510,Flowbird Smart City
http://statistics.data.gov.uk/id/local-authority/38,Oxfordshire County Council,ON ST PARK OXFD P&D,21/07/2023,4861,Hired and Contracted Services,2201135730,510,Flowbird Smart City
http://statistics.data.gov.uk/id/local-authority/38,Oxfordshire County Council,Afghanistan settler holding hotel fund,18/07/2023,5537,Payments to Other Establishments,3111475506,510,OCC One Time Vendor
http://statistics.data.gov.uk/id/local-authority/38,Oxfordshire County Council,Support at Home 65+ Physical Support,18/07/2023,5699,,3111477988,510.15,Care Outlook Ltd
http://statistics.data.gov.uk/id/local-authority/38,Oxfordshire County Council,Support at Home 65+ Memory & Cognition,12/07/2023,5686,,3111473522,510.42,Orders of St John
http://statistics.data.gov.uk/id/local-authority/38,Oxfordshire County Council,OPERATIONS,12/07/2023,4719,Photocopying,2201130771,510.54,XMA Limited - Toner Orders Only
http://statistics.data.gov.uk/id/local-authority/38,Oxfordshire County Council,Community Support Service - Abingdon,26/07/2023,2040,Agency Staff,2201136593,510.6,Completely Care Ltd
http://statistics.data.gov.uk/id/local-authority/38,Oxfordshire County Council,Highway and Ops Staff,26/07/2023,4705,Printing,2201136518,510.71,Haven Care Group
http://statistics.data.gov.uk/id/local-authority/38,Oxfordshire County Council,LANDLORD & TENANT,31/07/2023,4001,Uniform Business Rates,3500098116,511,South Oxfordshire District Council
http://statistics.data.gov.uk/id/local-authority/38,Oxfordshire County Council,Support at Home U65 Physical Support,04/07/2023,5899,Social Care - Direct Payments,3111466270,511.28,Personal Redacted Data
http://statistics.data.gov.uk/id/local-authority/38,Oxfordshire County Council,Support at Home U65 Learning Disability,04/07/2023,5899,Social Care - Direct Payments,3111466479,511.96,Purple Conversation Com In Co (DP)
http://statistics.data.gov.uk/id/local-authority/38,Oxfordshire County Council,Support at Home 65+ Other /Soc Isolation,28/07/2023,5693,,3111482357,512,Personal Redacted Data
http://statistics.data.gov.uk/id/local-authority/38,Oxfordshire County Council,FAM GRP CONFERENCES,27/07/2023,4940,Other Services,2201136921,512.48,Jacqui Gitau
http://statistics.data.gov.uk/id/local-authority/38,Oxfordshire County Council,FOSTERING MAIN,04/07/2023,5227,Other Transport Arrangements,3111467164,512.8,Personal Redacted Data
http://statistics.data.gov.uk/id/local-authority/38,Oxfordshire County Council,SEN Alternative Provision,13/07/2023,4861,Hired and Contracted Services,3111474507,513.12,Remedy Recruitment Group Ltd
http://statistics.data.gov.uk/id/local-authority/38,Oxfordshire County Council,SEN Alternative Provision,26/07/2023,4861,Hired and Contracted Services,3111481326,513.12,Remedy Recruitment Group Ltd
http://statistics.data.gov.uk/id/local-authority/38,Oxfordshire County Council,Support at Home 65+ Physical Support,04/07/2023,5899,Social Care - Direct Payments,3111466919,513.2,Purple Conversation Com In Co (DP)
http://statistics.data.gov.uk/id/local-authority/38,Oxfordshire County Council,,03/07/2023,1448,Blackfield Inc & Exp A/c,3111465446,513.3,OCC One Time Vendor
http://statistics.data.gov.uk/id/local-authority/38,Oxfordshire County Council,,27/07/2023,1448,Blackfield Inc & Exp A/c,3111481847,513.38,OCC One Time Vendor
http://statistics.data.gov.uk/id/local-authority/38,Oxfordshire County Council,Support at Home U65 Learning Disability,12/07/2023,5697,,3111469812,513.7,Go For It
http://statistics.data.gov.uk/id/local-authority/38,Oxfordshire County Council,Support at Home U65 Learning Disability,12/07/2023,5697,,3111469813,513.7,Go For It
http://statistics.data.gov.uk/id/local-authority/38,Oxfordshire County Council,LIBRARY COLLECTIONS,31/07/2023,4539,"Books, DVDs and CDs",3111482467,514.47,ASKEWS & HOLTS LIBRARY SERVICES LTD
http://statistics.data.gov.uk/id/local-authority/38,Oxfordshire County Council,VOIDS/VACANCY COSTS,12/07/2023,3945,Rent,3111474036,515.22,Oxford Citizens Housing Association
http://statistics.data.gov.uk/id/local-authority/38,Oxfordshire County Council,VOIDS/VACANCY COSTS,12/07/2023,3945,Rent,3111474040,515.22,Oxford Citizens Housing Association
http://statistics.data.gov.uk/id/local-authority/38,Oxfordshire County Council,Support at Home 65+ Physical Support,18/07/2023,5696,,3111476281,515.83,Radis Community Care
http://statistics.data.gov.uk/id/local-authority/38,Oxfordshire County Council,Support at Home 65+ Memory & Cognition,18/07/2023,5696,,3111476382,515.83,Radis Community Care
http://statistics.data.gov.uk/id/local-authority/38,Oxfordshire County Council,FOSTERING MAIN,18/07/2023,5548,B*Fostering - Special Rates & Plus Amou,3111476711,516,Personal Redacted Data
http://statistics.data.gov.uk/id/local-authority/38,Oxfordshire County Council,FOSTERING MAIN,18/07/2023,5548,B*Fostering - Special Rates & Plus Amou,3111476713,516,Personal Redacted Data
http://statistics.data.gov.uk/id/local-authority/38,Oxfordshire County Council,FOSTERING MAIN,18/07/2023,5548,B*Fostering - Special Rates & Plus Amou,3111476717,516,Personal Redacted Data
http://statistics.data.gov.uk/id/local-authority/38,Oxfordshire County Council,FOSTERING MAIN,18/07/2023,5548,B*Fostering - Special Rates & Plus Amou,3111476722,516,Personal Redacted Data
http://statistics.data.gov.uk/id/local-authority/38,Oxfordshire County Council,FOSTERING MAIN,18/07/2023,5548,B*Fostering - Special Rates & Plus Amou,3111476738,516,Personal Redacted Data
http://statistics.data.gov.uk/id/local-authority/38,Oxfordshire County Council,FOSTERING MAIN,18/07/2023,5549,B*Fostering Allowance - Regulation 38,3111476759,516,Personal Redacted Data
http://statistics.data.gov.uk/id/local-authority/38,Oxfordshire County Council,FOSTERING MAIN,18/07/2023,5548,B*Fostering - Special Rates & Plus Amou,3111476799,516,Personal Redacted Data
http://statistics.data.gov.uk/id/local-authority/38,Oxfordshire County Council,FOSTERING MAIN,18/07/2023,5548,B*Fostering - Special Rates & Plus Amou,3111476804,516,Personal Redacted Data
http://statistics.data.gov.uk/id/local-authority/38,Oxfordshire County Council,FOSTERING MAIN,18/07/2023,5548,B*Fostering - Special Rates & Plus Amou,3111476882,516,Personal Redacted Data
http://statistics.data.gov.uk/id/local-authority/38,Oxfordshire County Council,FOSTERING MAIN,18/07/2023,5548,B*Fostering - Special Rates & Plus Amou,3111476912,516,Personal Redacted Data
http://statistics.data.gov.uk/id/local-authority/38,Oxfordshire County Council,FOSTERING MAIN,18/07/2023,5548,B*Fostering - Special Rates & Plus Amou,3111476915,516,Personal Redacted Data
http://statistics.data.gov.uk/id/local-authority/38,Oxfordshire County Council,FOSTERING MAIN,18/07/2023,5548,B*Fostering - Special Rates & Plus Amou,3111476926,516,Personal Redacted Data
http://statistics.data.gov.uk/id/local-authority/38,Oxfordshire County Council,FOSTERING MAIN,18/07/2023,5548,B*Fostering - Special Rates & Plus Amou,3111476976,516,Personal Redacted Data
http://statistics.data.gov.uk/id/local-authority/38,Oxfordshire County Council,FOSTERING MAIN,18/07/2023,5548,B*Fostering - Special Rates & Plus Amou,3111477070,516,Personal Redacted Data
http://statistics.data.gov.uk/id/local-authority/38,Oxfordshire County Council,FOSTERING MAIN,18/07/2023,5548,B*Fostering - Special Rates & Plus Amou,3111477390,516,Personal Redacted Data
http://statistics.data.gov.uk/id/local-authority/38,Oxfordshire County Council,FOSTERING MAIN,18/07/2023,5548,B*Fostering - Special Rates & Plus Amou,3111477331,516,Personal Redacted Data
http://statistics.data.gov.uk/id/local-authority/38,Oxfordshire County Council,FOSTERING MAIN,18/07/2023,5548,B*Fostering - Special Rates & Plus Amou,3111477334,516,Personal Redacted Data
http://statistics.data.gov.uk/id/local-authority/38,Oxfordshire County Council,FOSTERING MAIN,18/07/2023,5548,B*Fostering - Special Rates & Plus Amou,3111477343,516,Personal Redacted Data
http://statistics.data.gov.uk/id/local-authority/38,Oxfordshire County Council,FOSTERING MAIN,18/07/2023,5548,B*Fostering - Special Rates & Plus Amou,3111477364,516,Personal Redacted Data
http://statistics.data.gov.uk/id/local-authority/38,Oxfordshire County Council,FOSTERING MAIN,18/07/2023,5549,B*Fostering Allowance - Regulation 38,3111477409,516,Personal Redacted Data
http://statistics.data.gov.uk/id/local-authority/38,Oxfordshire County Council,FOSTERING MAIN,18/07/2023,5548,B*Fostering - Special Rates & Plus Amou,3111477489,516,Personal Redacted Data
http://statistics.data.gov.uk/id/local-authority/38,Oxfordshire County Council,FOSTERING MAIN,18/07/2023,5548,B*Fostering - Special Rates & Plus Amou,3111477541,516,Personal Redacted Data
http://statistics.data.gov.uk/id/local-authority/38,Oxfordshire County Council,FOSTERING MAIN,18/07/2023,5548,B*Fostering - Special Rates & Plus Amou,3111476680,516,Personal Redacted Data
http://statistics.data.gov.uk/id/local-authority/38,Oxfordshire County Council,FOSTERING MAIN,18/07/2023,5548,B*Fostering - Special Rates & Plus Amou,3111477493,516,Personal Redacted Data
http://statistics.data.gov.uk/id/local-authority/38,Oxfordshire County Council,UASC 16&17,18/07/2023,5548,B*Fostering - Special Rates & Plus Amou,3111477558,516,Personal Redacted Data
http://statistics.data.gov.uk/id/local-authority/38,Oxfordshire County Council,FOSTERING MAIN,18/07/2023,5548,B*Fostering - Special Rates & Plus Amou,3111477589,516,Personal Redacted Data
http://statistics.data.gov.uk/id/local-authority/38,Oxfordshire County Council,Reading Adoption Support Fund,24/07/2023,4861,Hired and Contracted Services,2201135827,516,SWAAY
http://statistics.data.gov.uk/id/local-authority/38,Oxfordshire County Council,FOSTERING MAIN,11/07/2023,5548,B*Fostering - Special Rates & Plus Amou,3111469510,516,Personal Redacted Data
http://statistics.data.gov.uk/id/local-authority/38,Oxfordshire County Council,FOSTERING MAIN,11/07/2023,5548,B*Fostering - Special Rates & Plus Amou,3111469511,516,Personal Redacted Data
http://statistics.data.gov.uk/id/local-authority/38,Oxfordshire County Council,SHARED LIVES,12/07/2023,5555,Payments to Carers,3111469842,516.39,Personal Redacted Data
http://statistics.data.gov.uk/id/local-authority/38,Oxfordshire County Council,Support at Home 65+ Physical Support,18/07/2023,5689,,3111478495,516.86,Oxfordshire Crossroads
http://statistics.data.gov.uk/id/local-authority/38,Oxfordshire County Council,,01/07/2023,1531,Cash Allocation Control Account,3111468029,516.92,Oxford Fencing Supplies
http://statistics.data.gov.uk/id/local-authority/38,Oxfordshire County Council,Support at Home U65 Learning Disability,04/07/2023,5899,Social Care - Direct Payments,3111466870,517.48,Purple Conversation Com In Co (DP)
http://statistics.data.gov.uk/id/local-authority/38,Oxfordshire County Council,Support at Home U65 Learning Disability,20/07/2023,5227,Other Transport Arrangements,3111479616,517.6,24/7 LTD
http://statistics.data.gov.uk/id/local-authority/38,Oxfordshire County Council,Independent Foster,19/07/2023,5559,,3111479539,518.56,Fostering For You
http://statistics.data.gov.uk/id/local-authority/38,Oxfordshire County Council,FOSTERING MAIN,04/07/2023,5227,Other Transport Arrangements,3111467233,519.02,Personal Redacted Data
http://statistics.data.gov.uk/id/local-authority/38,Oxfordshire County Council,LEGAL BUDGET,21/07/2023,5251,Legal Costs,2201135399,519.93,Dr DBR Bailham
http://statistics.data.gov.uk/id/local-authority/38,Oxfordshire County Council,Support at Home 65+ Memory & Cognition,04/07/2023,5899,Social Care - Direct Payments,3111466962,519.96,Purple Conversation Com In Co (DP)
http://statistics.data.gov.uk/id/local-authority/38,Oxfordshire County Council,Wokingham Adoption Support Fund,17/07/2023,4861,Hired and Contracted Services,2201132183,520,The Cherrycroft Practice Limited
http://statistics.data.gov.uk/id/local-authority/38,Oxfordshire County Council,Wokingham Adoption Support Fund,24/07/2023,4861,Hired and Contracted Services,2201135821,520,The Cherrycroft Practice Limited
http://statistics.data.gov.uk/id/local-authority/38,Oxfordshire County Council,RBWM Adoption Support Fund,24/07/2023,4861,Hired and Contracted Services,2201135822,520,The Cherrycroft Practice Limited
http://statistics.data.gov.uk/id/local-authority/38,Oxfordshire County Council,COMM DRAWDOWN FUNDNG,11/07/2023,8511,Legal Fees & expenses,2201130689,520.69,Network Rail
http://statistics.data.gov.uk/id/local-authority/38,Oxfordshire County Council,Support at Home U65 Learning Disability,12/07/2023,5690,,3111470265,520.8,Style Acre
http://statistics.data.gov.uk/id/local-authority/38,Oxfordshire County Council,Support at Home U65 Learning Disability,12/07/2023,5690,,3111470292,520.8,Style Acre
http://statistics.data.gov.uk/id/local-authority/38,Oxfordshire County Council,Support at Home U65 Learning Disability,12/07/2023,5690,,3111470181,520.8,Turnstyle
http://statistics.data.gov.uk/id/local-authority/38,Oxfordshire County Council,,27/07/2023,1448,Blackfield Inc & Exp A/c,3111481846,521.07,OCC One Time Vendor
http://statistics.data.gov.uk/id/local-authority/38,Oxfordshire County Council,SERVICE DELIVERY,12/07/2023,4685,Clothing and Uniforms,2201130832,521.3,Oxford Safety Supplies
http://statistics.data.gov.uk/id/local-authority/38,Oxfordshire County Council,Support at Home 65+ Physical Support,18/07/2023,5699,,3111477976,521.93,All Care GB Ltd
http://statistics.data.gov.uk/id/local-authority/38,Oxfordshire County Council,PROCUREMENT,04/07/2023,4495,IT Software,2201127834,522,C Track UK
http://statistics.data.gov.uk/id/local-authority/38,Oxfordshire County Council,Support at Home 65+ Memory & Cognition,04/07/2023,5899,Social Care - Direct Payments,3111465946,523.08,Personal Redacted Data
http://statistics.data.gov.uk/id/local-authority/38,Oxfordshire County Council,Support at Home U65 Learning Disability,04/07/2023,5899,Social Care - Direct Payments,3111466725,523.56,Purple Conversation Com In Co (DP)
http://statistics.data.gov.uk/id/local-authority/38,Oxfordshire County Council,FOSTERING MAIN,04/07/2023,5549,B*Fostering Allowance - Regulation 38,3111467458,523.9,Personal Redacted Data
http://statistics.data.gov.uk/id/local-authority/38,Oxfordshire County Council,UASC 16&17,13/07/2023,5365,Non-Staff Subsistence and Expenses,9300060635,523.9,OCC SS Oxford City Div 1 Cash
http://statistics.data.gov.uk/id/local-authority/38,Oxfordshire County Council,CONTRACT MANAGEMENT,31/07/2023,4001,Uniform Business Rates,3500097991,524,Cherwell District Council
http://statistics.data.gov.uk/id/local-authority/38,Oxfordshire County Council,FOSTERING MAIN,18/07/2023,5549,B*Fostering Allowance - Regulation 38,3111477520,524.08,Personal Redacted Data
http://statistics.data.gov.uk/id/local-authority/38,Oxfordshire County Council,FLEET COSTS,06/07/2023,4270,HTM / Other Vehicle - Hire Charges,2201128980,524.4,Go Plant Fleet Services
http://statistics.data.gov.uk/id/local-authority/38,Oxfordshire County Council,HSF Welfare Support Grant & FSM support,19/07/2023,4939,,3111479393,525,Abbey Woods Academy
http://statistics.data.gov.uk/id/local-authority/38,Oxfordshire County Council,HSF Welfare Support Grant & FSM support,19/07/2023,4939,,3111479397,525,Barton Park Primary School
http://statistics.data.gov.uk/id/local-authority/38,Oxfordshire County Council,HSF Welfare Support Grant & FSM support,19/07/2023,4939,,3111479402,525,Blessed George Napier C School
http://statistics.data.gov.uk/id/local-authority/38,Oxfordshire County Council,HSF Welfare Support Grant & FSM support,19/07/2023,4939,,3111479407,525,Chalgrove Community Primary School
http://statistics.data.gov.uk/id/local-authority/38,Oxfordshire County Council,HSF Welfare Support Grant & FSM support,19/07/2023,4939,,3111479414,525,Faringdon Academy Schools
http://statistics.data.gov.uk/id/local-authority/38,Oxfordshire County Council,HSF Welfare Support Grant & FSM support,19/07/2023,4939,,3111479424,525,Gosford Hill School
http://statistics.data.gov.uk/id/local-authority/38,Oxfordshire County Council,HSF Welfare Support Grant & FSM support,19/07/2023,4939,,3111479428,525,Holy Trinity Catholic Primary Schoo
http://statistics.data.gov.uk/id/local-authority/38,Oxfordshire County Council,HSF Welfare Support Grant & FSM support,26/07/2023,4939,,3111481460,525,Horspath Pre-School Nursery
http://statistics.data.gov.uk/id/local-authority/38,Oxfordshire County Council,HSF Welfare Support Grant & FSM support,19/07/2023,4939,,3111479430,525,John Blandy Primary School
http://statistics.data.gov.uk/id/local-authority/38,Oxfordshire County Council,HSF Welfare Support Grant & FSM support,19/07/2023,4939,,3111479434,525,Langtree Academy
http://statistics.data.gov.uk/id/local-authority/38,Oxfordshire County Council,HSF Welfare Support Grant & FSM support,26/07/2023,4939,,3111481472,525,Little Oak Pre-School
http://statistics.data.gov.uk/id/local-authority/38,Oxfordshire County Council,HSF Welfare Support Grant & FSM support,19/07/2023,4939,,3111479448,525,Our Lady of Lourdes
http://statistics.data.gov.uk/id/local-authority/38,Oxfordshire County Council,HSF Welfare Support Grant & FSM support,19/07/2023,4939,,3111479449,525,Our Lady's Catholic Primary School
http://statistics.data.gov.uk/id/local-authority/38,Oxfordshire County Council,Oxfordshire Adoption Support Fund,25/07/2023,4861,Hired and Contracted Services,2201136192,525,PACT (PARENTS & CHILDREN TOGETHER)
http://statistics.data.gov.uk/id/local-authority/38,Oxfordshire County Council,HSF Welfare Support Grant & FSM support,26/07/2023,4939,,3111481488,525,Rainbow Pre-School
http://statistics.data.gov.uk/id/local-authority/38,Oxfordshire County Council,HSF Welfare Support Grant & FSM support,19/07/2023,4939,,3111479458,525,St Joseph's Catholic Primary Carter
http://statistics.data.gov.uk/id/local-authority/38,Oxfordshire County Council,HSF Welfare Support Grant & FSM support,19/07/2023,4939,,3111479470,525,The Blake CE Primary School
http://statistics.data.gov.uk/id/local-authority/38,Oxfordshire County Council,HSF Welfare Support Grant & FSM support,19/07/2023,4939,,3111479433,525,The Propeller Academy Trust
http://statistics.data.gov.uk/id/local-authority/38,Oxfordshire County Council,HSF Welfare Support Grant & FSM support,26/07/2023,4939,,3111481515,525,The Sunshine Centre
http://statistics.data.gov.uk/id/local-authority/38,Oxfordshire County Council,Catering Management Soft FM,25/07/2023,3787,Premises Repairs,2201136165,525,Windrush Door & Window Services Ltd
http://statistics.data.gov.uk/id/local-authority/38,Oxfordshire County Council,Support at Home U65 Learning Disability,04/07/2023,5899,Social Care - Direct Payments,3111466059,525.4,Personal Redacted Data
http://statistics.data.gov.uk/id/local-authority/38,Oxfordshire County Council,Support at Home 65+ Physical Support,18/07/2023,5693,,3111478432,526.51,My Carer Ltd
http://statistics.data.gov.uk/id/local-authority/38,Oxfordshire County Council,Support at Home U65 Learning Disability,04/07/2023,5899,Social Care - Direct Payments,3111466106,526.76,Personal Redacted Data
http://statistics.data.gov.uk/id/local-authority/38,Oxfordshire County Council,Support at Home U65 Physical Support,24/07/2023,5696,,3111480154,527,Orders of St John Care Trust
http://statistics.data.gov.uk/id/local-authority/38,Oxfordshire County Council,FOSTERING MAIN,25/07/2023,5532,B*Fostering - Loan Equipment,3111480600,527.15,Personal Redacted Data
http://statistics.data.gov.uk/id/local-authority/38,Oxfordshire County Council,Support at Home U65 Learning Disability,12/07/2023,5690,,3111470151,527.33,MacIntyre Care (Womaston)
http://statistics.data.gov.uk/id/local-authority/38,Oxfordshire County Council,Support at Home 65+ Physical Support,04/07/2023,5899,Social Care - Direct Payments,3111466722,527.56,Purple Conversation Com In Co (DP)
http://statistics.data.gov.uk/id/local-authority/38,Oxfordshire County Council,,03/07/2023,1531,Cash Allocation Control Account,3111465717,527.62,Katie Rebecca Hoare Childminder
http://statistics.data.gov.uk/id/local-authority/38,Oxfordshire County Council,Support at Home 65+ Physical Support,12/07/2023,5690,,3111470334,528.11,ADVANCE HOUSING & SUPPORT LTD
http://statistics.data.gov.uk/id/local-authority/38,Oxfordshire County Council,Support at Home 65+ Learning Disability,12/07/2023,5690,,3111470386,528.11,Style Acre
http://statistics.data.gov.uk/id/local-authority/38,Oxfordshire County Council,LEAVING CARE SOUTH,20/07/2023,4540,"Educational Supplies, Stationery & Mater",3111479802,528.8,Personal Redacted Data
http://statistics.data.gov.uk/id/local-authority/38,Oxfordshire County Council,FOSTERING MAIN,04/07/2023,5549,B*Fostering Allowance - Regulation 38,3111467448,529,Personal Redacted Data
http://statistics.data.gov.uk/id/local-authority/38,Oxfordshire County Council,FOSTERING MAIN,11/07/2023,5549,B*Fostering Allowance - Regulation 38,3111469187,529,Personal Redacted Data
http://statistics.data.gov.uk/id/local-authority/38,Oxfordshire County Council,FOSTERING MAIN,25/07/2023,5549,B*Fostering Allowance - Regulation 38,3111480690,529,Personal Redacted Data
http://statistics.data.gov.uk/id/local-authority/38,Oxfordshire County Council,Support at Home U65 Memory & Cognition,04/07/2023,5899,Social Care - Direct Payments,3111466846,529,Purple Conversation Com In Co (DP)
http://statistics.data.gov.uk/id/local-authority/38,Oxfordshire County Council,Support at Home U65 MH OBC Contract,26/07/2023,5693,,3111481370,529.12,Henley Care Ltd
http://statistics.data.gov.uk/id/local-authority/38,Oxfordshire County Council,Support at Home 65+ Physical Support,19/07/2023,5693,,3111479254,529.64,XPERIENCE RECRUITMENT LIMITED
http://statistics.data.gov.uk/id/local-authority/38,Oxfordshire County Council,Support at Home 65+ Memory & Cognition,18/07/2023,5689,,3111478148,529.78,Caretree Ltd
http://statistics.data.gov.uk/id/local-authority/38,Oxfordshire County Council,Support at Home 65+ Physical Support,18/07/2023,5699,,3111477238,529.93,Home Helpers Care Ltd
http://statistics.data.gov.uk/id/local-authority/38,Oxfordshire County Council,Voice of Customer,11/07/2023,4861,Hired and Contracted Services,2201130413,530,Isobel Morrow
http://statistics.data.gov.uk/id/local-authority/38,Oxfordshire County Council,TRADED CLERK SERVICE,19/07/2023,3103,Other Training Courses and Qualification,2201133455,530,NATIONAL GOVERNORS ASSOCIATION
http://statistics.data.gov.uk/id/local-authority/38,Oxfordshire County Council,FAMILY TIME TEAM,26/07/2023,3942,Hire of Accommodation and Facilities,2201136650,530,The Salvation Army
http://statistics.data.gov.uk/id/local-authority/38,Oxfordshire County Council,LIBRARY COLLECTIONS,06/07/2023,4539,"Books, DVDs and CDs",2201128939,530.23,Bolinda UK Ltd
http://statistics.data.gov.uk/id/local-authority/38,Oxfordshire County Council,Support at Home U65 Learning Disability,12/07/2023,5690,,3111470133,530.98,The Laurels (Witney)
http://statistics.data.gov.uk/id/local-authority/38,Oxfordshire County Council,Support at Home U65 Other /Soc Isolation,04/07/2023,5899,Social Care - Direct Payments,3111466942,531.28,Purple Conversation Com In Co (DP)
http://statistics.data.gov.uk/id/local-authority/38,Oxfordshire County Council,Support at Home U65 Learning Disability,04/07/2023,5899,Social Care - Direct Payments,3111465772,531.48,Personal Redacted Data
http://statistics.data.gov.uk/id/local-authority/38,Oxfordshire County Council,FLEET MAINTENANCE,20/07/2023,4220,Vehicle Workshop Spares and Consumables,2201135241,531.77,Forge Garage
http://statistics.data.gov.uk/id/local-authority/38,Oxfordshire County Council,Support at Home 65+ Physical Support,24/07/2023,5696,,3111480158,532.29,Orders of St John Care Trust
http://statistics.data.gov.uk/id/local-authority/38,Oxfordshire County Council,UASC 16&17,19/07/2023,5365,Non-Staff Subsistence and Expenses,9300060714,532.3,OCC SS Vale of White Horse Cash
http://statistics.data.gov.uk/id/local-authority/38,Oxfordshire County Council,Support at Home U65 Learning Disability,12/07/2023,5690,,3111470296,532.31,Style Acre
http://statistics.data.gov.uk/id/local-authority/38,Oxfordshire County Council,Community Support Service - Abingdon,06/07/2023,2040,Agency Staff,2201129111,532.8,Completely Care Ltd
http://statistics.data.gov.uk/id/local-authority/38,Oxfordshire County Council,FOSTERING MAIN,04/07/2023,5227,Other Transport Arrangements,3111467162,532.9,Personal Redacted Data
http://statistics.data.gov.uk/id/local-authority/38,Oxfordshire County Council,FOSTERING MAIN,04/07/2023,5394,Other Expenses,3111467730,532.9,Personal Redacted Data
http://statistics.data.gov.uk/id/local-authority/38,Oxfordshire County Council,LIBRARY COLLECTIONS,31/07/2023,4539,"Books, DVDs and CDs",3111482470,533.96,ASKEWS & HOLTS LIBRARY SERVICES LTD
http://statistics.data.gov.uk/id/local-authority/38,Oxfordshire County Council,FOSTERING MAIN,18/07/2023,5227,Other Transport Arrangements,3111477399,534.08,Personal Redacted Data
http://statistics.data.gov.uk/id/local-authority/38,Oxfordshire County Council,LIBRARY COLLECTIONS,19/07/2023,4539,"Books, DVDs and CDs",3111479057,534.6,ASKEWS & HOLTS LIBRARY SERVICES LTD
http://statistics.data.gov.uk/id/local-authority/38,Oxfordshire County Council,SEN TRANSPORT,25/07/2023,4320,Pupil / Client Travel Reimbursement,3111481268,534.6,Personal Redacted Data
http://statistics.data.gov.uk/id/local-authority/38,Oxfordshire County Council,FOSTERING MAIN,04/07/2023,5541,B*Foster Parents,3111467676,535,Personal Redacted Data
http://statistics.data.gov.uk/id/local-authority/38,Oxfordshire County Council,FOSTERING MAIN,11/07/2023,5541,B*Foster Parents,3111469401,535,Personal Redacted Data
http://statistics.data.gov.uk/id/local-authority/38,Oxfordshire County Council,FOSTERING MAIN,25/07/2023,5541,B*Foster Parents,3111480933,535,Personal Redacted Data
http://statistics.data.gov.uk/id/local-authority/38,Oxfordshire County Council,Marketing,03/07/2023,4940,Other Services,2201127332,535.5,Dave Marriott Photography Ltd
http://statistics.data.gov.uk/id/local-authority/38,Oxfordshire County Council,Support at Home 65+ Memory & Cognition,18/07/2023,5699,,3111476570,535.67,Care Hearted Ltd
http://statistics.data.gov.uk/id/local-authority/38,Oxfordshire County Council,Support at Home 65+ Physical Support,18/07/2023,5699,,3111476872,535.67,Day and Nightcare Assistance
http://statistics.data.gov.uk/id/local-authority/38,Oxfordshire County Council,Support at Home 65+ Physical Support,18/07/2023,5699,,3111477475,535.67,Oasis Private Care Ltd
http://statistics.data.gov.uk/id/local-authority/38,Oxfordshire County Council,Support at Home 65+ Physical Support,18/07/2023,5699,,3111477764,535.67,Ringstead Healthcare Limited
http://statistics.data.gov.uk/id/local-authority/38,Oxfordshire County Council,COMM DRAWDOWN FUNDNG,04/07/2023,8102,Payments to main contractor,2201127789,535.72,Milestone Infrastructure Limited
http://statistics.data.gov.uk/id/local-authority/38,Oxfordshire County Council,Support at Home 65+ Physical Support,14/07/2023,5693,,3111475127,535.86,BE WELL CARE LTD
http://statistics.data.gov.uk/id/local-authority/38,Oxfordshire County Council,Support at Home U65 Learning Disability,24/07/2023,5696,,3111480220,535.97,Orders of St John Care Trust
http://statistics.data.gov.uk/id/local-authority/38,Oxfordshire County Council,Support at Home 65+ Physical Support,18/07/2023,5693,,3111478583,536.58,Premier Personal Care
http://statistics.data.gov.uk/id/local-authority/38,Oxfordshire County Council,FOSTERING MAIN,25/07/2023,5549,B*Fostering Allowance - Regulation 38,3111481014,536.9,Personal Redacted Data
http://statistics.data.gov.uk/id/local-authority/38,Oxfordshire County Council,HIGHWAYS GENERAL,31/07/2023,4001,Uniform Business Rates,3500098139,537,South Oxfordshire District Council
http://statistics.data.gov.uk/id/local-authority/38,Oxfordshire County Council,Support at Home U65 MH OBC Contract,04/07/2023,5899,Social Care - Direct Payments,3111465745,537.56,Personal Redacted Data
http://statistics.data.gov.uk/id/local-authority/38,Oxfordshire County Council,ECH Central Costs,12/07/2023,5696,,3111470191,537.63,BPHA Limited
http://statistics.data.gov.uk/id/local-authority/38,Oxfordshire County Council,LOOKED AFTER CITY 1,18/07/2023,5251,Legal Costs,2201132785,538,DNA WORLDWIDE GROUP
http://statistics.data.gov.uk/id/local-authority/38,Oxfordshire County Council,Support at Home 65+ Physical Support,18/07/2023,5698,,3111478517,538.42,Oxfordshire Crossroads
http://statistics.data.gov.uk/id/local-authority/38,Oxfordshire County Council,MAINSTREAM-PRIMARY,25/07/2023,4320,Pupil / Client Travel Reimbursement,3111481264,538.65,Personal Redacted Data
http://statistics.data.gov.uk/id/local-authority/38,Oxfordshire County Council,Support at Home U65 Learning Disability,17/07/2023,5227,Other Transport Arrangements,3111475490,539,LINK SHIRES LTD
http://statistics.data.gov.uk/id/local-authority/38,Oxfordshire County Council,FOSTERING MAIN,04/07/2023,5549,B*Fostering Allowance - Regulation 38,3111467631,539,Personal Redacted Data
http://statistics.data.gov.uk/id/local-authority/38,Oxfordshire County Council,FOSTERING MAIN,11/07/2023,5549,B*Fostering Allowance - Regulation 38,3111469355,539,Personal Redacted Data
http://statistics.data.gov.uk/id/local-authority/38,Oxfordshire County Council,FOSTERING MAIN,25/07/2023,5549,B*Fostering Allowance - Regulation 38,3111480875,539,Personal Redacted Data
http://statistics.data.gov.uk/id/local-authority/38,Oxfordshire County Council,Support at Home U65 Memory & Cognition,04/07/2023,5899,Social Care - Direct Payments,3111466621,539.68,Purple Conversation Com In Co (DP)
http://statistics.data.gov.uk/id/local-authority/38,Oxfordshire County Council,Support at Home U65 Learning Disability,03/07/2023,5227,Other Transport Arrangements,3111465564,540,Ali's Cabs
http://statistics.data.gov.uk/id/local-authority/38,Oxfordshire County Council,Bikeability cost,05/07/2023,3103,Other Training Courses and Qualification,2201128301,540,Avanti Cycling
http://statistics.data.gov.uk/id/local-authority/38,Oxfordshire County Council,LIBRARY COLLECTIONS,13/07/2023,4539,"Books, DVDs and CDs",2201131475,540,Bibliotheca Ltd
http://statistics.data.gov.uk/id/local-authority/38,Oxfordshire County Council,Support at Home U65 Physical Support,11/07/2023,5227,Other Transport Arrangements,3111468635,540,Blackstar Chauffeur Ltd T/A Blackst
http://statistics.data.gov.uk/id/local-authority/38,Oxfordshire County Council,,03/07/2023,1531,Cash Allocation Control Account,3111468228,540,Deirdre Fottrell QC
http://statistics.data.gov.uk/id/local-authority/38,Oxfordshire County Council,Family Solutions Plus Non-staff - Centra,05/07/2023,4940,Other Services,2201128393,540,DMR Services Ltd
http://statistics.data.gov.uk/id/local-authority/38,Oxfordshire County Council,Support at Home U65 MH OBC Contract,04/07/2023,5899,Social Care - Direct Payments,3111466005,540,Personal Redacted Data
http://statistics.data.gov.uk/id/local-authority/38,Oxfordshire County Council,LEGAL BUDGET,06/07/2023,5251,Legal Costs,2201129025,540,MARTEN WALSH CHERER LIMITED
http://statistics.data.gov.uk/id/local-authority/38,Oxfordshire County Council,COMM DRAWDOWN FUNDNG,21/07/2023,8510,Other expenses,2201135752,540,Oxford Direct Services Trading Ltd
http://statistics.data.gov.uk/id/local-authority/38,Oxfordshire County Council,LAC PUPIL PREMIUM,17/07/2023,5537,Payments to Other Establishments,3111475448,540,St Bede's School
http://statistics.data.gov.uk/id/local-authority/38,Oxfordshire County Council,Bikeability cost,13/07/2023,3103,Other Training Courses and Qualification,2201131299,540,The Bike Academy (South) Ltd
http://statistics.data.gov.uk/id/local-authority/38,Oxfordshire County Council,FAMILY TIME TEAM,26/07/2023,3942,Hire of Accommodation and Facilities,2201136649,540,The Salvation Army
http://statistics.data.gov.uk/id/local-authority/38,Oxfordshire County Council,TRANSPORT COSTS,20/07/2023,5227,Other Transport Arrangements,3111479603,540,Unitaxi Ltd
http://statistics.data.gov.uk/id/local-authority/38,Oxfordshire County Council,Support at Home U65 Learning Disability,12/07/2023,5690,,3111470241,540.29,Style Acre
http://statistics.data.gov.uk/id/local-authority/38,Oxfordshire County Council,Care Homes - Over 65 Physical Sypport,12/07/2023,5686,,3111473362,541.04,Orders of St John
http://statistics.data.gov.uk/id/local-authority/38,Oxfordshire County Council,Care Homes - Over 65 Physical Sypport,12/07/2023,5686,,3111473371,541.04,Orders of St John
http://statistics.data.gov.uk/id/local-authority/38,Oxfordshire County Council,Care Homes - Over 65 Physical Sypport,12/07/2023,5686,,3111473997,541.04,OSJ Contract - Stirlings
http://statistics.data.gov.uk/id/local-authority/38,Oxfordshire County Council,Support at Home U65 HFA,04/07/2023,5899,Social Care - Direct Payments,3111466255,541.52,Personal Redacted Data
http://statistics.data.gov.uk/id/local-authority/38,Oxfordshire County Council,Children in Care Non-staffing - North,05/07/2023,5665,B*Fostering Project Care Fee,9300060543,541.6,OCC SS Oxford City Div 1 Cash
http://statistics.data.gov.uk/id/local-authority/38,Oxfordshire County Council,Planned Maintenance,25/07/2023,4042,Fixtures and Fittings,2201136166,542,Barker & Evans Ltd
http://statistics.data.gov.uk/id/local-authority/38,Oxfordshire County Council,FOSTERING MAIN,04/07/2023,5545,B*Fostering Enhancements - Level 2,3111467380,542,Personal Redacted Data
http://statistics.data.gov.uk/id/local-authority/38,Oxfordshire County Council,FOSTERING MAIN,11/07/2023,5545,B*Fostering Enhancements - Level 2,3111469116,542,Personal Redacted Data
http://statistics.data.gov.uk/id/local-authority/38,Oxfordshire County Council,FOSTERING MAIN,25/07/2023,5545,B*Fostering Enhancements - Level 2,3111480635,542,Personal Redacted Data
http://statistics.data.gov.uk/id/local-authority/38,Oxfordshire County Council,LEGAL BUDGET,03/07/2023,5251,Legal Costs,2201127533,542.12,Willow Tree Psychology Ltd
http://statistics.data.gov.uk/id/local-authority/38,Oxfordshire County Council,FOSTERING MAIN,04/07/2023,5548,B*Fostering - Special Rates & Plus Amou,3111467709,542.37,Personal Redacted Data
http://statistics.data.gov.uk/id/local-authority/38,Oxfordshire County Council,Support at Home 65+ Physical Support,18/07/2023,5699,,3111477246,542.53,Home Helpers Care Ltd
http://statistics.data.gov.uk/id/local-authority/38,Oxfordshire County Council,Children in Care Non-staffing - North,27/07/2023,4685,Clothing and Uniforms,9300060807,542.6,OCC SS Banbury Area Off Cash
http://statistics.data.gov.uk/id/local-authority/38,Oxfordshire County Council,POST 16 SEN,19/07/2023,4330,Transport to School Activities,3111479367,543.75,The Oxfordshire Taxi Company Ltd T/
http://statistics.data.gov.uk/id/local-authority/38,Oxfordshire County Council,Support at Home 65+ Physical Support,17/07/2023,5227,Other Transport Arrangements,3111475495,544,LINK SHIRES LTD
http://statistics.data.gov.uk/id/local-authority/38,Oxfordshire County Council,Support at Home U65 MH OBC Contract,04/07/2023,5899,Social Care - Direct Payments,3111466798,544.32,Purple Conversation Com In Co (DP)
http://statistics.data.gov.uk/id/local-authority/38,Oxfordshire County Council,Support at Home U65 MH OBC Contract,04/07/2023,5899,Social Care - Direct Payments,3111466808,544.32,Purple Conversation Com In Co (DP)
http://statistics.data.gov.uk/id/local-authority/38,Oxfordshire County Council,Support at Home 65+ Physical Support,24/07/2023,5696,,3111480254,544.42,Orders of St John Care Trust
http://statistics.data.gov.uk/id/local-authority/38,Oxfordshire County Council,FAM GRP CONFERENCES,05/07/2023,4940,Other Services,2201128538,544.45,Personal Redacted Data
http://statistics.data.gov.uk/id/local-authority/38,Oxfordshire County Council,Support at Home 65+ Physical Support,18/07/2023,5689,,3111478324,546.15,Greigcare Home Service
http://statistics.data.gov.uk/id/local-authority/38,Oxfordshire County Council,DISABILITIES TEAM-C,20/07/2023,5227,Other Transport Arrangements,9300060748,546.4,OCC SS Oxford City Div 1 Cash
http://statistics.data.gov.uk/id/local-authority/38,Oxfordshire County Council,PROCUREMENT,10/07/2023,4232,Vehicle Fuel,2201129935,546.95,Certas Energy UK Ltd
http://statistics.data.gov.uk/id/local-authority/38,Oxfordshire County Council,COMM DRAWDOWN FUNDNG,17/07/2023,8004,Design Consultant,2201132715,547.12,Milestone Infrastructure Limited
http://statistics.data.gov.uk/id/local-authority/38,Oxfordshire County Council,Support at Home U65 Learning Disability,21/07/2023,5693,,3111480029,547.25,Autism at Kingwood Limited
http://statistics.data.gov.uk/id/local-authority/38,Oxfordshire County Council,Support at Home U65 Physical Support,18/07/2023,5689,,3111478401,547.87,My Carer Ltd
http://statistics.data.gov.uk/id/local-authority/38,Oxfordshire County Council,FOSTERING MAIN,18/07/2023,5545,B*Fostering Enhancements - Level 2,3111476783,548,Personal Redacted Data
http://statistics.data.gov.uk/id/local-authority/38,Oxfordshire County Council,FOSTERING MAIN,18/07/2023,5227,Other Transport Arrangements,3111477572,548.29,Personal Redacted Data
http://statistics.data.gov.uk/id/local-authority/38,Oxfordshire County Council,FOSTERING MAIN,25/07/2023,5548,B*Fostering - Special Rates & Plus Amou,3111480740,548.57,Personal Redacted Data
http://statistics.data.gov.uk/id/local-authority/38,Oxfordshire County Council,Support at Home 65+ Mental Health,18/07/2023,5696,,3111476168,548.75,All Care GB Ltd
http://statistics.data.gov.uk/id/local-authority/38,Oxfordshire County Council,Support at Home U65 Other /Soc Isolation,04/07/2023,5899,Social Care - Direct Payments,3111466000,549.36,Personal Redacted Data
http://statistics.data.gov.uk/id/local-authority/38,Oxfordshire County Council,Support at Home 65+ Memory & Cognition,04/07/2023,5899,Social Care - Direct Payments,3111466341,549.36,Personal Redacted Data
http://statistics.data.gov.uk/id/local-authority/38,Oxfordshire County Council,Support at Home 65+ Physical Support,18/07/2023,5699,,3111476555,549.4,Calvary Care Ltd
http://statistics.data.gov.uk/id/local-authority/38,Oxfordshire County Council,Support at Home 65+ Physical Support,18/07/2023,5699,,3111476647,549.4,Care Outlook Ltd
http://statistics.data.gov.uk/id/local-authority/38,Oxfordshire County Council,Support at Home U65 Physical Support,18/07/2023,5693,,3111478260,549.4,Direct Link Care Ltd
http://statistics.data.gov.uk/id/local-authority/38,Oxfordshire County Council,Support at Home 65+ Physical Support,19/07/2023,5693,,3111479200,549.4,FLEXI DIRECT LTD
http://statistics.data.gov.uk/id/local-authority/38,Oxfordshire County Council,Support at Home U65 Learning Disability,18/07/2023,5699,,3111477063,549.4,Genuine Carers Ltd
http://statistics.data.gov.uk/id/local-authority/38,Oxfordshire County Council,Support at Home U65 Physical Support,12/07/2023,5693,,3111469714,549.4,Kwikfix Recruitment Services Ltd
http://statistics.data.gov.uk/id/local-authority/38,Oxfordshire County Council,Support at Home 65+ Physical Support,18/07/2023,5699,,3111477628,549.4,PLL Care Services
http://statistics.data.gov.uk/id/local-authority/38,Oxfordshire County Council,Support at Home U65 Memory & Cognition,19/07/2023,5693,,3111479216,549.4,Star Projections
http://statistics.data.gov.uk/id/local-authority/38,Oxfordshire County Council,Support at Home 65+ Mental Health,19/07/2023,5693,,3111479217,549.4,Star Projections
http://statistics.data.gov.uk/id/local-authority/38,Oxfordshire County Council,Support at Home 65+ Memory & Cognition,18/07/2023,5699,,3111477937,549.4,YOD Ltd
http://statistics.data.gov.uk/id/local-authority/38,Oxfordshire County Council,Support at Home 65+ Physical Support,14/07/2023,5693,,3111475108,549.6,A CARING HAND LTD
http://statistics.data.gov.uk/id/local-authority/38,Oxfordshire County Council,NURSERY ED FUND,18/07/2023,5537,Payments to Other Establishments,3111476042,549.6,Bright Horizon Didcot Day Nursery
http://statistics.data.gov.uk/id/local-authority/38,Oxfordshire County Council,NURSERY ED FUND,18/07/2023,5537,Payments to Other Establishments,3111475902,549.6,Busy Bees Day Nursery (Bicester)
http://statistics.data.gov.uk/id/local-authority/38,Oxfordshire County Council,LEGAL SERVICES,06/07/2023,5251,Legal Costs,2201129284,550,A BOND
http://statistics.data.gov.uk/id/local-authority/38,Oxfordshire County Council,Homes for Ukraine - Guests,05/07/2023,5896,Adult Social Care - Other Transfer Pay,3500097367,550,Personal Redacted Data
http://statistics.data.gov.uk/id/local-authority/38,Oxfordshire County Council,Homes for Ukraine - Guests,03/07/2023,5896,Adult Social Care - Other Transfer Pay,3500097313,550,Personal Redacted Data
http://statistics.data.gov.uk/id/local-authority/38,Oxfordshire County Council,Homes for Ukraine - Guests,24/07/2023,5896,Adult Social Care - Other Transfer Pay,3500097818,550,Personal Redacted Data
http://statistics.data.gov.uk/id/local-authority/38,Oxfordshire County Council,Homes for Ukraine - Guests,06/07/2023,5896,Adult Social Care - Other Transfer Pay,3500097447,550,Personal Redacted Data
http://statistics.data.gov.uk/id/local-authority/38,Oxfordshire County Council,Homes for Ukraine - Guests,14/07/2023,5896,Adult Social Care - Other Transfer Pay,3500097680,550,Personal Redacted Data
http://statistics.data.gov.uk/id/local-authority/38,Oxfordshire County Council,Homes for Ukraine - Guests,24/07/2023,5896,Adult Social Care - Other Transfer Pay,3500097861,550,Personal Redacted Data
http://statistics.data.gov.uk/id/local-authority/38,Oxfordshire County Council,Homes for Ukraine - Guests,03/07/2023,5896,Adult Social Care - Other Transfer Pay,3500097307,550,Personal Redacted Data
http://statistics.data.gov.uk/id/local-authority/38,Oxfordshire County Council,Homes for Ukraine - Guests,10/07/2023,5896,Adult Social Care - Other Transfer Pay,3500097555,550,Personal Redacted Data
http://statistics.data.gov.uk/id/local-authority/38,Oxfordshire County Council,Homes for Ukraine - Guests,24/07/2023,5896,Adult Social Care - Other Transfer Pay,3500097877,550,Personal Redacted Data
http://statistics.data.gov.uk/id/local-authority/38,Oxfordshire County Council,Homes for Ukraine - Guests,06/07/2023,5896,Adult Social Care - Other Transfer Pay,3500097455,550,Personal Redacted Data
http://statistics.data.gov.uk/id/local-authority/38,Oxfordshire County Council,Homes for Ukraine - Guests,12/07/2023,5896,Adult Social Care - Other Transfer Pay,3500097579,550,Personal Redacted Data
http://statistics.data.gov.uk/id/local-authority/38,Oxfordshire County Council,Homes for Ukraine - Guests,12/07/2023,5896,Adult Social Care - Other Transfer Pay,3500097644,550,Personal Redacted Data
http://statistics.data.gov.uk/id/local-authority/38,Oxfordshire County Council,Homes for Ukraine - Guests,10/07/2023,5896,Adult Social Care - Other Transfer Pay,3500097544,550,Personal Redacted Data
http://statistics.data.gov.uk/id/local-authority/38,Oxfordshire County Council,Homes for Ukraine - Guests,14/07/2023,5896,Adult Social Care - Other Transfer Pay,3500097660,550,Personal Redacted Data
http://statistics.data.gov.uk/id/local-authority/38,Oxfordshire County Council,Homes for Ukraine - Guests,04/07/2023,5896,Adult Social Care - Other Transfer Pay,3500097350,550,Personal Redacted Data
http://statistics.data.gov.uk/id/local-authority/38,Oxfordshire County Council,Homes for Ukraine - Guests,12/07/2023,5896,Adult Social Care - Other Transfer Pay,3500097594,550,Personal Redacted Data
http://statistics.data.gov.uk/id/local-authority/38,Oxfordshire County Council,Homes for Ukraine - Guests,17/07/2023,5896,Adult Social Care - Other Transfer Pay,3500097694,550,Personal Redacted Data
http://statistics.data.gov.uk/id/local-authority/38,Oxfordshire County Council,Homes for Ukraine - Guests,12/07/2023,5896,Adult Social Care - Other Transfer Pay,3500097586,550,Personal Redacted Data
http://statistics.data.gov.uk/id/local-authority/38,Oxfordshire County Council,Homes for Ukraine - Guests,24/07/2023,5896,Adult Social Care - Other Transfer Pay,3500097820,550,Personal Redacted Data
http://statistics.data.gov.uk/id/local-authority/38,Oxfordshire County Council,Homes for Ukraine - Guests,21/07/2023,5896,Adult Social Care - Other Transfer Pay,3500097808,550,Personal Redacted Data
http://statistics.data.gov.uk/id/local-authority/38,Oxfordshire County Council,Homes for Ukraine - Guests,05/07/2023,5896,Adult Social Care - Other Transfer Pay,3500097377,550,Personal Redacted Data
http://statistics.data.gov.uk/id/local-authority/38,Oxfordshire County Council,Homes for Ukraine - Guests,14/07/2023,5896,Adult Social Care - Other Transfer Pay,3500097659,550,Personal Redacted Data
http://statistics.data.gov.uk/id/local-authority/38,Oxfordshire County Council,Homes for Ukraine - Guests,05/07/2023,5896,Adult Social Care - Other Transfer Pay,3500097372,550,Personal Redacted Data
http://statistics.data.gov.uk/id/local-authority/38,Oxfordshire County Council,Homes for Ukraine - Guests,05/07/2023,5896,Adult Social Care - Other Transfer Pay,3500097395,550,Personal Redacted Data
http://statistics.data.gov.uk/id/local-authority/38,Oxfordshire County Council,Homes for Ukraine - Guests,10/07/2023,5896,Adult Social Care - Other Transfer Pay,3500097548,550,Personal Redacted Data
http://statistics.data.gov.uk/id/local-authority/38,Oxfordshire County Council,Homes for Ukraine - Guests,03/07/2023,5896,Adult Social Care - Other Transfer Pay,3500097297,550,Personal Redacted Data
http://statistics.data.gov.uk/id/local-authority/38,Oxfordshire County Council,Homes for Ukraine - Guests,12/07/2023,5896,Adult Social Care - Other Transfer Pay,3500097582,550,Personal Redacted Data
http://statistics.data.gov.uk/id/local-authority/38,Oxfordshire County Council,Homes for Ukraine - Guests,05/07/2023,5896,Adult Social Care - Other Transfer Pay,3500097378,550,Personal Redacted Data
http://statistics.data.gov.uk/id/local-authority/38,Oxfordshire County Council,Homes for Ukraine - Guests,26/07/2023,5896,Adult Social Care - Other Transfer Pay,3500097908,550,Personal Redacted Data
http://statistics.data.gov.uk/id/local-authority/38,Oxfordshire County Council,Homes for Ukraine - Guests,05/07/2023,5896,Adult Social Care - Other Transfer Pay,3500097406,550,Personal Redacted Data
http://statistics.data.gov.uk/id/local-authority/38,Oxfordshire County Council,Homes for Ukraine - Guests,12/07/2023,5896,Adult Social Care - Other Transfer Pay,3500097621,550,Personal Redacted Data
http://statistics.data.gov.uk/id/local-authority/38,Oxfordshire County Council,Homes for Ukraine - Guests,07/07/2023,5896,Adult Social Care - Other Transfer Pay,3500097461,550,Personal Redacted Data
http://statistics.data.gov.uk/id/local-authority/38,Oxfordshire County Council,Homes for Ukraine - Guests,12/07/2023,5896,Adult Social Care - Other Transfer Pay,3500097638,550,Personal Redacted Data
http://statistics.data.gov.uk/id/local-authority/38,Oxfordshire County Council,Homes for Ukraine - Guests,12/07/2023,5896,Adult Social Care - Other Transfer Pay,3500097610,550,Personal Redacted Data
http://statistics.data.gov.uk/id/local-authority/38,Oxfordshire County Council,Homes for Ukraine - Guests,03/07/2023,5896,Adult Social Care - Other Transfer Pay,3500097322,550,Personal Redacted Data
http://statistics.data.gov.uk/id/local-authority/38,Oxfordshire County Council,Homes for Ukraine - Guests,06/07/2023,5896,Adult Social Care - Other Transfer Pay,3500097435,550,Personal Redacted Data
http://statistics.data.gov.uk/id/local-authority/38,Oxfordshire County Council,Homes for Ukraine - Guests,17/07/2023,5896,Adult Social Care - Other Transfer Pay,3500097697,550,Personal Redacted Data
http://statistics.data.gov.uk/id/local-authority/38,Oxfordshire County Council,Homes for Ukraine - Guests,11/07/2023,5896,Adult Social Care - Other Transfer Pay,3500097572,550,Personal Redacted Data
http://statistics.data.gov.uk/id/local-authority/38,Oxfordshire County Council,Homes for Ukraine - Guests,24/07/2023,5896,Adult Social Care - Other Transfer Pay,3500097831,550,Personal Redacted Data
http://statistics.data.gov.uk/id/local-authority/38,Oxfordshire County Council,Homes for Ukraine - Guests,25/07/2023,5896,Adult Social Care - Other Transfer Pay,3500097896,550,Personal Redacted Data
http://statistics.data.gov.uk/id/local-authority/38,Oxfordshire County Council,Homes for Ukraine - Guests,17/07/2023,5896,Adult Social Care - Other Transfer Pay,3500097687,550,Personal Redacted Data
http://statistics.data.gov.uk/id/local-authority/38,Oxfordshire County Council,Homes for Ukraine - Guests,03/07/2023,5896,Adult Social Care - Other Transfer Pay,3500097302,550,Personal Redacted Data
http://statistics.data.gov.uk/id/local-authority/38,Oxfordshire County Council,Homes for Ukraine - Guests,12/07/2023,5896,Adult Social Care - Other Transfer Pay,3500097637,550,Personal Redacted Data
http://statistics.data.gov.uk/id/local-authority/38,Oxfordshire County Council,Homes for Ukraine - Guests,18/07/2023,5896,Adult Social Care - Other Transfer Pay,3500097714,550,Personal Redacted Data
http://statistics.data.gov.uk/id/local-authority/38,Oxfordshire County Council,Homes for Ukraine - Guests,07/07/2023,5896,Adult Social Care - Other Transfer Pay,3500097475,550,Personal Redacted Data
http://statistics.data.gov.uk/id/local-authority/38,Oxfordshire County Council,Homes for Ukraine - Guests,19/07/2023,5896,Adult Social Care - Other Transfer Pay,3500097747,550,Personal Redacted Data
http://statistics.data.gov.uk/id/local-authority/38,Oxfordshire County Council,Homes for Ukraine - Guests,06/07/2023,5896,Adult Social Care - Other Transfer Pay,3500097437,550,Personal Redacted Data
http://statistics.data.gov.uk/id/local-authority/38,Oxfordshire County Council,Homes for Ukraine - Guests,21/07/2023,5896,Adult Social Care - Other Transfer Pay,3500097798,550,Personal Redacted Data
http://statistics.data.gov.uk/id/local-authority/38,Oxfordshire County Council,Homes for Ukraine - Guests,05/07/2023,5896,Adult Social Care - Other Transfer Pay,3500097364,550,Personal Redacted Data
http://statistics.data.gov.uk/id/local-authority/38,Oxfordshire County Council,Homes for Ukraine - Guests,28/07/2023,5896,Adult Social Care - Other Transfer Pay,3500097974,550,Personal Redacted Data
http://statistics.data.gov.uk/id/local-authority/38,Oxfordshire County Council,Homes for Ukraine - Guests,19/07/2023,5896,Adult Social Care - Other Transfer Pay,3500097759,550,Personal Redacted Data
http://statistics.data.gov.uk/id/local-authority/38,Oxfordshire County Council,Homes for Ukraine - Guests,19/07/2023,5896,Adult Social Care - Other Transfer Pay,3500097729,550,Personal Redacted Data
http://statistics.data.gov.uk/id/local-authority/38,Oxfordshire County Council,Homes for Ukraine - Guests,03/07/2023,5896,Adult Social Care - Other Transfer Pay,3500097324,550,Personal Redacted Data
http://statistics.data.gov.uk/id/local-authority/38,Oxfordshire County Council,Homes for Ukraine - Guests,07/07/2023,5896,Adult Social Care - Other Transfer Pay,3500097471,550,Personal Redacted Data
http://statistics.data.gov.uk/id/local-authority/38,Oxfordshire County Council,Homes for Ukraine - Guests,19/07/2023,5896,Adult Social Care - Other Transfer Pay,3500097733,550,Personal Redacted Data
http://statistics.data.gov.uk/id/local-authority/38,Oxfordshire County Council,Homes for Ukraine - Guests,24/07/2023,5896,Adult Social Care - Other Transfer Pay,3500097853,550,Personal Redacted Data
http://statistics.data.gov.uk/id/local-authority/38,Oxfordshire County Council,Homes for Ukraine - Guests,31/07/2023,5896,Adult Social Care - Other Transfer Pay,3500098161,550,Personal Redacted Data
http://statistics.data.gov.uk/id/local-authority/38,Oxfordshire County Council,Homes for Ukraine - Guests,27/07/2023,5896,Adult Social Care - Other Transfer Pay,3500097946,550,Personal Redacted Data
http://statistics.data.gov.uk/id/local-authority/38,Oxfordshire County Council,Homes for Ukraine - Guests,28/07/2023,5896,Adult Social Care - Other Transfer Pay,3500097948,550,Personal Redacted Data
http://statistics.data.gov.uk/id/local-authority/38,Oxfordshire County Council,Homes for Ukraine - Guests,24/07/2023,5896,Adult Social Care - Other Transfer Pay,3500097839,550,Personal Redacted Data
http://statistics.data.gov.uk/id/local-authority/38,Oxfordshire County Council,Homes for Ukraine - Guests,19/07/2023,5896,Adult Social Care - Other Transfer Pay,3500097748,550,Personal Redacted Data
http://statistics.data.gov.uk/id/local-authority/38,Oxfordshire County Council,Homes for Ukraine - Guests,12/07/2023,5896,Adult Social Care - Other Transfer Pay,3500097605,550,Personal Redacted Data
http://statistics.data.gov.uk/id/local-authority/38,Oxfordshire County Council,Homes for Ukraine - Guests,05/07/2023,5896,Adult Social Care - Other Transfer Pay,3500097374,550,Personal Redacted Data
http://statistics.data.gov.uk/id/local-authority/38,Oxfordshire County Council,Homes for Ukraine - Guests,12/07/2023,5896,Adult Social Care - Other Transfer Pay,3500097592,550,Personal Redacted Data
http://statistics.data.gov.uk/id/local-authority/38,Oxfordshire County Council,Homes for Ukraine - Guests,10/07/2023,5896,Adult Social Care - Other Transfer Pay,3500097538,550,Personal Redacted Data
http://statistics.data.gov.uk/id/local-authority/38,Oxfordshire County Council,Homes for Ukraine - Guests,12/07/2023,5896,Adult Social Care - Other Transfer Pay,3500097642,550,Personal Redacted Data
http://statistics.data.gov.uk/id/local-authority/38,Oxfordshire County Council,FLEET MAINTENANCE,19/07/2023,4210,Vehicles and Plant - Repairs and Main,2201133472,550,AWP Body Repairs
http://statistics.data.gov.uk/id/local-authority/38,Oxfordshire County Council,Homes for Ukraine - Guests,28/07/2023,5896,Adult Social Care - Other Transfer Pay,3500097947,550,Personal Redacted Data
http://statistics.data.gov.uk/id/local-authority/38,Oxfordshire County Council,Homes for Ukraine - Guests,14/07/2023,5896,Adult Social Care - Other Transfer Pay,3500097670,550,Personal Redacted Data
http://statistics.data.gov.uk/id/local-authority/38,Oxfordshire County Council,Homes for Ukraine - Guests,06/07/2023,5896,Adult Social Care - Other Transfer Pay,3500097432,550,Personal Redacted Data
http://statistics.data.gov.uk/id/local-authority/38,Oxfordshire County Council,Homes for Ukraine - Guests,19/07/2023,5896,Adult Social Care - Other Transfer Pay,3500097746,550,Personal Redacted Data
http://statistics.data.gov.uk/id/local-authority/38,Oxfordshire County Council,Homes for Ukraine - Guests,24/07/2023,5896,Adult Social Care - Other Transfer Pay,3500097848,550,Personal Redacted Data
http://statistics.data.gov.uk/id/local-authority/38,Oxfordshire County Council,Homes for Ukraine - Guests,12/07/2023,5896,Adult Social Care - Other Transfer Pay,3500097645,550,Personal Redacted Data
http://statistics.data.gov.uk/id/local-authority/38,Oxfordshire County Council,Homes for Ukraine - Guests,11/07/2023,5896,Adult Social Care - Other Transfer Pay,3500097573,550,Personal Redacted Data
http://statistics.data.gov.uk/id/local-authority/38,Oxfordshire County Council,Homes for Ukraine - Guests,17/07/2023,5896,Adult Social Care - Other Transfer Pay,3500097686,550,Personal Redacted Data
http://statistics.data.gov.uk/id/local-authority/38,Oxfordshire County Council,Homes for Ukraine - Guests,14/07/2023,5896,Adult Social Care - Other Transfer Pay,3500097674,550,Personal Redacted Data
http://statistics.data.gov.uk/id/local-authority/38,Oxfordshire County Council,Homes for Ukraine - Guests,05/07/2023,5896,Adult Social Care - Other Transfer Pay,3500097403,550,Personal Redacted Data
http://statistics.data.gov.uk/id/local-authority/38,Oxfordshire County Council,Homes for Ukraine - Guests,24/07/2023,5896,Adult Social Care - Other Transfer Pay,3500097855,550,Personal Redacted Data
http://statistics.data.gov.uk/id/local-authority/38,Oxfordshire County Council,Homes for Ukraine - Guests,19/07/2023,5896,Adult Social Care - Other Transfer Pay,3500097767,550,Personal Redacted Data
http://statistics.data.gov.uk/id/local-authority/38,Oxfordshire County Council,Homes for Ukraine - Guests,28/07/2023,5896,Adult Social Care - Other Transfer Pay,3500097961,550,Personal Redacted Data
http://statistics.data.gov.uk/id/local-authority/38,Oxfordshire County Council,Homes for Ukraine - Guests,24/07/2023,5896,Adult Social Care - Other Transfer Pay,3500097835,550,Personal Redacted Data
http://statistics.data.gov.uk/id/local-authority/38,Oxfordshire County Council,Homes for Ukraine - Guests,18/07/2023,5896,Adult Social Care - Other Transfer Pay,3500097710,550,Personal Redacted Data
http://statistics.data.gov.uk/id/local-authority/38,Oxfordshire County Council,Homes for Ukraine - Guests,28/07/2023,5896,Adult Social Care - Other Transfer Pay,3500097959,550,Personal Redacted Data
http://statistics.data.gov.uk/id/local-authority/38,Oxfordshire County Council,Homes for Ukraine - Guests,06/07/2023,5896,Adult Social Care - Other Transfer Pay,3500097430,550,Personal Redacted Data
http://statistics.data.gov.uk/id/local-authority/38,Oxfordshire County Council,Homes for Ukraine - Guests,05/07/2023,5896,Adult Social Care - Other Transfer Pay,3500097363,550,Personal Redacted Data
http://statistics.data.gov.uk/id/local-authority/38,Oxfordshire County Council,Homes for Ukraine - Guests,24/07/2023,5896,Adult Social Care - Other Transfer Pay,3500097873,550,Personal Redacted Data
http://statistics.data.gov.uk/id/local-authority/38,Oxfordshire County Council,Homes for Ukraine - Guests,12/07/2023,5896,Adult Social Care - Other Transfer Pay,3500097625,550,Personal Redacted Data
http://statistics.data.gov.uk/id/local-authority/38,Oxfordshire County Council,Homes for Ukraine - Guests,19/07/2023,5896,Adult Social Care - Other Transfer Pay,3500097728,550,Personal Redacted Data
http://statistics.data.gov.uk/id/local-authority/38,Oxfordshire County Council,Homes for Ukraine - Guests,14/07/2023,5896,Adult Social Care - Other Transfer Pay,3500097676,550,Personal Redacted Data
http://statistics.data.gov.uk/id/local-authority/38,Oxfordshire County Council,Homes for Ukraine - Guests,24/07/2023,5896,Adult Social Care - Other Transfer Pay,3500097864,550,Personal Redacted Data
http://statistics.data.gov.uk/id/local-authority/38,Oxfordshire County Council,Homes for Ukraine - Guests,05/07/2023,5896,Adult Social Care - Other Transfer Pay,3500097383,550,Personal Redacted Data
http://statistics.data.gov.uk/id/local-authority/38,Oxfordshire County Council,Homes for Ukraine - Guests,05/07/2023,5896,Adult Social Care - Other Transfer Pay,3500097404,550,Personal Redacted Data
http://statistics.data.gov.uk/id/local-authority/38,Oxfordshire County Council,Homes for Ukraine - Guests,03/07/2023,5896,Adult Social Care - Other Transfer Pay,3500097318,550,Personal Redacted Data
http://statistics.data.gov.uk/id/local-authority/38,Oxfordshire County Council,Homes for Ukraine - Guests,10/07/2023,5896,Adult Social Care - Other Transfer Pay,3500097558,550,Personal Redacted Data
http://statistics.data.gov.uk/id/local-authority/38,Oxfordshire County Council,Homes for Ukraine - Guests,05/07/2023,5896,Adult Social Care - Other Transfer Pay,3500097391,550,Personal Redacted Data
http://statistics.data.gov.uk/id/local-authority/38,Oxfordshire County Council,Homes for Ukraine - Guests,03/07/2023,5896,Adult Social Care - Other Transfer Pay,3500097316,550,Personal Redacted Data
http://statistics.data.gov.uk/id/local-authority/38,Oxfordshire County Council,Homes for Ukraine - Guests,05/07/2023,5896,Adult Social Care - Other Transfer Pay,3500097368,550,Personal Redacted Data
http://statistics.data.gov.uk/id/local-authority/38,Oxfordshire County Council,Homes for Ukraine - Guests,18/07/2023,5896,Adult Social Care - Other Transfer Pay,3500097711,550,Personal Redacted Data
http://statistics.data.gov.uk/id/local-authority/38,Oxfordshire County Council,Homes for Ukraine - Guests,05/07/2023,5896,Adult Social Care - Other Transfer Pay,3500097365,550,Personal Redacted Data
http://statistics.data.gov.uk/id/local-authority/38,Oxfordshire County Council,Homes for Ukraine - Guests,24/07/2023,5896,Adult Social Care - Other Transfer Pay,3500097829,550,Personal Redacted Data
http://statistics.data.gov.uk/id/local-authority/38,Oxfordshire County Council,Homes for Ukraine - Guests,28/07/2023,5896,Adult Social Care - Other Transfer Pay,3500097954,550,Personal Redacted Data
http://statistics.data.gov.uk/id/local-authority/38,Oxfordshire County Council,Homes for Ukraine - Guests,24/07/2023,5896,Adult Social Care - Other Transfer Pay,3500097826,550,Personal Redacted Data
http://statistics.data.gov.uk/id/local-authority/38,Oxfordshire County Council,Homes for Ukraine - Guests,24/07/2023,5896,Adult Social Care - Other Transfer Pay,3500097849,550,Personal Redacted Data
http://statistics.data.gov.uk/id/local-authority/38,Oxfordshire County Council,Homes for Ukraine - Guests,05/07/2023,5896,Adult Social Care - Other Transfer Pay,3500097388,550,Personal Redacted Data
http://statistics.data.gov.uk/id/local-authority/38,Oxfordshire County Council,Homes for Ukraine - Guests,24/07/2023,5896,Adult Social Care - Other Transfer Pay,3500097840,550,Personal Redacted Data
http://statistics.data.gov.uk/id/local-authority/38,Oxfordshire County Council,Homes for Ukraine - Guests,24/07/2023,5896,Adult Social Care - Other Transfer Pay,3500097886,550,Personal Redacted Data
http://statistics.data.gov.uk/id/local-authority/38,Oxfordshire County Council,Homes for Ukraine - Guests,05/07/2023,5896,Adult Social Care - Other Transfer Pay,3500097398,550,Personal Redacted Data
http://statistics.data.gov.uk/id/local-authority/38,Oxfordshire County Council,Homes for Ukraine - Guests,18/07/2023,5896,Adult Social Care - Other Transfer Pay,3500097712,550,Personal Redacted Data
http://statistics.data.gov.uk/id/local-authority/38,Oxfordshire County Council,Homes for Ukraine - Guests,24/07/2023,5896,Adult Social Care - Other Transfer Pay,3500097874,550,Personal Redacted Data
http://statistics.data.gov.uk/id/local-authority/38,Oxfordshire County Council,Homes for Ukraine - Guests,12/07/2023,5896,Adult Social Care - Other Transfer Pay,3500097591,550,Personal Redacted Data
http://statistics.data.gov.uk/id/local-authority/38,Oxfordshire County Council,Homes for Ukraine - Guests,19/07/2023,5896,Adult Social Care - Other Transfer Pay,3500097754,550,Personal Redacted Data
http://statistics.data.gov.uk/id/local-authority/38,Oxfordshire County Council,Homes for Ukraine - Guests,12/07/2023,5896,Adult Social Care - Other Transfer Pay,3500097633,550,Personal Redacted Data
http://statistics.data.gov.uk/id/local-authority/38,Oxfordshire County Council,Homes for Ukraine - Guests,05/07/2023,5896,Adult Social Care - Other Transfer Pay,3500097358,550,Personal Redacted Data
http://statistics.data.gov.uk/id/local-authority/38,Oxfordshire County Council,Homes for Ukraine - Guests,19/07/2023,5896,Adult Social Care - Other Transfer Pay,3500097771,550,Personal Redacted Data
http://statistics.data.gov.uk/id/local-authority/38,Oxfordshire County Council,Homes for Ukraine - Guests,11/07/2023,5896,Adult Social Care - Other Transfer Pay,3500097570,550,Personal Redacted Data
http://statistics.data.gov.uk/id/local-authority/38,Oxfordshire County Council,Homes for Ukraine - Guests,03/07/2023,5896,Adult Social Care - Other Transfer Pay,3500097321,550,Personal Redacted Data
http://statistics.data.gov.uk/id/local-authority/38,Oxfordshire County Council,Homes for Ukraine - Guests,19/07/2023,5896,Adult Social Care - Other Transfer Pay,3500097764,550,Personal Redacted Data
http://statistics.data.gov.uk/id/local-authority/38,Oxfordshire County Council,TRANSPORT COSTS,11/07/2023,4330,Transport to School Activities,3111468708,550,D�Arrive Ltd
http://statistics.data.gov.uk/id/local-authority/38,Oxfordshire County Council,Homes for Ukraine - Guests,24/07/2023,5896,Adult Social Care - Other Transfer Pay,3500097847,550,Personal Redacted Data
http://statistics.data.gov.uk/id/local-authority/38,Oxfordshire County Council,Homes for Ukraine - Guests,19/07/2023,5896,Adult Social Care - Other Transfer Pay,3500097755,550,Personal Redacted Data
http://statistics.data.gov.uk/id/local-authority/38,Oxfordshire County Council,Homes for Ukraine - Guests,14/07/2023,5896,Adult Social Care - Other Transfer Pay,3500097655,550,Personal Redacted Data
http://statistics.data.gov.uk/id/local-authority/38,Oxfordshire County Council,Homes for Ukraine - Guests,24/07/2023,5896,Adult Social Care - Other Transfer Pay,3500097851,550,Personal Redacted Data
http://statistics.data.gov.uk/id/local-authority/38,Oxfordshire County Council,Homes for Ukraine - Guests,10/07/2023,5896,Adult Social Care - Other Transfer Pay,3500097535,550,Personal Redacted Data
http://statistics.data.gov.uk/id/local-authority/38,Oxfordshire County Council,Homes for Ukraine - Guests,11/07/2023,5896,Adult Social Care - Other Transfer Pay,3500097577,550,Personal Redacted Data
http://statistics.data.gov.uk/id/local-authority/38,Oxfordshire County Council,Homes for Ukraine - Guests,18/07/2023,5896,Adult Social Care - Other Transfer Pay,3500097703,550,Personal Redacted Data
http://statistics.data.gov.uk/id/local-authority/38,Oxfordshire County Council,Homes for Ukraine - Guests,12/07/2023,5896,Adult Social Care - Other Transfer Pay,3500097609,550,Personal Redacted Data
http://statistics.data.gov.uk/id/local-authority/38,Oxfordshire County Council,Homes for Ukraine - Guests,06/07/2023,5896,Adult Social Care - Other Transfer Pay,3500097445,550,Personal Redacted Data
http://statistics.data.gov.uk/id/local-authority/38,Oxfordshire County Council,Homes for Ukraine - Guests,06/07/2023,5896,Adult Social Care - Other Transfer Pay,3500097428,550,Personal Redacted Data
http://statistics.data.gov.uk/id/local-authority/38,Oxfordshire County Council,Homes for Ukraine - Guests,24/07/2023,5896,Adult Social Care - Other Transfer Pay,3500097872,550,Personal Redacted Data
http://statistics.data.gov.uk/id/local-authority/38,Oxfordshire County Council,Homes for Ukraine - Guests,24/07/2023,5896,Adult Social Care - Other Transfer Pay,3500097823,550,Personal Redacted Data
http://statistics.data.gov.uk/id/local-authority/38,Oxfordshire County Council,Homes for Ukraine - Guests,06/07/2023,5896,Adult Social Care - Other Transfer Pay,3500097438,550,Personal Redacted Data
http://statistics.data.gov.uk/id/local-authority/38,Oxfordshire County Council,Homes for Ukraine - Guests,28/07/2023,5896,Adult Social Care - Other Transfer Pay,3500097973,550,Personal Redacted Data
http://statistics.data.gov.uk/id/local-authority/38,Oxfordshire County Council,Homes for Ukraine - Guests,24/07/2023,5896,Adult Social Care - Other Transfer Pay,3500097827,550,Personal Redacted Data
http://statistics.data.gov.uk/id/local-authority/38,Oxfordshire County Council,Homes for Ukraine - Guests,12/07/2023,5896,Adult Social Care - Other Transfer Pay,3500097618,550,Personal Redacted Data
http://statistics.data.gov.uk/id/local-authority/38,Oxfordshire County Council,Homes for Ukraine - Guests,19/07/2023,5896,Adult Social Care - Other Transfer Pay,3500097737,550,Personal Redacted Data
http://statistics.data.gov.uk/id/local-authority/38,Oxfordshire County Council,Homes for Ukraine - Guests,19/07/2023,5896,Adult Social Care - Other Transfer Pay,3500097772,550,Personal Redacted Data
http://statistics.data.gov.uk/id/local-authority/38,Oxfordshire County Council,Homes for Ukraine - Guests,18/07/2023,5896,Adult Social Care - Other Transfer Pay,3500097713,550,Personal Redacted Data
http://statistics.data.gov.uk/id/local-authority/38,Oxfordshire County Council,Homes for Ukraine - Guests,12/07/2023,5896,Adult Social Care - Other Transfer Pay,3500097587,550,Personal Redacted Data
http://statistics.data.gov.uk/id/local-authority/38,Oxfordshire County Council,Homes for Ukraine - Guests,05/07/2023,5896,Adult Social Care - Other Transfer Pay,3500097392,550,Personal Redacted Data
http://statistics.data.gov.uk/id/local-authority/38,Oxfordshire County Council,Homes for Ukraine - Guests,14/07/2023,5896,Adult Social Care - Other Transfer Pay,3500097654,550,Personal Redacted Data
http://statistics.data.gov.uk/id/local-authority/38,Oxfordshire County Council,Homes for Ukraine - Guests,12/07/2023,5896,Adult Social Care - Other Transfer Pay,3500097580,550,Personal Redacted Data
http://statistics.data.gov.uk/id/local-authority/38,Oxfordshire County Council,Homes for Ukraine - Guests,28/07/2023,5896,Adult Social Care - Other Transfer Pay,3500097966,550,Personal Redacted Data
http://statistics.data.gov.uk/id/local-authority/38,Oxfordshire County Council,Homes for Ukraine - Guests,27/07/2023,5896,Adult Social Care - Other Transfer Pay,3500097930,550,Personal Redacted Data
http://statistics.data.gov.uk/id/local-authority/38,Oxfordshire County Council,Homes for Ukraine - Guests,14/07/2023,5896,Adult Social Care - Other Transfer Pay,3500097665,550,Personal Redacted Data
http://statistics.data.gov.uk/id/local-authority/38,Oxfordshire County Council,Homes for Ukraine - Guests,19/07/2023,5896,Adult Social Care - Other Transfer Pay,3500097773,550,Personal Redacted Data
http://statistics.data.gov.uk/id/local-authority/38,Oxfordshire County Council,Homes for Ukraine - Guests,17/07/2023,5896,Adult Social Care - Other Transfer Pay,3500097683,550,Personal Redacted Data
http://statistics.data.gov.uk/id/local-authority/38,Oxfordshire County Council,Homes for Ukraine - Guests,12/07/2023,5896,Adult Social Care - Other Transfer Pay,3500097598,550,Personal Redacted Data
http://statistics.data.gov.uk/id/local-authority/38,Oxfordshire County Council,LEGAL SERVICES,24/07/2023,5251,Legal Costs,2201136094,550,Elisabeth Wickham
http://statistics.data.gov.uk/id/local-authority/38,Oxfordshire County Council,Homes for Ukraine - Guests,24/07/2023,5896,Adult Social Care - Other Transfer Pay,3500097858,550,Personal Redacted Data
http://statistics.data.gov.uk/id/local-authority/38,Oxfordshire County Council,Homes for Ukraine - Guests,12/07/2023,5896,Adult Social Care - Other Transfer Pay,3500097612,550,Personal Redacted Data
http://statistics.data.gov.uk/id/local-authority/38,Oxfordshire County Council,Homes for Ukraine - Guests,14/07/2023,5896,Adult Social Care - Other Transfer Pay,3500097666,550,Personal Redacted Data
http://statistics.data.gov.uk/id/local-authority/38,Oxfordshire County Council,Homes for Ukraine - Guests,06/07/2023,5896,Adult Social Care - Other Transfer Pay,3500097433,550,Personal Redacted Data
http://statistics.data.gov.uk/id/local-authority/38,Oxfordshire County Council,Homes for Ukraine - Guests,03/07/2023,5896,Adult Social Care - Other Transfer Pay,3500097317,550,Personal Redacted Data
http://statistics.data.gov.uk/id/local-authority/38,Oxfordshire County Council,Homes for Ukraine - Guests,05/07/2023,5896,Adult Social Care - Other Transfer Pay,3500097402,550,Personal Redacted Data
http://statistics.data.gov.uk/id/local-authority/38,Oxfordshire County Council,Homes for Ukraine - Guests,19/07/2023,5896,Adult Social Care - Other Transfer Pay,3500097726,550,Personal Redacted Data
http://statistics.data.gov.uk/id/local-authority/38,Oxfordshire County Council,Homes for Ukraine - Guests,24/07/2023,5896,Adult Social Care - Other Transfer Pay,3500097888,550,Personal Redacted Data
http://statistics.data.gov.uk/id/local-authority/38,Oxfordshire County Council,Homes for Ukraine - Guests,12/07/2023,5896,Adult Social Care - Other Transfer Pay,3500097622,550,Personal Redacted Data
http://statistics.data.gov.uk/id/local-authority/38,Oxfordshire County Council,Homes for Ukraine - Guests,19/07/2023,5896,Adult Social Care - Other Transfer Pay,3500097731,550,Personal Redacted Data
http://statistics.data.gov.uk/id/local-authority/38,Oxfordshire County Council,Homes for Ukraine - Guests,25/07/2023,5896,Adult Social Care - Other Transfer Pay,3500097899,550,Personal Redacted Data
http://statistics.data.gov.uk/id/local-authority/38,Oxfordshire County Council,Homes for Ukraine - Guests,14/07/2023,5896,Adult Social Care - Other Transfer Pay,3500097656,550,Personal Redacted Data
http://statistics.data.gov.uk/id/local-authority/38,Oxfordshire County Council,Homes for Ukraine - Guests,05/07/2023,5896,Adult Social Care - Other Transfer Pay,3500097357,550,Personal Redacted Data
http://statistics.data.gov.uk/id/local-authority/38,Oxfordshire County Council,Homes for Ukraine - Guests,12/07/2023,5896,Adult Social Care - Other Transfer Pay,3500097628,550,Personal Redacted Data
http://statistics.data.gov.uk/id/local-authority/38,Oxfordshire County Council,Homes for Ukraine - Guests,24/07/2023,5896,Adult Social Care - Other Transfer Pay,3500097819,550,Personal Redacted Data
http://statistics.data.gov.uk/id/local-authority/38,Oxfordshire County Council,Homes for Ukraine - Guests,12/07/2023,5896,Adult Social Care - Other Transfer Pay,3500097602,550,Personal Redacted Data
http://statistics.data.gov.uk/id/local-authority/38,Oxfordshire County Council,Homes for Ukraine - Guests,04/07/2023,5896,Adult Social Care - Other Transfer Pay,3500097335,550,Personal Redacted Data
http://statistics.data.gov.uk/id/local-authority/38,Oxfordshire County Council,Homes for Ukraine - Guests,24/07/2023,5896,Adult Social Care - Other Transfer Pay,3500097857,550,Personal Redacted Data
http://statistics.data.gov.uk/id/local-authority/38,Oxfordshire County Council,Homes for Ukraine - Guests,17/07/2023,5896,Adult Social Care - Other Transfer Pay,3500097693,550,Personal Redacted Data
http://statistics.data.gov.uk/id/local-authority/38,Oxfordshire County Council,Homes for Ukraine - Guests,24/07/2023,5896,Adult Social Care - Other Transfer Pay,3500097885,550,Personal Redacted Data
http://statistics.data.gov.uk/id/local-authority/38,Oxfordshire County Council,Homes for Ukraine - Guests,13/07/2023,5896,Adult Social Care - Other Transfer Pay,3500097647,550,Personal Redacted Data
http://statistics.data.gov.uk/id/local-authority/38,Oxfordshire County Council,Homes for Ukraine - Guests,04/07/2023,5896,Adult Social Care - Other Transfer Pay,3500097334,550,Personal Redacted Data
http://statistics.data.gov.uk/id/local-authority/38,Oxfordshire County Council,Homes for Ukraine - Guests,14/07/2023,5896,Adult Social Care - Other Transfer Pay,3500097663,550,Personal Redacted Data
http://statistics.data.gov.uk/id/local-authority/38,Oxfordshire County Council,Homes for Ukraine - Guests,05/07/2023,5896,Adult Social Care - Other Transfer Pay,3500097401,550,Personal Redacted Data
http://statistics.data.gov.uk/id/local-authority/38,Oxfordshire County Council,Homes for Ukraine - Guests,12/07/2023,5896,Adult Social Care - Other Transfer Pay,3500097606,550,Personal Redacted Data
http://statistics.data.gov.uk/id/local-authority/38,Oxfordshire County Council,Homes for Ukraine - Guests,26/07/2023,5896,Adult Social Care - Other Transfer Pay,3500097916,550,Personal Redacted Data
http://statistics.data.gov.uk/id/local-authority/38,Oxfordshire County Council,Homes for Ukraine - Guests,05/07/2023,5896,Adult Social Care - Other Transfer Pay,3500097399,550,Personal Redacted Data
http://statistics.data.gov.uk/id/local-authority/38,Oxfordshire County Council,Homes for Ukraine - Guests,03/07/2023,5896,Adult Social Care - Other Transfer Pay,3500097326,550,Personal Redacted Data
http://statistics.data.gov.uk/id/local-authority/38,Oxfordshire County Council,Homes for Ukraine - Guests,04/07/2023,5896,Adult Social Care - Other Transfer Pay,3500097337,550,Personal Redacted Data
http://statistics.data.gov.uk/id/local-authority/38,Oxfordshire County Council,Homes for Ukraine - Guests,19/07/2023,5896,Adult Social Care - Other Transfer Pay,3500097730,550,Personal Redacted Data
http://statistics.data.gov.uk/id/local-authority/38,Oxfordshire County Council,Homes for Ukraine - Guests,12/07/2023,5896,Adult Social Care - Other Transfer Pay,3500097619,550,Personal Redacted Data
http://statistics.data.gov.uk/id/local-authority/38,Oxfordshire County Council,Homes for Ukraine - Guests,24/07/2023,5896,Adult Social Care - Other Transfer Pay,3500097865,550,Personal Redacted Data
http://statistics.data.gov.uk/id/local-authority/38,Oxfordshire County Council,Homes for Ukraine - Guests,27/07/2023,5896,Adult Social Care - Other Transfer Pay,3500097925,550,Personal Redacted Data
http://statistics.data.gov.uk/id/local-authority/38,Oxfordshire County Council,Homes for Ukraine - Guests,21/07/2023,5896,Adult Social Care - Other Transfer Pay,3500097807,550,Personal Redacted Data
http://statistics.data.gov.uk/id/local-authority/38,Oxfordshire County Council,Homes for Ukraine - Guests,17/07/2023,5896,Adult Social Care - Other Transfer Pay,3500097689,550,Personal Redacted Data
http://statistics.data.gov.uk/id/local-authority/38,Oxfordshire County Council,Homes for Ukraine - Guests,24/07/2023,5896,Adult Social Care - Other Transfer Pay,3500097834,550,Personal Redacted Data
http://statistics.data.gov.uk/id/local-authority/38,Oxfordshire County Council,Homes for Ukraine - Guests,19/07/2023,5896,Adult Social Care - Other Transfer Pay,3500097770,550,Personal Redacted Data
http://statistics.data.gov.uk/id/local-authority/38,Oxfordshire County Council,Homes for Ukraine - Guests,12/07/2023,5896,Adult Social Care - Other Transfer Pay,3500097589,550,Personal Redacted Data
http://statistics.data.gov.uk/id/local-authority/38,Oxfordshire County Council,Homes for Ukraine - Guests,12/07/2023,5896,Adult Social Care - Other Transfer Pay,3500097614,550,Personal Redacted Data
http://statistics.data.gov.uk/id/local-authority/38,Oxfordshire County Council,Homes for Ukraine - Guests,20/07/2023,5896,Adult Social Care - Other Transfer Pay,3500097780,550,Personal Redacted Data
http://statistics.data.gov.uk/id/local-authority/38,Oxfordshire County Council,Homes for Ukraine - Guests,06/07/2023,5896,Adult Social Care - Other Transfer Pay,3500097441,550,Personal Redacted Data
http://statistics.data.gov.uk/id/local-authority/38,Oxfordshire County Council,Homes for Ukraine - Guests,03/07/2023,5896,Adult Social Care - Other Transfer Pay,3500097300,550,Personal Redacted Data
http://statistics.data.gov.uk/id/local-authority/38,Oxfordshire County Council,Homes for Ukraine - Guests,24/07/2023,5896,Adult Social Care - Other Transfer Pay,3500097824,550,Personal Redacted Data
http://statistics.data.gov.uk/id/local-authority/38,Oxfordshire County Council,Homes for Ukraine - Guests,12/07/2023,5896,Adult Social Care - Other Transfer Pay,3500097588,550,Personal Redacted Data
http://statistics.data.gov.uk/id/local-authority/38,Oxfordshire County Council,Homes for Ukraine - Guests,12/07/2023,5896,Adult Social Care - Other Transfer Pay,3500097630,550,Personal Redacted Data
http://statistics.data.gov.uk/id/local-authority/38,Oxfordshire County Council,Homes for Ukraine - Guests,24/07/2023,5896,Adult Social Care - Other Transfer Pay,3500097828,550,Personal Redacted Data
http://statistics.data.gov.uk/id/local-authority/38,Oxfordshire County Council,Homes for Ukraine - Guests,24/07/2023,5896,Adult Social Care - Other Transfer Pay,3500097833,550,Personal Redacted Data
http://statistics.data.gov.uk/id/local-authority/38,Oxfordshire County Council,Homes for Ukraine - Guests,03/07/2023,5896,Adult Social Care - Other Transfer Pay,3500097304,550,Personal Redacted Data
http://statistics.data.gov.uk/id/local-authority/38,Oxfordshire County Council,Homes for Ukraine - Guests,25/07/2023,5896,Adult Social Care - Other Transfer Pay,3500097904,550,Personal Redacted Data
http://statistics.data.gov.uk/id/local-authority/38,Oxfordshire County Council,Homes for Ukraine - Guests,05/07/2023,5896,Adult Social Care - Other Transfer Pay,3500097361,550,Personal Redacted Data
http://statistics.data.gov.uk/id/local-authority/38,Oxfordshire County Council,Homes for Ukraine - Guests,24/07/2023,5896,Adult Social Care - Other Transfer Pay,3500097832,550,Personal Redacted Data
http://statistics.data.gov.uk/id/local-authority/38,Oxfordshire County Council,Homes for Ukraine - Guests,19/07/2023,5896,Adult Social Care - Other Transfer Pay,3500097758,550,Personal Redacted Data
http://statistics.data.gov.uk/id/local-authority/38,Oxfordshire County Council,Homes for Ukraine - Guests,28/07/2023,5896,Adult Social Care - Other Transfer Pay,3500097957,550,Personal Redacted Data
http://statistics.data.gov.uk/id/local-authority/38,Oxfordshire County Council,Homes for Ukraine - Guests,04/07/2023,5896,Adult Social Care - Other Transfer Pay,3500097338,550,Personal Redacted Data
http://statistics.data.gov.uk/id/local-authority/38,Oxfordshire County Council,Homes for Ukraine - Guests,19/07/2023,5896,Adult Social Care - Other Transfer Pay,3500097742,550,Personal Redacted Data
http://statistics.data.gov.uk/id/local-authority/38,Oxfordshire County Council,Homes for Ukraine - Guests,12/07/2023,5896,Adult Social Care - Other Transfer Pay,3500097600,550,Personal Redacted Data
http://statistics.data.gov.uk/id/local-authority/38,Oxfordshire County Council,Homes for Ukraine - Guests,19/07/2023,5896,Adult Social Care - Other Transfer Pay,3500097722,550,Personal Redacted Data
http://statistics.data.gov.uk/id/local-authority/38,Oxfordshire County Council,OTHER,10/07/2023,4705,Printing,2201130090,550,ID Management Systems
http://statistics.data.gov.uk/id/local-authority/38,Oxfordshire County Council,OTHER,10/07/2023,4705,Printing,2201130091,550,ID Management Systems
http://statistics.data.gov.uk/id/local-authority/38,Oxfordshire County Council,Homes for Ukraine - Guests,06/07/2023,5896,Adult Social Care - Other Transfer Pay,3500097458,550,Personal Redacted Data
http://statistics.data.gov.uk/id/local-authority/38,Oxfordshire County Council,Homes for Ukraine - Guests,06/07/2023,5896,Adult Social Care - Other Transfer Pay,3500097440,550,Personal Redacted Data
http://statistics.data.gov.uk/id/local-authority/38,Oxfordshire County Council,Homes for Ukraine - Guests,10/07/2023,5896,Adult Social Care - Other Transfer Pay,3500097562,550,Personal Redacted Data
http://statistics.data.gov.uk/id/local-authority/38,Oxfordshire County Council,Homes for Ukraine - Guests,24/07/2023,5896,Adult Social Care - Other Transfer Pay,3500097817,550,Personal Redacted Data
http://statistics.data.gov.uk/id/local-authority/38,Oxfordshire County Council,Homes for Ukraine - Guests,11/07/2023,5896,Adult Social Care - Other Transfer Pay,3500097578,550,Personal Redacted Data
http://statistics.data.gov.uk/id/local-authority/38,Oxfordshire County Council,Homes for Ukraine - Guests,05/07/2023,5896,Adult Social Care - Other Transfer Pay,3500097356,550,Personal Redacted Data
http://statistics.data.gov.uk/id/local-authority/38,Oxfordshire County Council,Homes for Ukraine - Guests,24/07/2023,5896,Adult Social Care - Other Transfer Pay,3500097844,550,Personal Redacted Data
http://statistics.data.gov.uk/id/local-authority/38,Oxfordshire County Council,Homes for Ukraine - Guests,10/07/2023,5896,Adult Social Care - Other Transfer Pay,3500097537,550,Personal Redacted Data
http://statistics.data.gov.uk/id/local-authority/38,Oxfordshire County Council,Homes for Ukraine - Guests,03/07/2023,5896,Adult Social Care - Other Transfer Pay,3500097306,550,Personal Redacted Data
http://statistics.data.gov.uk/id/local-authority/38,Oxfordshire County Council,Homes for Ukraine - Guests,10/07/2023,5896,Adult Social Care - Other Transfer Pay,3500097540,550,Personal Redacted Data
http://statistics.data.gov.uk/id/local-authority/38,Oxfordshire County Council,Homes for Ukraine - Guests,12/07/2023,5896,Adult Social Care - Other Transfer Pay,3500097631,550,Personal Redacted Data
http://statistics.data.gov.uk/id/local-authority/38,Oxfordshire County Council,Homes for Ukraine - Guests,28/07/2023,5896,Adult Social Care - Other Transfer Pay,3500097970,550,Personal Redacted Data
http://statistics.data.gov.uk/id/local-authority/38,Oxfordshire County Council,Homes for Ukraine - Guests,24/07/2023,5896,Adult Social Care - Other Transfer Pay,3500097878,550,Personal Redacted Data
http://statistics.data.gov.uk/id/local-authority/38,Oxfordshire County Council,Homes for Ukraine - Guests,24/07/2023,5896,Adult Social Care - Other Transfer Pay,3500097879,550,Personal Redacted Data
http://statistics.data.gov.uk/id/local-authority/38,Oxfordshire County Council,Homes for Ukraine - Guests,06/07/2023,5896,Adult Social Care - Other Transfer Pay,3500097434,550,Personal Redacted Data
http://statistics.data.gov.uk/id/local-authority/38,Oxfordshire County Council,Homes for Ukraine - Guests,12/07/2023,5896,Adult Social Care - Other Transfer Pay,3500097613,550,Personal Redacted Data
http://statistics.data.gov.uk/id/local-authority/38,Oxfordshire County Council,Homes for Ukraine - Guests,21/07/2023,5896,Adult Social Care - Other Transfer Pay,3500097805,550,Personal Redacted Data
http://statistics.data.gov.uk/id/local-authority/38,Oxfordshire County Council,Homes for Ukraine - Guests,10/07/2023,5896,Adult Social Care - Other Transfer Pay,3500097545,550,Personal Redacted Data
http://statistics.data.gov.uk/id/local-authority/38,Oxfordshire County Council,Homes for Ukraine - Guests,17/07/2023,5896,Adult Social Care - Other Transfer Pay,3500097685,550,Personal Redacted Data
http://statistics.data.gov.uk/id/local-authority/38,Oxfordshire County Council,Homes for Ukraine - Guests,25/07/2023,5896,Adult Social Care - Other Transfer Pay,3500097901,550,Personal Redacted Data
http://statistics.data.gov.uk/id/local-authority/38,Oxfordshire County Council,Homes for Ukraine - Guests,04/07/2023,5896,Adult Social Care - Other Transfer Pay,3500097349,550,Personal Redacted Data
http://statistics.data.gov.uk/id/local-authority/38,Oxfordshire County Council,Homes for Ukraine - Guests,03/07/2023,5896,Adult Social Care - Other Transfer Pay,3500097301,550,Personal Redacted Data
http://statistics.data.gov.uk/id/local-authority/38,Oxfordshire County Council,Homes for Ukraine - Guests,28/07/2023,5896,Adult Social Care - Other Transfer Pay,3500097949,550,Personal Redacted Data
http://statistics.data.gov.uk/id/local-authority/38,Oxfordshire County Council,Homes for Ukraine - Guests,06/07/2023,5896,Adult Social Care - Other Transfer Pay,3500097450,550,Personal Redacted Data
http://statistics.data.gov.uk/id/local-authority/38,Oxfordshire County Council,Homes for Ukraine - Guests,24/07/2023,5896,Adult Social Care - Other Transfer Pay,3500097845,550,Personal Redacted Data
http://statistics.data.gov.uk/id/local-authority/38,Oxfordshire County Council,Homes for Ukraine - Guests,24/07/2023,5896,Adult Social Care - Other Transfer Pay,3500097884,550,Personal Redacted Data
http://statistics.data.gov.uk/id/local-authority/38,Oxfordshire County Council,Homes for Ukraine - Guests,28/07/2023,5896,Adult Social Care - Other Transfer Pay,3500097967,550,Personal Redacted Data
http://statistics.data.gov.uk/id/local-authority/38,Oxfordshire County Council,Homes for Ukraine - Guests,24/07/2023,5896,Adult Social Care - Other Transfer Pay,3500097838,550,Personal Redacted Data
http://statistics.data.gov.uk/id/local-authority/38,Oxfordshire County Council,Homes for Ukraine - Guests,24/07/2023,5896,Adult Social Care - Other Transfer Pay,3500097825,550,Personal Redacted Data
http://statistics.data.gov.uk/id/local-authority/38,Oxfordshire County Council,Homes for Ukraine - Guests,04/07/2023,5896,Adult Social Care - Other Transfer Pay,3500097343,550,Personal Redacted Data
http://statistics.data.gov.uk/id/local-authority/38,Oxfordshire County Council,Homes for Ukraine - Guests,12/07/2023,5896,Adult Social Care - Other Transfer Pay,3500097639,550,Personal Redacted Data
http://statistics.data.gov.uk/id/local-authority/38,Oxfordshire County Council,Homes for Ukraine - Guests,18/07/2023,5896,Adult Social Care - Other Transfer Pay,3500097709,550,Personal Redacted Data
http://statistics.data.gov.uk/id/local-authority/38,Oxfordshire County Council,Homes for Ukraine - Guests,06/07/2023,5896,Adult Social Care - Other Transfer Pay,3500097439,550,Personal Redacted Data
http://statistics.data.gov.uk/id/local-authority/38,Oxfordshire County Council,Homes for Ukraine - Guests,14/07/2023,5896,Adult Social Care - Other Transfer Pay,3500097667,550,Personal Redacted Data
http://statistics.data.gov.uk/id/local-authority/38,Oxfordshire County Council,Homes for Ukraine - Guests,19/07/2023,5896,Adult Social Care - Other Transfer Pay,3500097752,550,Personal Redacted Data
http://statistics.data.gov.uk/id/local-authority/38,Oxfordshire County Council,Homes for Ukraine - Guests,04/07/2023,5896,Adult Social Care - Other Transfer Pay,3500097336,550,Personal Redacted Data
http://statistics.data.gov.uk/id/local-authority/38,Oxfordshire County Council,Homes for Ukraine - Guests,21/07/2023,5896,Adult Social Care - Other Transfer Pay,3500097804,550,Personal Redacted Data
http://statistics.data.gov.uk/id/local-authority/38,Oxfordshire County Council,Homes for Ukraine - Guests,25/07/2023,5896,Adult Social Care - Other Transfer Pay,3500097898,550,Personal Redacted Data
http://statistics.data.gov.uk/id/local-authority/38,Oxfordshire County Council,Homes for Ukraine - Guests,10/07/2023,5896,Adult Social Care - Other Transfer Pay,3500097546,550,Personal Redacted Data
http://statistics.data.gov.uk/id/local-authority/38,Oxfordshire County Council,Homes for Ukraine - Guests,04/07/2023,5896,Adult Social Care - Other Transfer Pay,3500097354,550,Personal Redacted Data
http://statistics.data.gov.uk/id/local-authority/38,Oxfordshire County Council,Homes for Ukraine - Guests,03/07/2023,5896,Adult Social Care - Other Transfer Pay,3500097323,550,Personal Redacted Data
http://statistics.data.gov.uk/id/local-authority/38,Oxfordshire County Council,Homes for Ukraine - Guests,12/07/2023,5896,Adult Social Care - Other Transfer Pay,3500097620,550,Personal Redacted Data
http://statistics.data.gov.uk/id/local-authority/38,Oxfordshire County Council,Homes for Ukraine - Guests,12/07/2023,5896,Adult Social Care - Other Transfer Pay,3500097590,550,Personal Redacted Data
http://statistics.data.gov.uk/id/local-authority/38,Oxfordshire County Council,Homes for Ukraine - Guests,25/07/2023,5896,Adult Social Care - Other Transfer Pay,3500097905,550,Personal Redacted Data
http://statistics.data.gov.uk/id/local-authority/38,Oxfordshire County Council,Homes for Ukraine - Guests,24/07/2023,5896,Adult Social Care - Other Transfer Pay,3500097875,550,Personal Redacted Data
http://statistics.data.gov.uk/id/local-authority/38,Oxfordshire County Council,Homes for Ukraine - Guests,19/07/2023,5896,Adult Social Care - Other Transfer Pay,3500097769,550,Personal Redacted Data
http://statistics.data.gov.uk/id/local-authority/38,Oxfordshire County Council,Homes for Ukraine - Guests,26/07/2023,5896,Adult Social Care - Other Transfer Pay,3500097913,550,Personal Redacted Data
http://statistics.data.gov.uk/id/local-authority/38,Oxfordshire County Council,Homes for Ukraine - Guests,14/07/2023,5896,Adult Social Care - Other Transfer Pay,3500097664,550,Personal Redacted Data
http://statistics.data.gov.uk/id/local-authority/38,Oxfordshire County Council,Homes for Ukraine - Guests,10/07/2023,5896,Adult Social Care - Other Transfer Pay,3500097550,550,Personal Redacted Data
http://statistics.data.gov.uk/id/local-authority/38,Oxfordshire County Council,Homes for Ukraine - Guests,05/07/2023,5896,Adult Social Care - Other Transfer Pay,3500097379,550,Personal Redacted Data
http://statistics.data.gov.uk/id/local-authority/38,Oxfordshire County Council,Homes for Ukraine - Guests,18/07/2023,5896,Adult Social Care - Other Transfer Pay,3500097715,550,Personal Redacted Data
http://statistics.data.gov.uk/id/local-authority/38,Oxfordshire County Council,Homes for Ukraine - Guests,25/07/2023,5896,Adult Social Care - Other Transfer Pay,3500097897,550,Personal Redacted Data
http://statistics.data.gov.uk/id/local-authority/38,Oxfordshire County Council,Homes for Ukraine - Guests,19/07/2023,5896,Adult Social Care - Other Transfer Pay,3500097727,550,Personal Redacted Data
http://statistics.data.gov.uk/id/local-authority/38,Oxfordshire County Council,Homes for Ukraine - Guests,18/07/2023,5896,Adult Social Care - Other Transfer Pay,3500097702,550,Personal Redacted Data
http://statistics.data.gov.uk/id/local-authority/38,Oxfordshire County Council,Homes for Ukraine - Guests,03/07/2023,5896,Adult Social Care - Other Transfer Pay,3500097314,550,Personal Redacted Data
http://statistics.data.gov.uk/id/local-authority/38,Oxfordshire County Council,Homes for Ukraine - Guests,11/07/2023,5896,Adult Social Care - Other Transfer Pay,3500097576,550,Personal Redacted Data
http://statistics.data.gov.uk/id/local-authority/38,Oxfordshire County Council,Homes for Ukraine - Guests,12/07/2023,5896,Adult Social Care - Other Transfer Pay,3500097585,550,Personal Redacted Data
http://statistics.data.gov.uk/id/local-authority/38,Oxfordshire County Council,Homes for Ukraine - Guests,24/07/2023,5896,Adult Social Care - Other Transfer Pay,3500097869,550,Personal Redacted Data
http://statistics.data.gov.uk/id/local-authority/38,Oxfordshire County Council,Homes for Ukraine - Guests,19/07/2023,5896,Adult Social Care - Other Transfer Pay,3500097762,550,Personal Redacted Data
http://statistics.data.gov.uk/id/local-authority/38,Oxfordshire County Council,Homes for Ukraine - Guests,24/07/2023,5896,Adult Social Care - Other Transfer Pay,3500097850,550,Personal Redacted Data
http://statistics.data.gov.uk/id/local-authority/38,Oxfordshire County Council,Homes for Ukraine - Guests,13/07/2023,5896,Adult Social Care - Other Transfer Pay,3500097651,550,Personal Redacted Data
http://statistics.data.gov.uk/id/local-authority/38,Oxfordshire County Council,Homes for Ukraine - Guests,05/07/2023,5896,Adult Social Care - Other Transfer Pay,3500097387,550,Personal Redacted Data
http://statistics.data.gov.uk/id/local-authority/38,Oxfordshire County Council,Homes for Ukraine - Guests,07/07/2023,5896,Adult Social Care - Other Transfer Pay,3500097465,550,Personal Redacted Data
http://statistics.data.gov.uk/id/local-authority/38,Oxfordshire County Council,Homes for Ukraine - Guests,03/07/2023,5896,Adult Social Care - Other Transfer Pay,3500097298,550,Personal Redacted Data
http://statistics.data.gov.uk/id/local-authority/38,Oxfordshire County Council,Homes for Ukraine - Guests,28/07/2023,5896,Adult Social Care - Other Transfer Pay,3500097969,550,Personal Redacted Data
http://statistics.data.gov.uk/id/local-authority/38,Oxfordshire County Council,Homes for Ukraine - Guests,19/07/2023,5896,Adult Social Care - Other Transfer Pay,3500097724,550,Personal Redacted Data
http://statistics.data.gov.uk/id/local-authority/38,Oxfordshire County Council,Homes for Ukraine - Guests,07/07/2023,5896,Adult Social Care - Other Transfer Pay,3500097470,550,Personal Redacted Data
http://statistics.data.gov.uk/id/local-authority/38,Oxfordshire County Council,Homes for Ukraine - Guests,24/07/2023,5896,Adult Social Care - Other Transfer Pay,3500097859,550,Personal Redacted Data
http://statistics.data.gov.uk/id/local-authority/38,Oxfordshire County Council,Homes for Ukraine - Guests,11/07/2023,5896,Adult Social Care - Other Transfer Pay,3500097575,550,Personal Redacted Data
http://statistics.data.gov.uk/id/local-authority/38,Oxfordshire County Council,Homes for Ukraine - Guests,20/07/2023,5896,Adult Social Care - Other Transfer Pay,3500097791,550,Personal Redacted Data
http://statistics.data.gov.uk/id/local-authority/38,Oxfordshire County Council,Homes for Ukraine - Guests,28/07/2023,5896,Adult Social Care - Other Transfer Pay,3500097953,550,Personal Redacted Data
http://statistics.data.gov.uk/id/local-authority/38,Oxfordshire County Council,Homes for Ukraine - Guests,28/07/2023,5896,Adult Social Care - Other Transfer Pay,3500097968,550,Personal Redacted Data
http://statistics.data.gov.uk/id/local-authority/38,Oxfordshire County Council,Homes for Ukraine - Guests,05/07/2023,5896,Adult Social Care - Other Transfer Pay,3500097360,550,Personal Redacted Data
http://statistics.data.gov.uk/id/local-authority/38,Oxfordshire County Council,Homes for Ukraine - Guests,17/07/2023,5896,Adult Social Care - Other Transfer Pay,3500097690,550,Personal Redacted Data
http://statistics.data.gov.uk/id/local-authority/38,Oxfordshire County Council,Homes for Ukraine - Guests,12/07/2023,5896,Adult Social Care - Other Transfer Pay,3500097629,550,Personal Redacted Data
http://statistics.data.gov.uk/id/local-authority/38,Oxfordshire County Council,Homes for Ukraine - Guests,27/07/2023,5896,Adult Social Care - Other Transfer Pay,3500097939,550,Personal Redacted Data
http://statistics.data.gov.uk/id/local-authority/38,Oxfordshire County Council,Homes for Ukraine - Guests,24/07/2023,5896,Adult Social Care - Other Transfer Pay,3500097841,550,Personal Redacted Data
http://statistics.data.gov.uk/id/local-authority/38,Oxfordshire County Council,Homes for Ukraine - Guests,25/07/2023,5896,Adult Social Care - Other Transfer Pay,3500097895,550,Personal Redacted Data
http://statistics.data.gov.uk/id/local-authority/38,Oxfordshire County Council,Homes for Ukraine - Guests,20/07/2023,5896,Adult Social Care - Other Transfer Pay,3500097784,550,Personal Redacted Data
http://statistics.data.gov.uk/id/local-authority/38,Oxfordshire County Council,Homes for Ukraine - Guests,19/07/2023,5896,Adult Social Care - Other Transfer Pay,3500097750,550,Personal Redacted Data
http://statistics.data.gov.uk/id/local-authority/38,Oxfordshire County Council,Homes for Ukraine - Guests,05/07/2023,5896,Adult Social Care - Other Transfer Pay,3500097384,550,Personal Redacted Data
http://statistics.data.gov.uk/id/local-authority/38,Oxfordshire County Council,Homes for Ukraine - Guests,05/07/2023,5896,Adult Social Care - Other Transfer Pay,3500097396,550,Personal Redacted Data
http://statistics.data.gov.uk/id/local-authority/38,Oxfordshire County Council,Homes for Ukraine - Guests,05/07/2023,5896,Adult Social Care - Other Transfer Pay,3500097390,550,Personal Redacted Data
http://statistics.data.gov.uk/id/local-authority/38,Oxfordshire County Council,Homes for Ukraine - Guests,20/07/2023,5896,Adult Social Care - Other Transfer Pay,3500097790,550,Personal Redacted Data
http://statistics.data.gov.uk/id/local-authority/38,Oxfordshire County Council,Homes for Ukraine - Guests,10/07/2023,5896,Adult Social Care - Other Transfer Pay,3500097557,550,Personal Redacted Data
http://statistics.data.gov.uk/id/local-authority/38,Oxfordshire County Council,Homes for Ukraine - Guests,05/07/2023,5896,Adult Social Care - Other Transfer Pay,3500097385,550,Personal Redacted Data
http://statistics.data.gov.uk/id/local-authority/38,Oxfordshire County Council,Homes for Ukraine - Guests,19/07/2023,5896,Adult Social Care - Other Transfer Pay,3500097761,550,Personal Redacted Data
http://statistics.data.gov.uk/id/local-authority/38,Oxfordshire County Council,Homes for Ukraine - Guests,11/07/2023,5896,Adult Social Care - Other Transfer Pay,3500097574,550,Personal Redacted Data
http://statistics.data.gov.uk/id/local-authority/38,Oxfordshire County Council,Homes for Ukraine - Guests,14/07/2023,5896,Adult Social Care - Other Transfer Pay,3500097671,550,Personal Redacted Data
http://statistics.data.gov.uk/id/local-authority/38,Oxfordshire County Council,Homes for Ukraine - Guests,03/07/2023,5896,Adult Social Care - Other Transfer Pay,3500097315,550,Personal Redacted Data
http://statistics.data.gov.uk/id/local-authority/38,Oxfordshire County Council,Homes for Ukraine - Guests,24/07/2023,5896,Adult Social Care - Other Transfer Pay,3500097871,550,Personal Redacted Data
http://statistics.data.gov.uk/id/local-authority/38,Oxfordshire County Council,Homes for Ukraine - Guests,27/07/2023,5896,Adult Social Care - Other Transfer Pay,3500097926,550,Personal Redacted Data
http://statistics.data.gov.uk/id/local-authority/38,Oxfordshire County Council,Homes for Ukraine - Guests,10/07/2023,5896,Adult Social Care - Other Transfer Pay,3500097560,550,Personal Redacted Data
http://statistics.data.gov.uk/id/local-authority/38,Oxfordshire County Council,Homes for Ukraine - Guests,05/07/2023,5896,Adult Social Care - Other Transfer Pay,3500097369,550,Personal Redacted Data
http://statistics.data.gov.uk/id/local-authority/38,Oxfordshire County Council,Homes for Ukraine - Guests,05/07/2023,5896,Adult Social Care - Other Transfer Pay,3500097382,550,Personal Redacted Data
http://statistics.data.gov.uk/id/local-authority/38,Oxfordshire County Council,Homes for Ukraine - Guests,27/07/2023,5896,Adult Social Care - Other Transfer Pay,3500097941,550,Personal Redacted Data
http://statistics.data.gov.uk/id/local-authority/38,Oxfordshire County Council,Homes for Ukraine - Guests,10/07/2023,5896,Adult Social Care - Other Transfer Pay,3500097561,550,Personal Redacted Data
http://statistics.data.gov.uk/id/local-authority/38,Oxfordshire County Council,Homes for Ukraine - Guests,06/07/2023,5896,Adult Social Care - Other Transfer Pay,3500097451,550,Personal Redacted Data
http://statistics.data.gov.uk/id/local-authority/38,Oxfordshire County Council,Homes for Ukraine - Guests,21/07/2023,5896,Adult Social Care - Other Transfer Pay,3500097802,550,Personal Redacted Data
http://statistics.data.gov.uk/id/local-authority/38,Oxfordshire County Council,Homes for Ukraine - Guests,28/07/2023,5896,Adult Social Care - Other Transfer Pay,3500097952,550,Personal Redacted Data
http://statistics.data.gov.uk/id/local-authority/38,Oxfordshire County Council,Homes for Ukraine - Guests,11/07/2023,5896,Adult Social Care - Other Transfer Pay,3500097571,550,Personal Redacted Data
http://statistics.data.gov.uk/id/local-authority/38,Oxfordshire County Council,Homes for Ukraine - Guests,05/07/2023,5896,Adult Social Care - Other Transfer Pay,3500097376,550,Personal Redacted Data
http://statistics.data.gov.uk/id/local-authority/38,Oxfordshire County Council,Homes for Ukraine - Guests,24/07/2023,5896,Adult Social Care - Other Transfer Pay,3500097830,550,Personal Redacted Data
http://statistics.data.gov.uk/id/local-authority/38,Oxfordshire County Council,Homes for Ukraine - Guests,18/07/2023,5896,Adult Social Care - Other Transfer Pay,3500097706,550,Personal Redacted Data
http://statistics.data.gov.uk/id/local-authority/38,Oxfordshire County Council,Homes for Ukraine - Guests,19/07/2023,5896,Adult Social Care - Other Transfer Pay,3500097756,550,Personal Redacted Data
http://statistics.data.gov.uk/id/local-authority/38,Oxfordshire County Council,Homes for Ukraine - Guests,24/07/2023,5896,Adult Social Care - Other Transfer Pay,3500097881,550,Personal Redacted Data
http://statistics.data.gov.uk/id/local-authority/38,Oxfordshire County Council,LEGAL SERVICES,06/07/2023,5251,Legal Costs,2201129081,550,Maria Gallagher
http://statistics.data.gov.uk/id/local-authority/38,Oxfordshire County Council,Homes for Ukraine - Guests,05/07/2023,5896,Adult Social Care - Other Transfer Pay,3500097373,550,Personal Redacted Data
http://statistics.data.gov.uk/id/local-authority/38,Oxfordshire County Council,Homes for Ukraine - Guests,03/07/2023,5896,Adult Social Care - Other Transfer Pay,3500097320,550,Personal Redacted Data
http://statistics.data.gov.uk/id/local-authority/38,Oxfordshire County Council,Homes for Ukraine - Guests,10/07/2023,5896,Adult Social Care - Other Transfer Pay,3500097554,550,Personal Redacted Data
http://statistics.data.gov.uk/id/local-authority/38,Oxfordshire County Council,Homes for Ukraine - Guests,10/07/2023,5896,Adult Social Care - Other Transfer Pay,3500097556,550,Personal Redacted Data
http://statistics.data.gov.uk/id/local-authority/38,Oxfordshire County Council,Homes for Ukraine - Guests,21/07/2023,5896,Adult Social Care - Other Transfer Pay,3500097801,550,Personal Redacted Data
http://statistics.data.gov.uk/id/local-authority/38,Oxfordshire County Council,Homes for Ukraine - Guests,04/07/2023,5896,Adult Social Care - Other Transfer Pay,3500097340,550,Personal Redacted Data
http://statistics.data.gov.uk/id/local-authority/38,Oxfordshire County Council,Homes for Ukraine - Guests,24/07/2023,5896,Adult Social Care - Other Transfer Pay,3500097882,550,Personal Redacted Data
http://statistics.data.gov.uk/id/local-authority/38,Oxfordshire County Council,Homes for Ukraine - Guests,19/07/2023,5896,Adult Social Care - Other Transfer Pay,3500097774,550,Personal Redacted Data
http://statistics.data.gov.uk/id/local-authority/38,Oxfordshire County Council,Homes for Ukraine - Guests,19/07/2023,5896,Adult Social Care - Other Transfer Pay,3500097768,550,Personal Redacted Data
http://statistics.data.gov.uk/id/local-authority/38,Oxfordshire County Council,Homes for Ukraine - Guests,03/07/2023,5896,Adult Social Care - Other Transfer Pay,3500097309,550,Personal Redacted Data
http://statistics.data.gov.uk/id/local-authority/38,Oxfordshire County Council,Homes for Ukraine - Guests,20/07/2023,5896,Adult Social Care - Other Transfer Pay,3500097788,550,Personal Redacted Data
http://statistics.data.gov.uk/id/local-authority/38,Oxfordshire County Council,Homes for Ukraine - Guests,24/07/2023,5896,Adult Social Care - Other Transfer Pay,3500097887,550,Personal Redacted Data
http://statistics.data.gov.uk/id/local-authority/38,Oxfordshire County Council,Homes for Ukraine - Guests,04/07/2023,5896,Adult Social Care - Other Transfer Pay,3500097346,550,Personal Redacted Data
http://statistics.data.gov.uk/id/local-authority/38,Oxfordshire County Council,Homes for Ukraine - Guests,31/07/2023,5896,Adult Social Care - Other Transfer Pay,3500098159,550,Personal Redacted Data
http://statistics.data.gov.uk/id/local-authority/38,Oxfordshire County Council,Homes for Ukraine - Guests,01/07/2023,5896,Adult Social Care - Other Transfer Pay,3500097290,550,Personal Redacted Data
http://statistics.data.gov.uk/id/local-authority/38,Oxfordshire County Council,Homes for Ukraine - Guests,03/07/2023,5896,Adult Social Care - Other Transfer Pay,3500097310,550,Personal Redacted Data
http://statistics.data.gov.uk/id/local-authority/38,Oxfordshire County Council,Homes for Ukraine - Guests,17/07/2023,5896,Adult Social Care - Other Transfer Pay,3500097691,550,Personal Redacted Data
http://statistics.data.gov.uk/id/local-authority/38,Oxfordshire County Council,Homes for Ukraine - Guests,19/07/2023,5896,Adult Social Care - Other Transfer Pay,3500097753,550,Personal Redacted Data
http://statistics.data.gov.uk/id/local-authority/38,Oxfordshire County Council,Homes for Ukraine - Guests,20/07/2023,5896,Adult Social Care - Other Transfer Pay,3500097781,550,Personal Redacted Data
http://statistics.data.gov.uk/id/local-authority/38,Oxfordshire County Council,Vulnerable Learners,28/07/2023,4940,Other Services,2201137118,550,Merryn Polley
http://statistics.data.gov.uk/id/local-authority/38,Oxfordshire County Council,Homes for Ukraine - Guests,27/07/2023,5896,Adult Social Care - Other Transfer Pay,3500097932,550,Personal Redacted Data
http://statistics.data.gov.uk/id/local-authority/38,Oxfordshire County Council,Homes for Ukraine - Guests,24/07/2023,5896,Adult Social Care - Other Transfer Pay,3500097883,550,Personal Redacted Data
http://statistics.data.gov.uk/id/local-authority/38,Oxfordshire County Council,Homes for Ukraine - Guests,03/07/2023,5896,Adult Social Care - Other Transfer Pay,3500097299,550,Personal Redacted Data
http://statistics.data.gov.uk/id/local-authority/38,Oxfordshire County Council,Homes for Ukraine - Guests,07/07/2023,5896,Adult Social Care - Other Transfer Pay,3500097463,550,Personal Redacted Data
http://statistics.data.gov.uk/id/local-authority/38,Oxfordshire County Council,Homes for Ukraine - Guests,03/07/2023,5896,Adult Social Care - Other Transfer Pay,3500097319,550,Personal Redacted Data
http://statistics.data.gov.uk/id/local-authority/38,Oxfordshire County Council,Homes for Ukraine - Guests,05/07/2023,5896,Adult Social Care - Other Transfer Pay,3500097370,550,Personal Redacted Data
http://statistics.data.gov.uk/id/local-authority/38,Oxfordshire County Council,Homes for Ukraine - Guests,24/07/2023,5896,Adult Social Care - Other Transfer Pay,3500097876,550,Personal Redacted Data
http://statistics.data.gov.uk/id/local-authority/38,Oxfordshire County Council,Homes for Ukraine - Guests,12/07/2023,5896,Adult Social Care - Other Transfer Pay,3500097632,550,Personal Redacted Data
http://statistics.data.gov.uk/id/local-authority/38,Oxfordshire County Council,Homes for Ukraine - Guests,19/07/2023,5896,Adult Social Care - Other Transfer Pay,3500097723,550,Personal Redacted Data
http://statistics.data.gov.uk/id/local-authority/38,Oxfordshire County Council,Homes for Ukraine - Guests,04/07/2023,5896,Adult Social Care - Other Transfer Pay,3500097344,550,Personal Redacted Data
http://statistics.data.gov.uk/id/local-authority/38,Oxfordshire County Council,Homes for Ukraine - Guests,19/07/2023,5896,Adult Social Care - Other Transfer Pay,3500097757,550,Personal Redacted Data
http://statistics.data.gov.uk/id/local-authority/38,Oxfordshire County Council,Homes for Ukraine - Guests,27/07/2023,5896,Adult Social Care - Other Transfer Pay,3500097924,550,Personal Redacted Data
http://statistics.data.gov.uk/id/local-authority/38,Oxfordshire County Council,Homes for Ukraine - Guests,19/07/2023,5896,Adult Social Care - Other Transfer Pay,3500097736,550,Personal Redacted Data
http://statistics.data.gov.uk/id/local-authority/38,Oxfordshire County Council,Homes for Ukraine - Guests,18/07/2023,5896,Adult Social Care - Other Transfer Pay,3500097717,550,Personal Redacted Data
http://statistics.data.gov.uk/id/local-authority/38,Oxfordshire County Council,Homes for Ukraine - Guests,01/07/2023,5896,Adult Social Care - Other Transfer Pay,3500097289,550,Personal Redacted Data
http://statistics.data.gov.uk/id/local-authority/38,Oxfordshire County Council,Homes for Ukraine - Guests,12/07/2023,5896,Adult Social Care - Other Transfer Pay,3500097603,550,Personal Redacted Data
http://statistics.data.gov.uk/id/local-authority/38,Oxfordshire County Council,Homes for Ukraine - Guests,06/07/2023,5896,Adult Social Care - Other Transfer Pay,3500097444,550,Personal Redacted Data
http://statistics.data.gov.uk/id/local-authority/38,Oxfordshire County Council,Homes for Ukraine - Guests,14/07/2023,5896,Adult Social Care - Other Transfer Pay,3500097657,550,Personal Redacted Data
http://statistics.data.gov.uk/id/local-authority/38,Oxfordshire County Council,Homes for Ukraine - Guests,19/07/2023,5896,Adult Social Care - Other Transfer Pay,3500097725,550,Personal Redacted Data
http://statistics.data.gov.uk/id/local-authority/38,Oxfordshire County Council,Homes for Ukraine - Guests,27/07/2023,5896,Adult Social Care - Other Transfer Pay,3500097940,550,Personal Redacted Data
http://statistics.data.gov.uk/id/local-authority/38,Oxfordshire County Council,Homes for Ukraine - Guests,19/07/2023,5896,Adult Social Care - Other Transfer Pay,3500097751,550,Personal Redacted Data
http://statistics.data.gov.uk/id/local-authority/38,Oxfordshire County Council,Homes for Ukraine - Guests,10/07/2023,5896,Adult Social Care - Other Transfer Pay,3500097543,550,Personal Redacted Data
http://statistics.data.gov.uk/id/local-authority/38,Oxfordshire County Council,Homes for Ukraine - Guests,04/07/2023,5896,Adult Social Care - Other Transfer Pay,3500097341,550,Personal Redacted Data
http://statistics.data.gov.uk/id/local-authority/38,Oxfordshire County Council,Homes for Ukraine - Guests,24/07/2023,5896,Adult Social Care - Other Transfer Pay,3500097880,550,Personal Redacted Data
http://statistics.data.gov.uk/id/local-authority/38,Oxfordshire County Council,Homes for Ukraine - Guests,10/07/2023,5896,Adult Social Care - Other Transfer Pay,3500097551,550,Personal Redacted Data
http://statistics.data.gov.uk/id/local-authority/38,Oxfordshire County Council,Homes for Ukraine - Guests,06/07/2023,5896,Adult Social Care - Other Transfer Pay,3500097443,550,Personal Redacted Data
http://statistics.data.gov.uk/id/local-authority/38,Oxfordshire County Council,Homes for Ukraine - Guests,14/07/2023,5896,Adult Social Care - Other Transfer Pay,3500097675,550,Personal Redacted Data
http://statistics.data.gov.uk/id/local-authority/38,Oxfordshire County Council,Homes for Ukraine - Guests,26/07/2023,5896,Adult Social Care - Other Transfer Pay,3500097915,550,Personal Redacted Data
http://statistics.data.gov.uk/id/local-authority/38,Oxfordshire County Council,Homes for Ukraine - Guests,07/07/2023,5896,Adult Social Care - Other Transfer Pay,3500097468,550,Personal Redacted Data
http://statistics.data.gov.uk/id/local-authority/38,Oxfordshire County Council,Homes for Ukraine - Guests,28/07/2023,5896,Adult Social Care - Other Transfer Pay,3500097972,550,Personal Redacted Data
http://statistics.data.gov.uk/id/local-authority/38,Oxfordshire County Council,Homes for Ukraine - Guests,17/07/2023,5896,Adult Social Care - Other Transfer Pay,3500097699,550,Personal Redacted Data
http://statistics.data.gov.uk/id/local-authority/38,Oxfordshire County Council,Homes for Ukraine - Guests,12/07/2023,5896,Adult Social Care - Other Transfer Pay,3500097634,550,Personal Redacted Data
http://statistics.data.gov.uk/id/local-authority/38,Oxfordshire County Council,Homes for Ukraine - Guests,14/07/2023,5896,Adult Social Care - Other Transfer Pay,3500097681,550,Personal Redacted Data
http://statistics.data.gov.uk/id/local-authority/38,Oxfordshire County Council,Homes for Ukraine - Guests,27/07/2023,5896,Adult Social Care - Other Transfer Pay,3500097944,550,Personal Redacted Data
http://statistics.data.gov.uk/id/local-authority/38,Oxfordshire County Council,Homes for Ukraine - Guests,24/07/2023,5896,Adult Social Care - Other Transfer Pay,3500097889,550,Personal Redacted Data
http://statistics.data.gov.uk/id/local-authority/38,Oxfordshire County Council,Homes for Ukraine - Guests,05/07/2023,5896,Adult Social Care - Other Transfer Pay,3500097400,550,Personal Redacted Data
http://statistics.data.gov.uk/id/local-authority/38,Oxfordshire County Council,Homes for Ukraine - Guests,14/07/2023,5896,Adult Social Care - Other Transfer Pay,3500097672,550,Personal Redacted Data
http://statistics.data.gov.uk/id/local-authority/38,Oxfordshire County Council,Homes for Ukraine - Guests,05/07/2023,5896,Adult Social Care - Other Transfer Pay,3500097397,550,Personal Redacted Data
http://statistics.data.gov.uk/id/local-authority/38,Oxfordshire County Council,Homes for Ukraine - Guests,13/07/2023,5896,Adult Social Care - Other Transfer Pay,3500097650,550,Personal Redacted Data
http://statistics.data.gov.uk/id/local-authority/38,Oxfordshire County Council,SEN TRANSPORT,19/07/2023,4330,Transport to School Activities,3111479146,550,Oxon Transport Services Ltd
http://statistics.data.gov.uk/id/local-authority/38,Oxfordshire County Council,Homes for Ukraine - Guests,19/07/2023,5896,Adult Social Care - Other Transfer Pay,3500097719,550,Personal Redacted Data
http://statistics.data.gov.uk/id/local-authority/38,Oxfordshire County Council,Homes for Ukraine - Guests,12/07/2023,5896,Adult Social Care - Other Transfer Pay,3500097626,550,Personal Redacted Data
http://statistics.data.gov.uk/id/local-authority/38,Oxfordshire County Council,Homes for Ukraine - Guests,18/07/2023,5896,Adult Social Care - Other Transfer Pay,3500097707,550,Personal Redacted Data
http://statistics.data.gov.uk/id/local-authority/38,Oxfordshire County Council,Homes for Ukraine - Guests,27/07/2023,5896,Adult Social Care - Other Transfer Pay,3500097929,550,Personal Redacted Data
http://statistics.data.gov.uk/id/local-authority/38,Oxfordshire County Council,Homes for Ukraine - Guests,27/07/2023,5896,Adult Social Care - Other Transfer Pay,3500097936,550,Personal Redacted Data
http://statistics.data.gov.uk/id/local-authority/38,Oxfordshire County Council,Homes for Ukraine - Guests,10/07/2023,5896,Adult Social Care - Other Transfer Pay,3500097549,550,Personal Redacted Data
http://statistics.data.gov.uk/id/local-authority/38,Oxfordshire County Council,Homes for Ukraine - Guests,12/07/2023,5896,Adult Social Care - Other Transfer Pay,3500097615,550,Personal Redacted Data
http://statistics.data.gov.uk/id/local-authority/38,Oxfordshire County Council,Homes for Ukraine - Guests,04/07/2023,5896,Adult Social Care - Other Transfer Pay,3500097351,550,Personal Redacted Data
http://statistics.data.gov.uk/id/local-authority/38,Oxfordshire County Council,Homes for Ukraine - Guests,05/07/2023,5896,Adult Social Care - Other Transfer Pay,3500097366,550,Personal Redacted Data
http://statistics.data.gov.uk/id/local-authority/38,Oxfordshire County Council,Homes for Ukraine - Guests,12/07/2023,5896,Adult Social Care - Other Transfer Pay,3500097608,550,Personal Redacted Data
http://statistics.data.gov.uk/id/local-authority/38,Oxfordshire County Council,Homes for Ukraine - Guests,12/07/2023,5896,Adult Social Care - Other Transfer Pay,3500097604,550,Personal Redacted Data
http://statistics.data.gov.uk/id/local-authority/38,Oxfordshire County Council,Homes for Ukraine - Guests,27/07/2023,5896,Adult Social Care - Other Transfer Pay,3500097928,550,Personal Redacted Data
http://statistics.data.gov.uk/id/local-authority/38,Oxfordshire County Council,Homes for Ukraine - Guests,19/07/2023,5896,Adult Social Care - Other Transfer Pay,3500097738,550,Personal Redacted Data
http://statistics.data.gov.uk/id/local-authority/38,Oxfordshire County Council,Homes for Ukraine - Guests,24/07/2023,5896,Adult Social Care - Other Transfer Pay,3500097856,550,Personal Redacted Data
http://statistics.data.gov.uk/id/local-authority/38,Oxfordshire County Council,Homes for Ukraine - Guests,07/07/2023,5896,Adult Social Care - Other Transfer Pay,3500097473,550,Personal Redacted Data
http://statistics.data.gov.uk/id/local-authority/38,Oxfordshire County Council,Homes for Ukraine - Guests,19/07/2023,5896,Adult Social Care - Other Transfer Pay,3500097740,550,Personal Redacted Data
http://statistics.data.gov.uk/id/local-authority/38,Oxfordshire County Council,Homes for Ukraine - Guests,17/07/2023,5896,Adult Social Care - Other Transfer Pay,3500097688,550,Personal Redacted Data
http://statistics.data.gov.uk/id/local-authority/38,Oxfordshire County Council,Homes for Ukraine - Guests,26/07/2023,5896,Adult Social Care - Other Transfer Pay,3500097914,550,Personal Redacted Data
http://statistics.data.gov.uk/id/local-authority/38,Oxfordshire County Council,Homes for Ukraine - Guests,20/07/2023,5896,Adult Social Care - Other Transfer Pay,3500097783,550,Personal Redacted Data
http://statistics.data.gov.uk/id/local-authority/38,Oxfordshire County Council,Homes for Ukraine - Guests,05/07/2023,5896,Adult Social Care - Other Transfer Pay,3500097393,550,Personal Redacted Data
http://statistics.data.gov.uk/id/local-authority/38,Oxfordshire County Council,L&D CORE PROGRAMME,07/07/2023,3103,Other Training Courses and Qualification,2201129453,550,Premier Partnership
http://statistics.data.gov.uk/id/local-authority/38,Oxfordshire County Council,Homes for Ukraine - Guests,24/07/2023,5896,Adult Social Care - Other Transfer Pay,3500097866,550,Personal Redacted Data
http://statistics.data.gov.uk/id/local-authority/38,Oxfordshire County Council,Homes for Ukraine - Guests,05/07/2023,5896,Adult Social Care - Other Transfer Pay,3500097394,550,Personal Redacted Data
http://statistics.data.gov.uk/id/local-authority/38,Oxfordshire County Council,Homes for Ukraine - Guests,07/07/2023,5896,Adult Social Care - Other Transfer Pay,3500097476,550,Personal Redacted Data
http://statistics.data.gov.uk/id/local-authority/38,Oxfordshire County Council,Homes for Ukraine - Guests,28/07/2023,5896,Adult Social Care - Other Transfer Pay,3500097965,550,Personal Redacted Data
http://statistics.data.gov.uk/id/local-authority/38,Oxfordshire County Council,Homes for Ukraine - Guests,10/07/2023,5896,Adult Social Care - Other Transfer Pay,3500097566,550,Personal Redacted Data
http://statistics.data.gov.uk/id/local-authority/38,Oxfordshire County Council,Homes for Ukraine - Guests,25/07/2023,5896,Adult Social Care - Other Transfer Pay,3500097903,550,Personal Redacted Data
http://statistics.data.gov.uk/id/local-authority/38,Oxfordshire County Council,Homes for Ukraine - Guests,24/07/2023,5896,Adult Social Care - Other Transfer Pay,3500097836,550,Personal Redacted Data
http://statistics.data.gov.uk/id/local-authority/38,Oxfordshire County Council,Homes for Ukraine - Guests,24/07/2023,5896,Adult Social Care - Other Transfer Pay,3500097854,550,Personal Redacted Data
http://statistics.data.gov.uk/id/local-authority/38,Oxfordshire County Council,Homes for Ukraine - Guests,14/07/2023,5896,Adult Social Care - Other Transfer Pay,3500097661,550,Personal Redacted Data
http://statistics.data.gov.uk/id/local-authority/38,Oxfordshire County Council,Homes for Ukraine - Guests,14/07/2023,5896,Adult Social Care - Other Transfer Pay,3500097662,550,Personal Redacted Data
http://statistics.data.gov.uk/id/local-authority/38,Oxfordshire County Council,Homes for Ukraine - Guests,21/07/2023,5896,Adult Social Care - Other Transfer Pay,3500097810,550,Personal Redacted Data
http://statistics.data.gov.uk/id/local-authority/38,Oxfordshire County Council,Homes for Ukraine - Guests,03/07/2023,5896,Adult Social Care - Other Transfer Pay,3500097312,550,Personal Redacted Data
http://statistics.data.gov.uk/id/local-authority/38,Oxfordshire County Council,Homes for Ukraine - Guests,06/07/2023,5896,Adult Social Care - Other Transfer Pay,3500097457,550,Personal Redacted Data
http://statistics.data.gov.uk/id/local-authority/38,Oxfordshire County Council,Homes for Ukraine - Guests,25/07/2023,5896,Adult Social Care - Other Transfer Pay,3500097906,550,Personal Redacted Data
http://statistics.data.gov.uk/id/local-authority/38,Oxfordshire County Council,Homes for Ukraine - Guests,19/07/2023,5896,Adult Social Care - Other Transfer Pay,3500097720,550,Personal Redacted Data
http://statistics.data.gov.uk/id/local-authority/38,Oxfordshire County Council,Homes for Ukraine - Guests,18/07/2023,5896,Adult Social Care - Other Transfer Pay,3500097705,550,Personal Redacted Data
http://statistics.data.gov.uk/id/local-authority/38,Oxfordshire County Council,Homes for Ukraine - Guests,19/07/2023,5896,Adult Social Care - Other Transfer Pay,3500097743,550,Personal Redacted Data
http://statistics.data.gov.uk/id/local-authority/38,Oxfordshire County Council,Homes for Ukraine - Guests,05/07/2023,5896,Adult Social Care - Other Transfer Pay,3500097380,550,Personal Redacted Data
http://statistics.data.gov.uk/id/local-authority/38,Oxfordshire County Council,Homes for Ukraine - Guests,04/07/2023,5896,Adult Social Care - Other Transfer Pay,3500097353,550,Personal Redacted Data
http://statistics.data.gov.uk/id/local-authority/38,Oxfordshire County Council,Homes for Ukraine - Guests,04/07/2023,5896,Adult Social Care - Other Transfer Pay,3500097347,550,Personal Redacted Data
http://statistics.data.gov.uk/id/local-authority/38,Oxfordshire County Council,Homes for Ukraine - Guests,07/07/2023,5896,Adult Social Care - Other Transfer Pay,3500097472,550,Personal Redacted Data
http://statistics.data.gov.uk/id/local-authority/38,Oxfordshire County Council,Homes for Ukraine - Guests,12/07/2023,5896,Adult Social Care - Other Transfer Pay,3500097643,550,Personal Redacted Data
http://statistics.data.gov.uk/id/local-authority/38,Oxfordshire County Council,Homes for Ukraine - Guests,26/07/2023,5896,Adult Social Care - Other Transfer Pay,3500097911,550,Personal Redacted Data
http://statistics.data.gov.uk/id/local-authority/38,Oxfordshire County Council,Homes for Ukraine - Guests,18/07/2023,5896,Adult Social Care - Other Transfer Pay,3500097708,550,Personal Redacted Data
http://statistics.data.gov.uk/id/local-authority/38,Oxfordshire County Council,Homes for Ukraine - Guests,12/07/2023,5896,Adult Social Care - Other Transfer Pay,3500097623,550,Personal Redacted Data
http://statistics.data.gov.uk/id/local-authority/38,Oxfordshire County Council,Homes for Ukraine - Guests,18/07/2023,5896,Adult Social Care - Other Transfer Pay,3500097716,550,Personal Redacted Data
http://statistics.data.gov.uk/id/local-authority/38,Oxfordshire County Council,Homes for Ukraine - Guests,24/07/2023,5896,Adult Social Care - Other Transfer Pay,3500097863,550,Personal Redacted Data
http://statistics.data.gov.uk/id/local-authority/38,Oxfordshire County Council,Homes for Ukraine - Guests,21/07/2023,5896,Adult Social Care - Other Transfer Pay,3500097796,550,Personal Redacted Data
http://statistics.data.gov.uk/id/local-authority/38,Oxfordshire County Council,Homes for Ukraine - Guests,12/07/2023,5896,Adult Social Care - Other Transfer Pay,3500097581,550,Personal Redacted Data
http://statistics.data.gov.uk/id/local-authority/38,Oxfordshire County Council,Homes for Ukraine - Guests,26/07/2023,5896,Adult Social Care - Other Transfer Pay,3500097910,550,Personal Redacted Data
http://statistics.data.gov.uk/id/local-authority/38,Oxfordshire County Council,Homes for Ukraine - Guests,12/07/2023,5896,Adult Social Care - Other Transfer Pay,3500097640,550,Personal Redacted Data
http://statistics.data.gov.uk/id/local-authority/38,Oxfordshire County Council,Homes for Ukraine - Guests,24/07/2023,5896,Adult Social Care - Other Transfer Pay,3500097837,550,Personal Redacted Data
http://statistics.data.gov.uk/id/local-authority/38,Oxfordshire County Council,Homes for Ukraine - Guests,27/07/2023,5896,Adult Social Care - Other Transfer Pay,3500097935,550,Personal Redacted Data
http://statistics.data.gov.uk/id/local-authority/38,Oxfordshire County Council,Homes for Ukraine - Guests,24/07/2023,5896,Adult Social Care - Other Transfer Pay,3500097852,550,Personal Redacted Data
http://statistics.data.gov.uk/id/local-authority/38,Oxfordshire County Council,Homes for Ukraine - Guests,21/07/2023,5896,Adult Social Care - Other Transfer Pay,3500097797,550,Personal Redacted Data
http://statistics.data.gov.uk/id/local-authority/38,Oxfordshire County Council,Homes for Ukraine - Guests,28/07/2023,5896,Adult Social Care - Other Transfer Pay,3500097962,550,Personal Redacted Data
http://statistics.data.gov.uk/id/local-authority/38,Oxfordshire County Council,Homes for Ukraine - Guests,19/07/2023,5896,Adult Social Care - Other Transfer Pay,3500097739,550,Personal Redacted Data
http://statistics.data.gov.uk/id/local-authority/38,Oxfordshire County Council,Homes for Ukraine - Guests,27/07/2023,5896,Adult Social Care - Other Transfer Pay,3500097937,550,Personal Redacted Data
http://statistics.data.gov.uk/id/local-authority/38,Oxfordshire County Council,Homes for Ukraine - Guests,19/07/2023,5896,Adult Social Care - Other Transfer Pay,3500097760,550,Personal Redacted Data
http://statistics.data.gov.uk/id/local-authority/38,Oxfordshire County Council,Homes for Ukraine - Guests,20/07/2023,5896,Adult Social Care - Other Transfer Pay,3500097789,550,Personal Redacted Data
http://statistics.data.gov.uk/id/local-authority/38,Oxfordshire County Council,Homes for Ukraine - Guests,20/07/2023,5896,Adult Social Care - Other Transfer Pay,3500097782,550,Personal Redacted Data
http://statistics.data.gov.uk/id/local-authority/38,Oxfordshire County Council,Homes for Ukraine - Guests,21/07/2023,5896,Adult Social Care - Other Transfer Pay,3500097799,550,Personal Redacted Data
http://statistics.data.gov.uk/id/local-authority/38,Oxfordshire County Council,Homes for Ukraine - Guests,28/07/2023,5896,Adult Social Care - Other Transfer Pay,3500097963,550,Personal Redacted Data
http://statistics.data.gov.uk/id/local-authority/38,Oxfordshire County Council,Homes for Ukraine - Guests,10/07/2023,5896,Adult Social Care - Other Transfer Pay,3500097552,550,Personal Redacted Data
http://statistics.data.gov.uk/id/local-authority/38,Oxfordshire County Council,Homes for Ukraine - Guests,12/07/2023,5896,Adult Social Care - Other Transfer Pay,3500097641,550,Personal Redacted Data
http://statistics.data.gov.uk/id/local-authority/38,Oxfordshire County Council,Homes for Ukraine - Guests,19/07/2023,5896,Adult Social Care - Other Transfer Pay,3500097763,550,Personal Redacted Data
http://statistics.data.gov.uk/id/local-authority/38,Oxfordshire County Council,Homes for Ukraine - Guests,12/07/2023,5896,Adult Social Care - Other Transfer Pay,3500097593,550,Personal Redacted Data
http://statistics.data.gov.uk/id/local-authority/38,Oxfordshire County Council,Homes for Ukraine - Guests,19/07/2023,5896,Adult Social Care - Other Transfer Pay,3500097735,550,Personal Redacted Data
http://statistics.data.gov.uk/id/local-authority/38,Oxfordshire County Council,Homes for Ukraine - Guests,10/07/2023,5896,Adult Social Care - Other Transfer Pay,3500097553,550,Personal Redacted Data
http://statistics.data.gov.uk/id/local-authority/38,Oxfordshire County Council,Homes for Ukraine - Guests,14/07/2023,5896,Adult Social Care - Other Transfer Pay,3500097673,550,Personal Redacted Data
http://statistics.data.gov.uk/id/local-authority/38,Oxfordshire County Council,Homes for Ukraine - Guests,19/07/2023,5896,Adult Social Care - Other Transfer Pay,3500097749,550,Personal Redacted Data
http://statistics.data.gov.uk/id/local-authority/38,Oxfordshire County Council,Homes for Ukraine - Guests,14/07/2023,5896,Adult Social Care - Other Transfer Pay,3500097677,550,Personal Redacted Data
http://statistics.data.gov.uk/id/local-authority/38,Oxfordshire County Council,Homes for Ukraine - Guests,05/07/2023,5896,Adult Social Care - Other Transfer Pay,3500097359,550,Personal Redacted Data
http://statistics.data.gov.uk/id/local-authority/38,Oxfordshire County Council,Homes for Ukraine - Guests,20/07/2023,5896,Adult Social Care - Other Transfer Pay,3500097786,550,Personal Redacted Data
http://statistics.data.gov.uk/id/local-authority/38,Oxfordshire County Council,Homes for Ukraine - Guests,19/07/2023,5896,Adult Social Care - Other Transfer Pay,3500097765,550,Personal Redacted Data
http://statistics.data.gov.uk/id/local-authority/38,Oxfordshire County Council,Homes for Ukraine - Guests,19/07/2023,5896,Adult Social Care - Other Transfer Pay,3500097744,550,Personal Redacted Data
http://statistics.data.gov.uk/id/local-authority/38,Oxfordshire County Council,Homes for Ukraine - Guests,19/07/2023,5896,Adult Social Care - Other Transfer Pay,3500097741,550,Personal Redacted Data
http://statistics.data.gov.uk/id/local-authority/38,Oxfordshire County Council,Homes for Ukraine - Guests,19/07/2023,5896,Adult Social Care - Other Transfer Pay,3500097734,550,Personal Redacted Data
http://statistics.data.gov.uk/id/local-authority/38,Oxfordshire County Council,Homes for Ukraine - Guests,17/07/2023,5896,Adult Social Care - Other Transfer Pay,3500097695,550,Personal Redacted Data
http://statistics.data.gov.uk/id/local-authority/38,Oxfordshire County Council,Homes for Ukraine - Guests,24/07/2023,5896,Adult Social Care - Other Transfer Pay,3500097862,550,Personal Redacted Data
http://statistics.data.gov.uk/id/local-authority/38,Oxfordshire County Council,Homes for Ukraine - Guests,12/07/2023,5896,Adult Social Care - Other Transfer Pay,3500097635,550,Personal Redacted Data
